Workbook

Sheet Etappe
A1: Nr | B1: Etappe | C1: afstand(km) | F1: km
A2: 1 | B2: Emmeloord - Luttelgeest | C2: 11.34 | D2: =COUNTA(A2:A14) -> 13
A3: 2 | B3: Luttelgeest - Marknesse | C3: 4.7
A4: 3 | B4: Marknesse - Kraggenburg | C4: 5.72
A5: 4 | B5: Kraggenburg - Ens | C5: 6.34 | I5: A | J5: B | K5: C | M5: D
A6: 5 | B6: Ens - Nagele | C6: 7.78 | H6: Gegevens op deze pagina worden gebruikt voor de koppen van de uitslagen.
A7: 6 | B7: Nagele - Tollebeek | C7: 5.31 | H7: Daarom:
A8: 7 | B8: Tollebeek - Urk | C8: 5 | H8: regel 1 | I8: Nr | J8: Etappe | K8: afstand(km) | M8: km
A9: 8 | B9: Urk - Espel | C9: 7.8
A10: 9 | B10: Espel - Creil | C10: 4.63 | H10: regel 2 | I10: Het nr van de etappe, de etappenaam en de afstand
A11: 10 | B11: Creil - Rutten | C11: 5.44 | H11: t/m | I11: vb:
A12: 11 | B12: Rutten - Bant | C12: 7.05 | H12: regel 12 | I12: 3 | J12: Marknesse - Kraggenburg | K12: 5.72
A13: 12 | B13: Bant - Emmeloord | C13: 5.93
A14: Datum: | B14: 2018-04-14 | H14: regel 14 | I14: kolom 2 | J14: de datum
A15: m | B15: 1
A16: v | B16: 0.9 | H16: regel 15 | I16: de facor voor de mannen vb: | L16: m | M16: 1
B17: Voorhuys 12-dorpenloop | H17: regel 16 | I17: de facor voor de vrouwen vb: | L17: v | M17: 0.9
B18: Etappeuitslag Voorhuys 12-dorpenloop AV NOP 2 april 2022
B19: Uitslag van deze etappe. De tijd is de brutotijd | H19: regel 17 | I19: kolom 2 | J19: De naam voor de loop vb 11 dorpenloop
B20: Uitslag t/m deze etappe. De tijd is de som van de nettotijden.
B21: Einduitslag Voorhuys12-dorpenloop 2022 AV NOP. De tijden zijn netto tijden | H21: regel 18 | I21: kolom 2 | J21: De kop boven de etappeuitslag
I22: vb: | J22: Etappeuitslag 11 dorpenloop AV NOP 8 april 2017
A23: nr | B23: nr
A24: team | B24: team | H24: regel 19 | I24: kolom 2 | J24: Komt links boven de etappeuitslag vb: | M24: Uitslag van deze etappe. De tijd is de brutotijd
A25: Teamnaam | B25: Naam loper | H25: regel 20 | I25: kolom 2 | J25: Komt rechts boven de etappeuitslag vb: | M25: Uitslag t/m deze etappe. De tijd is de som van de nettotijden
A26: 1 | B26: Tijd
A27: 2 | H27: regel 21 | I27: kolom 2 | J27: Komt boven de einduitslag vb: | M27: Einduitslag 11dorpenloop 2017 AV NOP. De tijden zijn netto tijden
A28: 3 | B28: km/h
A29: 4 | H29: regel 23 | J29: tabelkop boven de einduitslag
A30: 5 | B30: nr | H30: t/m | I30: kolom 1 | J30: vb:
A31: 6 | B31: team | H31: regel 37 | J31: nr | K31: team | L31: teamnaam | M31: 1 | N31: 2 | O31: 3 | P31: 4 | Q31: 5 | R31: 6 | S31: 7 | T31: 8 | U31: 9 | V31: 10 | W31: 11 | X31: Totaal | Y31: ∆
A32: 7 | B32: Teamnaam
A33: 8 | B33: Tijd | H33: regel 23 | J33: tabelkop boven etappeuitslagen
A34: 9 | B34: ∆ | H34: t/m | I34: kolom 2 | J34: vb:
A35: 10 | H35: regel 34 | J35: nr | K35: team | L35: teamnaam | M35: Tijd | O35: km/h | Q35: nr | R35: stnr | S35: Ploeg | T35: Tijd | U35: ∆
A36: 11
A37: 12
A38: Totaal
A39: ∆

Sheet Controle (hidden)
C1: niets : goed | E1: 0: er mist een tijd | G1: 2 of meer : er zijn bij deze etappe te veel tijden ingevoerd
B2: 1 | C2: 2 | D2: 3 | E2: 4 | F2: 5 | G2: 6 | H2: 7 | I2: 8 | J2: 9 | K2: 10 | L2: 11 | M2: 12
A3: 1 | F3: 0 | G3: 0 | H3: 0 | I3: 0 | J3: 0 | K3: 0 | L3: 0 | M3: 0
A4: 2 | F4: 0 | G4: 0 | H4: 0 | I4: 0 | J4: 0 | K4: 0 | L4: 0 | M4: 0
A5: 3 | F5: 0 | G5: 0 | H5: 0 | I5: 0 | J5: 0 | K5: 0 | L5: 0 | M5: 0
A6: 4 | F6: 0 | G6: 0 | H6: 0 | I6: 0 | J6: 0 | K6: 0 | L6: 0 | M6: 0
A7: 5 | F7: 0 | G7: 0 | H7: 0 | I7: 0 | J7: 0 | K7: 0 | L7: 0 | M7: 0
A8: 6 | F8: 0 | G8: 0 | H8: 0 | I8: 0 | J8: 0 | K8: 0 | L8: 0 | M8: 0
A9: 7 | F9: 0 | G9: 0 | H9: 0 | I9: 0 | J9: 0 | K9: 0 | L9: 0 | M9: 0
A10: 8 | F10: 0 | G10: 0 | H10: 0 | I10: 0 | J10: 0 | K10: 0 | L10: 0 | M10: 0
A11: 9 | F11: 0 | G11: 0 | H11: 0 | I11: 0 | J11: 0 | K11: 0 | L11: 0 | M11: 0
A12: 10 | F12: 0 | G12: 0 | H12: 0 | I12: 0 | J12: 0 | K12: 0 | L12: 0 | M12: 0
A13: 11 | F13: 0 | G13: 0 | H13: 0 | I13: 0 | J13: 0 | K13: 0 | L13: 0 | M13: 0
A14: 12 | F14: 0 | G14: 0 | H14: 0 | I14: 0 | J14: 0 | K14: 0 | L14: 0 | M14: 0
A15: 13 | F15: 0 | G15: 0 | H15: 0 | I15: 0 | J15: 0 | K15: 0 | L15: 0 | M15: 0
A16: 14 | F16: 0 | G16: 0 | H16: 0 | I16: 0 | J16: 0 | K16: 0 | L16: 0 | M16: 0
A17: 15 | F17: 0 | G17: 0 | H17: 0 | I17: 0 | J17: 0 | K17: 0 | L17: 0 | M17: 0
A18: 16 | F18: 0 | G18: 0 | H18: 0 | I18: 0 | J18: 0 | K18: 0 | L18: 0 | M18: 0
A19: 17 | F19: 0 | G19: 0 | H19: 0 | I19: 0 | J19: 0 | K19: 0 | L19: 0 | M19: 0
A20: 18 | F20: 0 | G20: 0 | H20: 0 | I20: 0 | J20: 0 | K20: 0 | L20: 0 | M20: 0
A21: 19 | F21: 0 | G21: 0 | H21: 0 | I21: 0 | J21: 0 | K21: 0 | L21: 0 | M21: 0
A22: 20 | F22: 0 | G22: 0 | H22: 0 | I22: 0 | J22: 0 | K22: 0 | L22: 0 | M22: 0
A23: 21 | F23: 0 | G23: 0 | H23: 0 | I23: 0 | J23: 0 | K23: 0 | L23: 0 | M23: 0
A24: 22 | F24: 0 | G24: 0 | H24: 0 | I24: 0 | J24: 0 | K24: 0 | L24: 0 | M24: 0
A25: 23 | F25: 0 | G25: 0 | H25: 0 | I25: 0 | J25: 0 | K25: 0 | L25: 0 | M25: 0
A26: 24 | F26: 0 | G26: 0 | H26: 0 | I26: 0 | J26: 0 | K26: 0 | L26: 0 | M26: 0
A27: 25 | F27: 0 | G27: 0 | H27: 0 | I27: 0 | J27: 0 | K27: 0 | L27: 0 | M27: 0
A28: 26 | F28: 0 | G28: 0 | H28: 0 | I28: 0 | J28: 0 | K28: 0 | L28: 0 | M28: 0
A29: 27 | F29: 0 | G29: 0 | H29: 0 | I29: 0 | J29: 0 | K29: 0 | L29: 0 | M29: 0
A30: 28 | F30: 0 | G30: 0 | H30: 0 | I30: 0 | J30: 0 | K30: 0 | L30: 0 | M30: 0
A31: 29 | F31: 0 | G31: 0 | H31: 0 | I31: 0 | J31: 0 | K31: 0 | L31: 0 | M31: 0
A32: 30 | F32: 0 | G32: 0 | H32: 0 | I32: 0 | J32: 0 | K32: 0 | L32: 0 | M32: 0
A33: 31 | F33: 0 | G33: 0 | H33: 0 | I33: 0 | J33: 0 | K33: 0 | L33: 0 | M33: 0
A34: 32 | F34: 0 | G34: 0 | H34: 0 | I34: 0 | J34: 0 | K34: 0 | L34: 0 | M34: 0
A35: 33 | F35: 0 | G35: 0 | H35: 0 | I35: 0 | J35: 0 | K35: 0 | L35: 0 | M35: 0
A36: 34 | F36: 0 | G36: 0 | H36: 0 | I36: 0 | J36: 0 | K36: 0 | L36: 0 | M36: 0
A37: 35 | B37: 0 | C37: 0 | D37: 0 | E37: 0 | F37: 0 | G37: 0 | H37: 0 | I37: 0 | J37: 0 | K37: 0 | L37: 0 | M37: 0
A38: 36 | F38: 0 | G38: 0 | H38: 0 | I38: 0 | J38: 0 | K38: 0 | L38: 0 | M38: 0
A39: 37 | F39: 0 | G39: 0 | H39: 0 | I39: 0 | J39: 0 | K39: 0 | L39: 0 | M39: 0
A40: 38 | F40: 0 | G40: 0 | H40: 0 | I40: 0 | J40: 0 | K40: 0 | L40: 0 | M40: 0
A41: 39 | F41: 0 | G41: 0 | H41: 0 | I41: 0 | J41: 0 | K41: 0 | L41: 0 | M41: 0
A42: 40 | F42: 0 | G42: 0 | H42: 0 | I42: 0 | J42: 0 | K42: 0 | L42: 0 | M42: 0
A43: 41 | F43: 0 | G43: 0 | H43: 0 | I43: 0 | J43: 0 | K43: 0 | L43: 0 | M43: 0
A44: 42 | F44: 0 | G44: 0 | H44: 0 | I44: 0 | J44: 0 | K44: 0 | L44: 0 | M44: 0
A45: 43 | F45: 0 | G45: 0 | H45: 0 | I45: 0 | J45: 0 | K45: 0 | L45: 0 | M45: 0
A46: 44 | F46: 0 | G46: 0 | H46: 0 | I46: 0 | J46: 0 | K46: 0 | L46: 0 | M46: 0
A47: 45 | F47: 0 | G47: 0 | H47: 0 | I47: 0 | J47: 0 | K47: 0 | L47: 0 | M47: 0
A48: 46 | F48: 0 | G48: 0 | H48: 0 | I48: 0 | J48: 0 | K48: 0 | L48: 0 | M48: 0
A49: 47 | F49: 0 | G49: 0 | H49: 0 | I49: 0 | J49: 0 | K49: 0 | L49: 0 | M49: 0
A50: 48 | B50: 0 | C50: 0 | D50: 0 | E50: 0 | F50: 0 | G50: 0 | H50: 0 | I50: 0 | J50: 0 | K50: 0 | L50: 0 | M50: 0
A51: 49 | F51: 0 | G51: 0 | H51: 0 | I51: 0 | J51: 0 | K51: 0 | L51: 0 | M51: 0
A52: 50 | F52: 0 | G52: 0 | H52: 0 | I52: 0 | J52: 0 | K52: 0 | L52: 0 | M52: 0
A53: 51 | F53: 0 | G53: 0 | H53: 0 | I53: 0 | J53: 0 | K53: 0 | L53: 0 | M53: 0
A54: 52 | F54: 0 | G54: 0 | H54: 0 | I54: 0 | J54: 0 | K54: 0 | L54: 0 | M54: 0
A55: 53 | F55: 0 | G55: 0 | H55: 0 | I55: 0 | J55: 0 | K55: 0 | L55: 0 | M55: 0
A56: 54 | F56: 0 | G56: 0 | H56: 0 | I56: 0 | J56: 0 | K56: 0 | L56: 0 | M56: 0
A57: 55 | F57: 0 | G57: 0 | H57: 0 | I57: 0 | J57: 0 | K57: 0 | L57: 0 | M57: 0
A58: 56 | E58: 2 | F58: 0 | G58: 0 | H58: 0 | I58: 0 | J58: 0 | K58: 0 | L58: 0 | M58: 0
A59: 57 | F59: 0 | G59: 0 | H59: 0 | I59: 0 | J59: 0 | K59: 0 | L59: 0 | M59: 0
A60: 58 | F60: 0 | G60: 0 | H60: 0 | I60: 0 | J60: 0 | K60: 0 | L60: 0 | M60: 0
A61: 59 | F61: 0 | G61: 0 | H61: 0 | I61: 0 | J61: 0 | K61: 0 | L61: 0 | M61: 0
A62: 60 | F62: 0 | G62: 0 | H62: 0 | I62: 0 | J62: 0 | K62: 0 | L62: 0 | M62: 0
A63: 61 | F63: 0 | G63: 0 | H63: 0 | I63: 0 | J63: 0 | K63: 0 | L63: 0 | M63: 0
A64: 62 | F64: 0 | G64: 0 | H64: 0 | I64: 0 | J64: 0 | K64: 0 | L64: 0 | M64: 0
A65: 63 | F65: 0 | G65: 0 | H65: 0 | I65: 0 | J65: 0 | K65: 0 | L65: 0 | M65: 0
A66: 64 | F66: 0 | G66: 0 | H66: 0 | I66: 0 | J66: 0 | K66: 0 | L66: 0 | M66: 0
A67: 65 | E67: 0 | F67: 0 | G67: 0 | H67: 0 | I67: 0 | J67: 0 | K67: 0 | L67: 0 | M67: 0
A68: 66 | F68: 0 | G68: 0 | H68: 0 | I68: 0 | J68: 0 | K68: 0 | L68: 0 | M68: 0
A69: 67 | F69: 0 | G69: 0 | H69: 0 | I69: 0 | J69: 0 | K69: 0 | L69: 0 | M69: 0
A70: 68 | F70: 0 | G70: 0 | H70: 0 | I70: 0 | J70: 0 | K70: 0 | L70: 0 | M70: 0
A71: 69 | F71: 0 | G71: 0 | H71: 0 | I71: 0 | J71: 0 | K71: 0 | L71: 0 | M71: 0
A72: 70 | F72: 0 | G72: 0 | H72: 0 | I72: 0 | J72: 0 | K72: 0 | L72: 0 | M72: 0
A73: 71 | F73: 0 | G73: 0 | H73: 0 | I73: 0 | J73: 0 | K73: 0 | L73: 0 | M73: 0
A74: 72 | F74: 0 | G74: 0 | H74: 0 | I74: 0 | J74: 0 | K74: 0 | L74: 0 | M74: 0
A75: 73 | F75: 0 | G75: 0 | H75: 0 | I75: 0 | J75: 0 | K75: 0 | L75: 0 | M75: 0
A76: 74 | F76: 0 | G76: 0 | H76: 0 | I76: 0 | J76: 0 | K76: 0 | L76: 0 | M76: 0
A77: 75 | F77: 0 | G77: 0 | H77: 0 | I77: 0 | J77: 0 | K77: 0 | L77: 0 | M77: 0
A78: 76 | F78: 0 | G78: 0 | H78: 0 | I78: 0 | J78: 0 | K78: 0 | L78: 0 | M78: 0
A79: 77 | F79: 0 | G79: 0 | H79: 0 | I79: 0 | J79: 0 | K79: 0 | L79: 0 | M79: 0
A80: 78 | F80: 0 | G80: 0 | H80: 0 | I80: 0 | J80: 0 | K80: 0 | L80: 0 | M80: 0
A81: 79 | B81: 0 | C81: 0 | D81: 0 | E81: 0 | F81: 0 | G81: 0 | H81: 0 | I81: 0 | J81: 0 | K81: 0 | L81: 0 | M81: 0
A82: 80 | F82: 0 | G82: 0 | H82: 0 | I82: 0 | J82: 0 | K82: 0 | L82: 0 | M82: 0

Sheet Teams
A1: Strtnr | B1: Naam | C1: Controle aantal tijden | D1: aantal ploegen | E1: hoogste start- nummer
A2: 1 | B2: De Corner | D2: =COUNTA(A2:A147) -> 54 | E2: =MAX(A2:A147) -> 56
A3: 2 | B3: hardloopbegeleidingopmaat/klif 18
A4: 3 | B4: Quick Jewels
A5: 4 | B5: Klif 18
A6: 5 | B6: Dujob
A7: 6 | B7: Running Ruijters
A8: 7 | B8: ASV Rutten
A9: 8 | B9: Hardloopteam Bant
A10: 9 | B10: VAN BLOOIS SPORTADVIES
A11: 10 | B11: RUN TEAM MARKNESSE
A12: 11 | B12: Kraggenburg 4
A13: 12 | B13: Hekwerkwebshop.nl
A14: 13 | B14: KLIF18 ladies
A15: 14 | B15: Vivan komt dr’an
A16: 15 | B16: Aves
A17: 16 | B17: Team Nagele
A18: 17 | B18: SAMEN ONDER WEG
A19: 18 | B19: Fit Fun/ Anytime
A20: 19 | B20: STC Rutten
A21: 20 | B21: Creil
A22: 21 | B22: 050media
A23: 22 | B23: Tollebeek in beweging
A24: 23 | B24: Seaconcept
A25: 24 | B25: Ter Haar Family & Friends
A26: 25 | B26: Hardloop groep Ens
A27: 26 | B27: van Vilsteren Marknesse.nl
A28: 27 | B28: Running Team Espel
A29: 28 | B29: Waterman Onions 1
A30: 29 | B30: Waterman Onions Pink Ladies
A31: 30 | B31: Autofirst Minnaard
A32: 31 | B32: fam.Dekker Draaft Door
A33: 32 | B33: Ber-di-do
A34: 33 | B34: woensdagavondlopers
A35: 34 | B35: Team 't Voorhuys
A36: 35 | B36: Waterman Onions 2
A37: 36 | B37: Schol op Urk
A38: 37 | B38: Van Staveren
A39: 38 | B39: Vegterlopers
A40: 39 | B40: Suplacon
A41: 40 | B41: Mercatus, lopen op z’n best
A42: 41 | B42: Advies en Kies en Runners
A43: 42 | B43: Kinderopvang Pipo
A44: 43 | B44: Lerøy Seafood NL
A45: 44 | B45: Tafelronde Noordoostpolder
A46: 45 | B46: Berechja College
A47: 46 | B47: Hoekstra Assurantie B.V.
A48: 47 | B48: CrossFit Urk
A49: 49 | B49: Flynth
A50: 50 | B50: Nick & de rest
A51: 51 | B51: Van Urk voeding
A52: 52 | B52: Pool-der run4fun
A53: 54 | B53: De Dijkies
A54: 55 | B54: Fifty-Five
A55: 56 | B55: De Broodlopers
C77: =IF(A77<>0,COUNTIF(Tijden!B$2:B$1500,Teams!A77),"") -> 
C78: =IF(A78<>0,COUNTIF(Tijden!B$2:B$1500,Teams!A78),"") -> 
C79: =IF(A79<>0,COUNTIF(Tijden!B$2:B$1500,Teams!A79),"") -> 
C80: =IF(A80<>0,COUNTIF(Tijden!B$2:B$1500,Teams!A80),"") -> 
C81: =IF(A81<>0,COUNTIF(Tijden!B$2:B$1500,Teams!A81),"") -> 
C82: =IF(A82<>0,COUNTIF(Tijden!B$2:B$1500,Teams!A82),"") -> 
C83: =IF(A83<>0,COUNTIF(Tijden!B$2:B$1500,Teams!A83),"") -> 
C84: =IF(A84<>0,COUNTIF(Tijden!B$2:B$1500,Teams!A84),"") -> 
C85: =IF(A85<>0,COUNTIF(Tijden!B$2:B$1500,Teams!A85),"") -> 
C86: =IF(A86<>0,COUNTIF(Tijden!B$2:B$1500,Teams!A86),"") -> 
C87: =IF(A87<>0,COUNTIF(Tijden!B$2:B$1500,Teams!A87),"") -> 
C88: =IF(A88<>0,COUNTIF(Tijden!B$2:B$1500,Teams!A88),"") -> 
C89: =IF(A89<>0,COUNTIF(Tijden!B$2:B$1500,Teams!A89),"") -> 
C90: =IF(A90<>0,COUNTIF(Tijden!B$2:B$1500,Teams!A90),"") -> 
C91: =IF(A91<>0,COUNTIF(Tijden!B$2:B$1500,Teams!A91),"") -> 
C92: =IF(A92<>0,COUNTIF(Tijden!B$2:B$1500,Teams!A92),"") -> 
C93: =IF(A93<>0,COUNTIF(Tijden!B$2:B$1500,Teams!A93),"") -> 
C94: =IF(A94<>0,COUNTIF(Tijden!B$2:B$1500,Teams!A94),"") -> 
C95: =IF(A95<>0,COUNTIF(Tijden!B$2:B$1500,Teams!A95),"") -> 
C96: =IF(A96<>0,COUNTIF(Tijden!B$2:B$1500,Teams!A96),"") -> 
C97: =IF(A97<>0,COUNTIF(Tijden!B$2:B$1500,Teams!A97),"") -> 
C98: =IF(A98<>0,COUNTIF(Tijden!B$2:B$1500,Teams!A98),"") -> 
C99: =IF(A99<>0,COUNTIF(Tijden!B$2:B$1500,Teams!A99),"") -> 
C100: =IF(A100<>0,COUNTIF(Tijden!B$2:B$1500,Teams!A100),"") -> 
C101: =IF(A101<>0,COUNTIF(Tijden!B$2:B$1500,Teams!A101),"") -> 
C102: =IF(A102<>0,COUNTIF(Tijden!B$2:B$1500,Teams!A102),"") -> 
C103: =IF(A103<>0,COUNTIF(Tijden!B$2:B$1500,Teams!A103),"") -> 
C104: =IF(A104<>0,COUNTIF(Tijden!B$2:B$1500,Teams!A104),"") -> 
C105: =IF(A105<>0,COUNTIF(Tijden!B$2:B$1500,Teams!A105),"") -> 
C106: =IF(A106<>0,COUNTIF(Tijden!B$2:B$1500,Teams!A106),"") -> 
C107: =IF(A107<>0,COUNTIF(Tijden!B$2:B$1500,Teams!A107),"") -> 
C108: =IF(A108<>0,COUNTIF(Tijden!B$2:B$1500,Teams!A108),"") -> 
C109: =IF(A109<>0,COUNTIF(Tijden!B$2:B$1500,Teams!A109),"") -> 
C110: =IF(A110<>0,COUNTIF(Tijden!B$2:B$1500,Teams!A110),"") -> 
C111: =IF(A111<>0,COUNTIF(Tijden!B$2:B$1500,Teams!A111),"") -> 
C112: =IF(A112<>0,COUNTIF(Tijden!B$2:B$1500,Teams!A112),"") -> 
C113: =IF(A113<>0,COUNTIF(Tijden!B$2:B$1500,Teams!A113),"") -> 
C114: =IF(A114<>0,COUNTIF(Tijden!B$2:B$1500,Teams!A114),"") -> 
C115: =IF(A115<>0,COUNTIF(Tijden!B$2:B$1500,Teams!A115),"") -> 
C116: =IF(A116<>0,COUNTIF(Tijden!B$2:B$1500,Teams!A116),"") -> 
C117: =IF(A117<>0,COUNTIF(Tijden!B$2:B$1500,Teams!A117),"") -> 
C118: =IF(A118<>0,COUNTIF(Tijden!B$2:B$1500,Teams!A118),"") -> 
C119: =IF(A119<>0,COUNTIF(Tijden!B$2:B$1500,Teams!A119),"") -> 
C120: =IF(A120<>0,COUNTIF(Tijden!B$2:B$1500,Teams!A120),"") -> 
C121: =IF(A121<>0,COUNTIF(Tijden!B$2:B$1500,Teams!A121),"") -> 
C122: =IF(A122<>0,COUNTIF(Tijden!B$2:B$1500,Teams!A122),"") -> 
C123: =IF(A123<>0,COUNTIF(Tijden!B$2:B$1500,Teams!A123),"") -> 
C124: =IF(A124<>0,COUNTIF(Tijden!B$2:B$1500,Teams!A124),"") -> 
C125: =IF(A125<>0,COUNTIF(Tijden!B$2:B$1500,Teams!A125),"") -> 
C126: =IF(A126<>0,COUNTIF(Tijden!B$2:B$1500,Teams!A126),"") -> 
C127: =IF(A127<>0,COUNTIF(Tijden!B$2:B$1500,Teams!A127),"") -> 
C128: =IF(A128<>0,COUNTIF(Tijden!B$2:B$1500,Teams!A128),"") -> 
C129: =IF(A129<>0,COUNTIF(Tijden!B$2:B$1500,Teams!A129),"") -> 
C130: =IF(A130<>0,COUNTIF(Tijden!B$2:B$1500,Teams!A130),"") -> 
C131: =IF(A131<>0,COUNTIF(Tijden!B$2:B$1500,Teams!A131),"") -> 
C132: =IF(A132<>0,COUNTIF(Tijden!B$2:B$1500,Teams!A132),"") -> 
C133: =IF(A133<>0,COUNTIF(Tijden!B$2:B$1500,Teams!A133),"") -> 
C134: =IF(A134<>0,COUNTIF(Tijden!B$2:B$1500,Teams!A134),"") -> 
C135: =IF(A135<>0,COUNTIF(Tijden!B$2:B$1500,Teams!A135),"") -> 
C136: =IF(A136<>0,COUNTIF(Tijden!B$2:B$1500,Teams!A136),"") -> 
C137: =IF(A137<>0,COUNTIF(Tijden!B$2:B$1500,Teams!A137),"") -> 
C138: =IF(A138<>0,COUNTIF(Tijden!B$2:B$1500,Teams!A138),"") -> 
C139: =IF(A139<>0,COUNTIF(Tijden!B$2:B$1500,Teams!A139),"") -> 
C140: =IF(A140<>0,COUNTIF(Tijden!B$2:B$1500,Teams!A140),"") -> 
C141: =IF(A141<>0,COUNTIF(Tijden!B$2:B$1500,Teams!A141),"") -> 
C142: =IF(A142<>0,COUNTIF(Tijden!B$2:B$1500,Teams!A142),"") -> 
C143: =IF(A143<>0,COUNTIF(Tijden!B$2:B$1500,Teams!A143),"") -> 
C144: =IF(A144<>0,COUNTIF(Tijden!B$2:B$1500,Teams!A144),"") -> 
C145: =IF(A145<>0,COUNTIF(Tijden!B$2:B$1500,Teams!A145),"") -> 
C146: =IF(A146<>0,COUNTIF(Tijden!B$2:B$1500,Teams!A146),"") -> 
C147: =IF(A147<>0,COUNTIF(Tijden!B$2:B$1500,Teams!A147),"") -> 
C148: =IF(A148<>0,COUNTIF(Tijden!B$2:B$1500,Teams!A148),"") -> 
C149: =IF(A149<>0,COUNTIF(Tijden!B$2:B$1500,Teams!A149),"") -> 
C150: =IF(A150<>0,COUNTIF(Tijden!B$2:B$1500,Teams!A150),"") -> 
C151: =IF(A151<>0,COUNTIF(Tijden!B$2:B$1500,Teams!A151),"") -> 
C152: =IF(A152<>0,COUNTIF(Tijden!B$2:B$1500,Teams!A152),"") -> 
C153: =IF(A153<>0,COUNTIF(Tijden!B$2:B$1500,Teams!A153),"") -> 
C154: =IF(A154<>0,COUNTIF(Tijden!B$2:B$1500,Teams!A154),"") -> 
C155: =IF(A155<>0,COUNTIF(Tijden!B$2:B$1500,Teams!A155),"") -> 
C156: =IF(A156<>0,COUNTIF(Tijden!B$2:B$1500,Teams!A156),"") -> 
C157: =IF(A157<>0,COUNTIF(Tijden!B$2:B$1500,Teams!A157),"") -> 
C158: =IF(A158<>0,COUNTIF(Tijden!B$2:B$1500,Teams!A158),"") -> 
C159: =IF(A159<>0,COUNTIF(Tijden!B$2:B$1500,Teams!A159),"") -> 
C160: =IF(A160<>0,COUNTIF(Tijden!B$2:B$1500,Teams!A160),"") -> 
C161: =IF(A161<>0,COUNTIF(Tijden!B$2:B$1500,Teams!A161),"") -> 
C162: =IF(A162<>0,COUNTIF(Tijden!B$2:B$1500,Teams!A162),"") -> 
C163: =IF(A163<>0,COUNTIF(Tijden!B$2:B$1500,Teams!A163),"") -> 
C164: =IF(A164<>0,COUNTIF(Tijden!B$2:B$1500,Teams!A164),"") -> 
C165: =IF(A165<>0,COUNTIF(Tijden!B$2:B$1500,Teams!A165),"") -> 
C166: =IF(A166<>0,COUNTIF(Tijden!B$2:B$1500,Teams!A166),"") -> 
C167: =IF(A167<>0,COUNTIF(Tijden!B$2:B$1500,Teams!A167),"") -> 
C168: =IF(A168<>0,COUNTIF(Tijden!B$2:B$1500,Teams!A168),"") -> 
C169: =IF(A169<>0,COUNTIF(Tijden!B$2:B$1500,Teams!A169),"") -> 
C170: =IF(A170<>0,COUNTIF(Tijden!B$2:B$1500,Teams!A170),"") -> 
C171: =IF(A171<>0,COUNTIF(Tijden!B$2:B$1500,Teams!A171),"") -> 
C172: =IF(A172<>0,COUNTIF(Tijden!B$2:B$1500,Teams!A172),"") -> 
C173: =IF(A173<>0,COUNTIF(Tijden!B$2:B$1500,Teams!A173),"") -> 
C174: =IF(A174<>0,COUNTIF(Tijden!B$2:B$1500,Teams!A174),"") -> 
C175: =IF(A175<>0,COUNTIF(Tijden!B$2:B$1500,Teams!A175),"") -> 
C176: =IF(A176<>0,COUNTIF(Tijden!B$2:B$1500,Teams!A176),"") -> 
C177: =IF(A177<>0,COUNTIF(Tijden!B$2:B$1500,Teams!A177),"") -> 
C178: =IF(A178<>0,COUNTIF(Tijden!B$2:B$1500,Teams!A178),"") -> 
C179: =IF(A179<>0,COUNTIF(Tijden!B$2:B$1500,Teams!A179),"") -> 
C180: =IF(A180<>0,COUNTIF(Tijden!B$2:B$1500,Teams!A180),"") -> 
C181: =IF(A181<>0,COUNTIF(Tijden!B$2:B$1500,Teams!A181),"") -> 
C182: =IF(A182<>0,COUNTIF(Tijden!B$2:B$1500,Teams!A182),"") -> 
C183: =IF(A183<>0,COUNTIF(Tijden!B$2:B$1500,Teams!A183),"") -> 
C184: =IF(A184<>0,COUNTIF(Tijden!B$2:B$1500,Teams!A184),"") -> 
C185: =IF(A185<>0,COUNTIF(Tijden!B$2:B$1500,Teams!A185),"") -> 
C186: =IF(A186<>0,COUNTIF(Tijden!B$2:B$1500,Teams!A186),"") -> 
C187: =IF(A187<>0,COUNTIF(Tijden!B$2:B$1500,Teams!A187),"") -> 
C188: =IF(A188<>0,COUNTIF(Tijden!B$2:B$1500,Teams!A188),"") -> 

Sheet Tijden
A1: Etappe | B1: team | C1: m/v | D1: bruto tijd | E1: netto tijd | F1: teamnaam | G1: etappenaam | H1: =COUNTA(A:A)-1 -> 648
A2: 1 | B2: 2 | D2: 0.02631944444 | E2: =IF(ISBLANK(A2),"",IF(C2="v",0.9*D2,D2)) -> 0.02631944444 | F2: =IF( ISBLANK(A2),"",IF(ISBLANK(B2),"",VLOOKUP(B2,Teams!A$2:B$95,2,0))) -> hardloopbegeleidingopmaat/klif 18 | G2: =IF(ISBLANK(A2),"",VLOOKUP(A2,Etappe!A$2:B$13,2,FALSE)) -> Emmeloord - Luttelgeest
A3: 1 | B3: 1 | D3: 0.03002800926 | E3: =IF(ISBLANK(A3),"",IF(C3="v",0.9*D3,D3)) -> 0.03002800926 | F3: =IF( ISBLANK(A3),"",IF(ISBLANK(B3),"",VLOOKUP(B3,Teams!A$2:B$95,2,0))) -> De Corner | G3: =IF(ISBLANK(A3),"",VLOOKUP(A3,Etappe!A$2:B$13,2,FALSE)) -> Emmeloord - Luttelgeest
A4: 1 | B4: 5 | D4: 0.03049247685 | E4: 0.03049247685 | F4: =IF( ISBLANK(A4),"",IF(ISBLANK(B4),"",VLOOKUP(B4,Teams!A$2:B$95,2,0))) -> Dujob | G4: =IF(ISBLANK(A4),"",VLOOKUP(A4,Etappe!A$2:B$13,2,FALSE)) -> Emmeloord - Luttelgeest
A5: 1 | B5: 3 | D5: 0.03052824074 | E5: 0.03052824074 | F5: =IF( ISBLANK(A5),"",IF(ISBLANK(B5),"",VLOOKUP(B5,Teams!A$2:B$95,2,0))) -> Quick Jewels | G5: =IF(ISBLANK(A5),"",VLOOKUP(A5,Etappe!A$2:B$13,2,FALSE)) -> Emmeloord - Luttelgeest
A6: 1 | B6: 52 | D6: 0.03088564815 | E6: 0.03088564815 | F6: =IF( ISBLANK(A6),"",IF(ISBLANK(B6),"",VLOOKUP(B6,Teams!A$2:B$95,2,0))) -> Pool-der run4fun | G6: =IF(ISBLANK(A6),"",VLOOKUP(A6,Etappe!A$2:B$13,2,FALSE)) -> Emmeloord - Luttelgeest
A7: 1 | B7: 34 | D7: 0.03095543981 | E7: 0.03095543981 | F7: =IF( ISBLANK(A7),"",IF(ISBLANK(B7),"",VLOOKUP(B7,Teams!A$2:B$95,2,0))) -> Team 't Voorhuys | G7: =IF(ISBLANK(A7),"",VLOOKUP(A7,Etappe!A$2:B$13,2,FALSE)) -> Emmeloord - Luttelgeest
A8: 1 | B8: 4 | C8: v | D8: 0.031946875 | E8: 0.0287521875 | F8: =IF( ISBLANK(A8),"",IF(ISBLANK(B8),"",VLOOKUP(B8,Teams!A$2:B$95,2,0))) -> Klif 18 | G8: =IF(ISBLANK(A8),"",VLOOKUP(A8,Etappe!A$2:B$13,2,FALSE)) -> Emmeloord - Luttelgeest
A9: 1 | B9: 22 | D9: 0.03229363426 | E9: 0.03229363426 | F9: =IF( ISBLANK(A9),"",IF(ISBLANK(B9),"",VLOOKUP(B9,Teams!A$2:B$95,2,0))) -> Tollebeek in beweging | G9: =IF(ISBLANK(A9),"",VLOOKUP(A9,Etappe!A$2:B$13,2,FALSE)) -> Emmeloord - Luttelgeest
A10: 1 | B10: 14 | D10: 0.03272407407 | E10: 0.03272407407 | F10: =IF( ISBLANK(A10),"",IF(ISBLANK(B10),"",VLOOKUP(B10,Teams!A$2:B$95,2,0))) -> Vivan komt dr’an | G10: =IF(ISBLANK(A10),"",VLOOKUP(A10,Etappe!A$2:B$13,2,FALSE)) -> Emmeloord - Luttelgeest
A11: 1 | B11: 21 | D11: 0.03279710648 | E11: 0.03279710648 | F11: =IF( ISBLANK(A11),"",IF(ISBLANK(B11),"",VLOOKUP(B11,Teams!A$2:B$95,2,0))) -> 050media | G11: =IF(ISBLANK(A11),"",VLOOKUP(A11,Etappe!A$2:B$13,2,FALSE)) -> Emmeloord - Luttelgeest
A12: 1 | B12: 9 | D12: 0.03318530093 | E12: 0.03318530093 | F12: =IF( ISBLANK(A12),"",IF(ISBLANK(B12),"",VLOOKUP(B12,Teams!A$2:B$95,2,0))) -> VAN BLOOIS SPORTADVIES | G12: =IF(ISBLANK(A12),"",VLOOKUP(A12,Etappe!A$2:B$13,2,FALSE)) -> Emmeloord - Luttelgeest
A13: 1 | B13: 20 | C13: v | D13: 0.03437916667 | E13: 0.03094125 | F13: =IF( ISBLANK(A13),"",IF(ISBLANK(B13),"",VLOOKUP(B13,Teams!A$2:B$95,2,0))) -> Creil | G13: =IF(ISBLANK(A13),"",VLOOKUP(A13,Etappe!A$2:B$13,2,FALSE)) -> Emmeloord - Luttelgeest
A14: 1 | B14: 6 | D14: 0.03444178241 | E14: 0.03444178241 | F14: =IF( ISBLANK(A14),"",IF(ISBLANK(B14),"",VLOOKUP(B14,Teams!A$2:B$95,2,0))) -> Running Ruijters | G14: =IF(ISBLANK(A14),"",VLOOKUP(A14,Etappe!A$2:B$13,2,FALSE)) -> Emmeloord - Luttelgeest
A15: 1 | B15: 46 | D15: 0.03458321759 | E15: 0.03458321759 | F15: =IF( ISBLANK(A15),"",IF(ISBLANK(B15),"",VLOOKUP(B15,Teams!A$2:B$95,2,0))) -> Hoekstra Assurantie B.V. | G15: =IF(ISBLANK(A15),"",VLOOKUP(A15,Etappe!A$2:B$13,2,FALSE)) -> Emmeloord - Luttelgeest
A16: 1 | B16: 25 | D16: 0.03467361111 | E16: 0.03467361111 | F16: =IF( ISBLANK(A16),"",IF(ISBLANK(B16),"",VLOOKUP(B16,Teams!A$2:B$95,2,0))) -> Hardloop groep Ens | G16: =IF(ISBLANK(A16),"",VLOOKUP(A16,Etappe!A$2:B$13,2,FALSE)) -> Emmeloord - Luttelgeest
A17: 1 | B17: 10 | D17: 0.03467939815 | E17: 0.03467939815 | F17: =IF( ISBLANK(A17),"",IF(ISBLANK(B17),"",VLOOKUP(B17,Teams!A$2:B$95,2,0))) -> RUN TEAM MARKNESSE | G17: =IF(ISBLANK(A17),"",VLOOKUP(A17,Etappe!A$2:B$13,2,FALSE)) -> Emmeloord - Luttelgeest
A18: 1 | B18: 55 | D18: 0.03468553241 | E18: 0.03468553241 | F18: =IF( ISBLANK(A18),"",IF(ISBLANK(B18),"",VLOOKUP(B18,Teams!A$2:B$95,2,0))) -> Fifty-Five | G18: =IF(ISBLANK(A18),"",VLOOKUP(A18,Etappe!A$2:B$13,2,FALSE)) -> Emmeloord - Luttelgeest
A19: 1 | B19: 37 | D19: 0.03470798611 | E19: 0.03470798611 | F19: =IF( ISBLANK(A19),"",IF(ISBLANK(B19),"",VLOOKUP(B19,Teams!A$2:B$95,2,0))) -> Van Staveren | G19: =IF(ISBLANK(A19),"",VLOOKUP(A19,Etappe!A$2:B$13,2,FALSE)) -> Emmeloord - Luttelgeest
A20: 1 | B20: 56 | D20: 0.03521435185 | E20: 0.03521435185 | F20: =IF( ISBLANK(A20),"",IF(ISBLANK(B20),"",VLOOKUP(B20,Teams!A$2:B$95,2,0))) -> De Broodlopers | G20: =IF(ISBLANK(A20),"",VLOOKUP(A20,Etappe!A$2:B$13,2,FALSE)) -> Emmeloord - Luttelgeest
A21: 1 | B21: 36 | D21: 0.03531631944 | E21: 0.03531631944 | F21: =IF( ISBLANK(A21),"",IF(ISBLANK(B21),"",VLOOKUP(B21,Teams!A$2:B$95,2,0))) -> Schol op Urk | G21: =IF(ISBLANK(A21),"",VLOOKUP(A21,Etappe!A$2:B$13,2,FALSE)) -> Emmeloord - Luttelgeest
A22: 1 | B22: 32 | D22: 0.03539837963 | E22: 0.03539837963 | F22: =IF( ISBLANK(A22),"",IF(ISBLANK(B22),"",VLOOKUP(B22,Teams!A$2:B$95,2,0))) -> Ber-di-do | G22: =IF(ISBLANK(A22),"",VLOOKUP(A22,Etappe!A$2:B$13,2,FALSE)) -> Emmeloord - Luttelgeest
A23: 1 | B23: 26 | C23: v | D23: 0.03551203704 | E23: 0.03196083333 | F23: =IF( ISBLANK(A23),"",IF(ISBLANK(B23),"",VLOOKUP(B23,Teams!A$2:B$95,2,0))) -> van Vilsteren Marknesse.nl | G23: =IF(ISBLANK(A23),"",VLOOKUP(A23,Etappe!A$2:B$13,2,FALSE)) -> Emmeloord - Luttelgeest
A24: 1 | B24: 27 | D24: 0.03551886574 | E24: 0.03551886574 | F24: =IF( ISBLANK(A24),"",IF(ISBLANK(B24),"",VLOOKUP(B24,Teams!A$2:B$95,2,0))) -> Running Team Espel | G24: =IF(ISBLANK(A24),"",VLOOKUP(A24,Etappe!A$2:B$13,2,FALSE)) -> Emmeloord - Luttelgeest
A25: 1 | B25: 17 | D25: 0.03589467593 | E25: 0.03589467593 | F25: =IF( ISBLANK(A25),"",IF(ISBLANK(B25),"",VLOOKUP(B25,Teams!A$2:B$95,2,0))) -> SAMEN ONDER WEG | G25: =IF(ISBLANK(A25),"",VLOOKUP(A25,Etappe!A$2:B$13,2,FALSE)) -> Emmeloord - Luttelgeest
A26: 1 | B26: 19 | D26: 0.03644444444 | E26: 0.03644444444 | F26: =IF( ISBLANK(A26),"",IF(ISBLANK(B26),"",VLOOKUP(B26,Teams!A$2:B$95,2,0))) -> STC Rutten | G26: =IF(ISBLANK(A26),"",VLOOKUP(A26,Etappe!A$2:B$13,2,FALSE)) -> Emmeloord - Luttelgeest
A27: 1 | B27: 11 | D27: 0.03650405093 | E27: 0.03650405093 | F27: =IF( ISBLANK(A27),"",IF(ISBLANK(B27),"",VLOOKUP(B27,Teams!A$2:B$95,2,0))) -> Kraggenburg 4 | G27: =IF(ISBLANK(A27),"",VLOOKUP(A27,Etappe!A$2:B$13,2,FALSE)) -> Emmeloord - Luttelgeest
A28: 1 | B28: 49 | D28: 0.03657789352 | E28: 0.03657789352 | F28: =IF( ISBLANK(A28),"",IF(ISBLANK(B28),"",VLOOKUP(B28,Teams!A$2:B$95,2,0))) -> Flynth | G28: =IF(ISBLANK(A28),"",VLOOKUP(A28,Etappe!A$2:B$13,2,FALSE)) -> Emmeloord - Luttelgeest
A29: 1 | B29: 30 | C29: v | D29: 0.03681261574 | E29: 0.03313135417 | F29: =IF( ISBLANK(A29),"",IF(ISBLANK(B29),"",VLOOKUP(B29,Teams!A$2:B$95,2,0))) -> Autofirst Minnaard | G29: =IF(ISBLANK(A29),"",VLOOKUP(A29,Etappe!A$2:B$13,2,FALSE)) -> Emmeloord - Luttelgeest
A30: 1 | B30: 8 | D30: 0.0368625 | E30: 0.0368625 | F30: =IF( ISBLANK(A30),"",IF(ISBLANK(B30),"",VLOOKUP(B30,Teams!A$2:B$95,2,0))) -> Hardloopteam Bant | G30: =IF(ISBLANK(A30),"",VLOOKUP(A30,Etappe!A$2:B$13,2,FALSE)) -> Emmeloord - Luttelgeest
A31: 1 | B31: 31 | D31: 0.03686979167 | E31: 0.03686979167 | F31: =IF( ISBLANK(A31),"",IF(ISBLANK(B31),"",VLOOKUP(B31,Teams!A$2:B$95,2,0))) -> fam.Dekker Draaft Door | G31: =IF(ISBLANK(A31),"",VLOOKUP(A31,Etappe!A$2:B$13,2,FALSE)) -> Emmeloord - Luttelgeest
A32: 1 | B32: 45 | D32: 0.03689074074 | E32: 0.03689074074 | F32: =IF( ISBLANK(A32),"",IF(ISBLANK(B32),"",VLOOKUP(B32,Teams!A$2:B$95,2,0))) -> Berechja College | G32: =IF(ISBLANK(A32),"",VLOOKUP(A32,Etappe!A$2:B$13,2,FALSE)) -> Emmeloord - Luttelgeest
A33: 1 | B33: 12 | D33: 0.03700798611 | E33: 0.03700798611 | F33: =IF( ISBLANK(A33),"",IF(ISBLANK(B33),"",VLOOKUP(B33,Teams!A$2:B$95,2,0))) -> Hekwerkwebshop.nl | G33: =IF(ISBLANK(A33),"",VLOOKUP(A33,Etappe!A$2:B$13,2,FALSE)) -> Emmeloord - Luttelgeest
A34: 1 | B34: 33 | D34: 0.03712581019 | E34: 0.03712581019 | F34: =IF( ISBLANK(A34),"",IF(ISBLANK(B34),"",VLOOKUP(B34,Teams!A$2:B$95,2,0))) -> woensdagavondlopers | G34: =IF(ISBLANK(A34),"",VLOOKUP(A34,Etappe!A$2:B$13,2,FALSE)) -> Emmeloord - Luttelgeest
A35: 1 | B35: 42 | D35: 0.03746261574 | E35: 0.03746261574 | F35: =IF( ISBLANK(A35),"",IF(ISBLANK(B35),"",VLOOKUP(B35,Teams!A$2:B$95,2,0))) -> Kinderopvang Pipo | G35: =IF(ISBLANK(A35),"",VLOOKUP(A35,Etappe!A$2:B$13,2,FALSE)) -> Emmeloord - Luttelgeest
A36: 1 | B36: 39 | C36: v | D36: 0.03757974537 | E36: 0.03382177083 | F36: =IF( ISBLANK(A36),"",IF(ISBLANK(B36),"",VLOOKUP(B36,Teams!A$2:B$95,2,0))) -> Suplacon | G36: =IF(ISBLANK(A36),"",VLOOKUP(A36,Etappe!A$2:B$13,2,FALSE)) -> Emmeloord - Luttelgeest
A37: 1 | B37: 29 | C37: v | D37: 0.03758553241 | E37: 0.03382697917 | F37: =IF( ISBLANK(A37),"",IF(ISBLANK(B37),"",VLOOKUP(B37,Teams!A$2:B$95,2,0))) -> Waterman Onions Pink Ladies | G37: =IF(ISBLANK(A37),"",VLOOKUP(A37,Etappe!A$2:B$13,2,FALSE)) -> Emmeloord - Luttelgeest
A38: 1 | B38: 13 | C38: v | D38: 0.03759166667 | E38: 0.0338325 | F38: =IF( ISBLANK(A38),"",IF(ISBLANK(B38),"",VLOOKUP(B38,Teams!A$2:B$95,2,0))) -> KLIF18 ladies | G38: =IF(ISBLANK(A38),"",VLOOKUP(A38,Etappe!A$2:B$13,2,FALSE)) -> Emmeloord - Luttelgeest
A39: 1 | B39: 23 | D39: 0.03770671296 | E39: 0.03770671296 | F39: =IF( ISBLANK(A39),"",IF(ISBLANK(B39),"",VLOOKUP(B39,Teams!A$2:B$95,2,0))) -> Seaconcept | G39: =IF(ISBLANK(A39),"",VLOOKUP(A39,Etappe!A$2:B$13,2,FALSE)) -> Emmeloord - Luttelgeest
A40: 1 | B40: 51 | D40: 0.03778159722 | E40: 0.03778159722 | F40: =IF( ISBLANK(A40),"",IF(ISBLANK(B40),"",VLOOKUP(B40,Teams!A$2:B$95,2,0))) -> Van Urk voeding | G40: =IF(ISBLANK(A40),"",VLOOKUP(A40,Etappe!A$2:B$13,2,FALSE)) -> Emmeloord - Luttelgeest
A41: 1 | B41: 44 | D41: 0.03805902778 | E41: 0.03805902778 | F41: =IF( ISBLANK(A41),"",IF(ISBLANK(B41),"",VLOOKUP(B41,Teams!A$2:B$95,2,0))) -> Tafelronde Noordoostpolder | G41: =IF(ISBLANK(A41),"",VLOOKUP(A41,Etappe!A$2:B$13,2,FALSE)) -> Emmeloord - Luttelgeest
A42: 1 | B42: 54 | D42: 0.03807025463 | E42: 0.03807025463 | F42: =IF( ISBLANK(A42),"",IF(ISBLANK(B42),"",VLOOKUP(B42,Teams!A$2:B$95,2,0))) -> De Dijkies | G42: =IF(ISBLANK(A42),"",VLOOKUP(A42,Etappe!A$2:B$13,2,FALSE)) -> Emmeloord - Luttelgeest
A43: 1 | B43: 47 | D43: 0.03868981481 | E43: 0.03868981481 | F43: =IF( ISBLANK(A43),"",IF(ISBLANK(B43),"",VLOOKUP(B43,Teams!A$2:B$95,2,0))) -> CrossFit Urk | G43: =IF(ISBLANK(A43),"",VLOOKUP(A43,Etappe!A$2:B$13,2,FALSE)) -> Emmeloord - Luttelgeest
A44: 1 | B44: 7 | D44: 0.03880729167 | E44: 0.03880729167 | F44: =IF( ISBLANK(A44),"",IF(ISBLANK(B44),"",VLOOKUP(B44,Teams!A$2:B$95,2,0))) -> ASV Rutten | G44: =IF(ISBLANK(A44),"",VLOOKUP(A44,Etappe!A$2:B$13,2,FALSE)) -> Emmeloord - Luttelgeest
A45: 1 | B45: 18 | D45: 0.03917731481 | E45: 0.03917731481 | F45: =IF( ISBLANK(A45),"",IF(ISBLANK(B45),"",VLOOKUP(B45,Teams!A$2:B$95,2,0))) -> Fit Fun/ Anytime | G45: =IF(ISBLANK(A45),"",VLOOKUP(A45,Etappe!A$2:B$13,2,FALSE)) -> Emmeloord - Luttelgeest
A46: 1 | B46: 40 | D46: 0.03943414352 | E46: 0.03943414352 | F46: =IF( ISBLANK(A46),"",IF(ISBLANK(B46),"",VLOOKUP(B46,Teams!A$2:B$95,2,0))) -> Mercatus, lopen op z’n best | G46: =IF(ISBLANK(A46),"",VLOOKUP(A46,Etappe!A$2:B$13,2,FALSE)) -> Emmeloord - Luttelgeest
A47: 1 | B47: 38 | D47: 0.03959293981 | E47: 0.03959293981 | F47: =IF( ISBLANK(A47),"",IF(ISBLANK(B47),"",VLOOKUP(B47,Teams!A$2:B$95,2,0))) -> Vegterlopers | G47: =IF(ISBLANK(A47),"",VLOOKUP(A47,Etappe!A$2:B$13,2,FALSE)) -> Emmeloord - Luttelgeest
A48: 1 | B48: 50 | D48: 0.03970104167 | E48: 0.03970104167 | F48: =IF( ISBLANK(A48),"",IF(ISBLANK(B48),"",VLOOKUP(B48,Teams!A$2:B$95,2,0))) -> Nick & de rest | G48: =IF(ISBLANK(A48),"",VLOOKUP(A48,Etappe!A$2:B$13,2,FALSE)) -> Emmeloord - Luttelgeest
A49: 1 | B49: 16 | D49: 0.03983854167 | E49: 0.03983854167 | F49: =IF( ISBLANK(A49),"",IF(ISBLANK(B49),"",VLOOKUP(B49,Teams!A$2:B$95,2,0))) -> Team Nagele | G49: =IF(ISBLANK(A49),"",VLOOKUP(A49,Etappe!A$2:B$13,2,FALSE)) -> Emmeloord - Luttelgeest
A50: 1 | B50: 35 | D50: 0.04048125 | E50: 0.04048125 | F50: =IF( ISBLANK(A50),"",IF(ISBLANK(B50),"",VLOOKUP(B50,Teams!A$2:B$95,2,0))) -> Waterman Onions 2 | G50: =IF(ISBLANK(A50),"",VLOOKUP(A50,Etappe!A$2:B$13,2,FALSE)) -> Emmeloord - Luttelgeest
A51: 1 | B51: 15 | C51: v | D51: 0.04118865741 | E51: 0.03706979167 | F51: =IF( ISBLANK(A51),"",IF(ISBLANK(B51),"",VLOOKUP(B51,Teams!A$2:B$95,2,0))) -> Aves | G51: =IF(ISBLANK(A51),"",VLOOKUP(A51,Etappe!A$2:B$13,2,FALSE)) -> Emmeloord - Luttelgeest
A52: 1 | B52: 28 | D52: 0.04160289352 | E52: 0.04160289352 | F52: =IF( ISBLANK(A52),"",IF(ISBLANK(B52),"",VLOOKUP(B52,Teams!A$2:B$95,2,0))) -> Waterman Onions 1 | G52: =IF(ISBLANK(A52),"",VLOOKUP(A52,Etappe!A$2:B$13,2,FALSE)) -> Emmeloord - Luttelgeest
A53: 1 | B53: 24 | D53: 0.04170231481 | E53: 0.04170231481 | F53: =IF( ISBLANK(A53),"",IF(ISBLANK(B53),"",VLOOKUP(B53,Teams!A$2:B$95,2,0))) -> Ter Haar Family & Friends | G53: =IF(ISBLANK(A53),"",VLOOKUP(A53,Etappe!A$2:B$13,2,FALSE)) -> Emmeloord - Luttelgeest
A54: 1 | B54: 43 | D54: 0.04210775463 | E54: 0.04210775463 | F54: =IF( ISBLANK(A54),"",IF(ISBLANK(B54),"",VLOOKUP(B54,Teams!A$2:B$95,2,0))) -> Lerøy Seafood NL | G54: =IF(ISBLANK(A54),"",VLOOKUP(A54,Etappe!A$2:B$13,2,FALSE)) -> Emmeloord - Luttelgeest
A55: 1 | B55: 41 | D55: 0.04258738426 | E55: 0.04258738426 | F55: =IF( ISBLANK(A55),"",IF(ISBLANK(B55),"",VLOOKUP(B55,Teams!A$2:B$95,2,0))) -> Advies en Kies en Runners | G55: =IF(ISBLANK(A55),"",VLOOKUP(A55,Etappe!A$2:B$13,2,FALSE)) -> Emmeloord - Luttelgeest
A56: 2 | B56: 26 | D56: 0.01185173611 | E56: 0.01185173611 | F56: =IF( ISBLANK(A56),"",IF(ISBLANK(B56),"",VLOOKUP(B56,Teams!A$2:B$95,2,0))) -> van Vilsteren Marknesse.nl | G56: =IF(ISBLANK(A56),"",VLOOKUP(A56,Etappe!A$2:B$13,2,FALSE)) -> Luttelgeest - Marknesse
A57: 2 | B57: 51 | D57: 0.01235231481 | E57: 0.01235231481 | F57: =IF( ISBLANK(A57),"",IF(ISBLANK(B57),"",VLOOKUP(B57,Teams!A$2:B$95,2,0))) -> Van Urk voeding | G57: =IF(ISBLANK(A57),"",VLOOKUP(A57,Etappe!A$2:B$13,2,FALSE)) -> Luttelgeest - Marknesse
A58: 2 | B58: 3 | D58: 0.01237430556 | E58: 0.01237430556 | F58: =IF( ISBLANK(A58),"",IF(ISBLANK(B58),"",VLOOKUP(B58,Teams!A$2:B$95,2,0))) -> Quick Jewels | G58: =IF(ISBLANK(A58),"",VLOOKUP(A58,Etappe!A$2:B$13,2,FALSE)) -> Luttelgeest - Marknesse
A59: 2 | B59: 27 | D59: 0.01256678241 | E59: 0.01256678241 | F59: =IF( ISBLANK(A59),"",IF(ISBLANK(B59),"",VLOOKUP(B59,Teams!A$2:B$95,2,0))) -> Running Team Espel | G59: =IF(ISBLANK(A59),"",VLOOKUP(A59,Etappe!A$2:B$13,2,FALSE)) -> Luttelgeest - Marknesse
A60: 2 | B60: 4 | D60: 0.01263761574 | E60: 0.01263761574 | F60: =IF( ISBLANK(A60),"",IF(ISBLANK(B60),"",VLOOKUP(B60,Teams!A$2:B$95,2,0))) -> Klif 18 | G60: =IF(ISBLANK(A60),"",VLOOKUP(A60,Etappe!A$2:B$13,2,FALSE)) -> Luttelgeest - Marknesse
A61: 2 | B61: 1 | C61: v | D61: 0.0127099537 | E61: 0.01143895833 | F61: =IF( ISBLANK(A61),"",IF(ISBLANK(B61),"",VLOOKUP(B61,Teams!A$2:B$95,2,0))) -> De Corner | G61: =IF(ISBLANK(A61),"",VLOOKUP(A61,Etappe!A$2:B$13,2,FALSE)) -> Luttelgeest - Marknesse
A62: 2 | B62: 2 | C62: v | D62: 0.01311284722 | E62: 0.0118015625 | F62: =IF( ISBLANK(A62),"",IF(ISBLANK(B62),"",VLOOKUP(B62,Teams!A$2:B$95,2,0))) -> hardloopbegeleidingopmaat/klif 18 | G62: =IF(ISBLANK(A62),"",VLOOKUP(A62,Etappe!A$2:B$13,2,FALSE)) -> Luttelgeest - Marknesse
A63: 2 | B63: 28 | D63: 0.01311828704 | E63: 0.01311828704 | F63: =IF( ISBLANK(A63),"",IF(ISBLANK(B63),"",VLOOKUP(B63,Teams!A$2:B$95,2,0))) -> Waterman Onions 1 | G63: =IF(ISBLANK(A63),"",VLOOKUP(A63,Etappe!A$2:B$13,2,FALSE)) -> Luttelgeest - Marknesse
A64: 2 | B64: 13 | C64: v | D64: 0.013440625 | E64: 0.0120965625 | F64: =IF( ISBLANK(A64),"",IF(ISBLANK(B64),"",VLOOKUP(B64,Teams!A$2:B$95,2,0))) -> KLIF18 ladies | G64: =IF(ISBLANK(A64),"",VLOOKUP(A64,Etappe!A$2:B$13,2,FALSE)) -> Luttelgeest - Marknesse
A65: 2 | B65: 11 | D65: 0.01345578704 | E65: 0.01345578704 | F65: =IF( ISBLANK(A65),"",IF(ISBLANK(B65),"",VLOOKUP(B65,Teams!A$2:B$95,2,0))) -> Kraggenburg 4 | G65: =IF(ISBLANK(A65),"",VLOOKUP(A65,Etappe!A$2:B$13,2,FALSE)) -> Luttelgeest - Marknesse
A66: 2 | B66: 7 | D66: 0.01390856481 | E66: 0.01390856481 | F66: =IF( ISBLANK(A66),"",IF(ISBLANK(B66),"",VLOOKUP(B66,Teams!A$2:B$95,2,0))) -> ASV Rutten | G66: =IF(ISBLANK(A66),"",VLOOKUP(A66,Etappe!A$2:B$13,2,FALSE)) -> Luttelgeest - Marknesse
A67: 2 | B67: 6 | D67: 0.01395891204 | E67: =IF(ISBLANK(A67),"",IF(C67="v",0.9*D67,D67)) -> 0.01395891204 | F67: =IF( ISBLANK(A67),"",IF(ISBLANK(B67),"",VLOOKUP(B67,Teams!A$2:B$95,2,0))) -> Running Ruijters | G67: =IF(ISBLANK(A67),"",VLOOKUP(A67,Etappe!A$2:B$13,2,FALSE)) -> Luttelgeest - Marknesse
A68: 2 | B68: 38 | D68: 0.01410138889 | E68: 0.01410138889 | F68: =IF( ISBLANK(A68),"",IF(ISBLANK(B68),"",VLOOKUP(B68,Teams!A$2:B$95,2,0))) -> Vegterlopers | G68: =IF(ISBLANK(A68),"",VLOOKUP(A68,Etappe!A$2:B$13,2,FALSE)) -> Luttelgeest - Marknesse
A69: 2 | B69: 8 | D69: 0.01443414352 | E69: 0.01443414352 | F69: =IF( ISBLANK(A69),"",IF(ISBLANK(B69),"",VLOOKUP(B69,Teams!A$2:B$95,2,0))) -> Hardloopteam Bant | G69: =IF(ISBLANK(A69),"",VLOOKUP(A69,Etappe!A$2:B$13,2,FALSE)) -> Luttelgeest - Marknesse
A70: 2 | B70: 5 | D70: 0.01460810185 | E70: 0.01460810185 | F70: =IF( ISBLANK(A70),"",IF(ISBLANK(B70),"",VLOOKUP(B70,Teams!A$2:B$95,2,0))) -> Dujob | G70: =IF(ISBLANK(A70),"",VLOOKUP(A70,Etappe!A$2:B$13,2,FALSE)) -> Luttelgeest - Marknesse
A71: 2 | B71: 12 | C71: v | D71: 0.01469131944 | E71: 0.0132221875 | F71: =IF( ISBLANK(A71),"",IF(ISBLANK(B71),"",VLOOKUP(B71,Teams!A$2:B$95,2,0))) -> Hekwerkwebshop.nl | G71: =IF(ISBLANK(A71),"",VLOOKUP(A71,Etappe!A$2:B$13,2,FALSE)) -> Luttelgeest - Marknesse
A72: 2 | B72: 33 | D72: 0.01491597222 | E72: 0.01491597222 | F72: =IF( ISBLANK(A72),"",IF(ISBLANK(B72),"",VLOOKUP(B72,Teams!A$2:B$95,2,0))) -> woensdagavondlopers | G72: =IF(ISBLANK(A72),"",VLOOKUP(A72,Etappe!A$2:B$13,2,FALSE)) -> Luttelgeest - Marknesse
A73: 2 | B73: 32 | C73: v | D73: 0.01492638889 | E73: 0.01343375 | F73: =IF( ISBLANK(A73),"",IF(ISBLANK(B73),"",VLOOKUP(B73,Teams!A$2:B$95,2,0))) -> Ber-di-do | G73: =IF(ISBLANK(A73),"",VLOOKUP(A73,Etappe!A$2:B$13,2,FALSE)) -> Luttelgeest - Marknesse
A74: 2 | B74: 44 | D74: 0.01519293981 | E74: 0.01519293981 | F74: =IF( ISBLANK(A74),"",IF(ISBLANK(B74),"",VLOOKUP(B74,Teams!A$2:B$95,2,0))) -> Tafelronde Noordoostpolder | G74: =IF(ISBLANK(A74),"",VLOOKUP(A74,Etappe!A$2:B$13,2,FALSE)) -> Luttelgeest - Marknesse
A75: 2 | B75: 17 | D75: 0.01520532407 | E75: 0.01520532407 | F75: =IF( ISBLANK(A75),"",IF(ISBLANK(B75),"",VLOOKUP(B75,Teams!A$2:B$95,2,0))) -> SAMEN ONDER WEG | G75: =IF(ISBLANK(A75),"",VLOOKUP(A75,Etappe!A$2:B$13,2,FALSE)) -> Luttelgeest - Marknesse
A76: 2 | B76: 47 | D76: 0.01533333333 | E76: 0.01533333333 | F76: =IF( ISBLANK(A76),"",IF(ISBLANK(B76),"",VLOOKUP(B76,Teams!A$2:B$95,2,0))) -> CrossFit Urk | G76: =IF(ISBLANK(A76),"",VLOOKUP(A76,Etappe!A$2:B$13,2,FALSE)) -> Luttelgeest - Marknesse
A77: 2 | B77: 41 | D77: 0.01536875 | E77: 0.01536875 | F77: =IF( ISBLANK(A77),"",IF(ISBLANK(B77),"",VLOOKUP(B77,Teams!A$2:B$95,2,0))) -> Advies en Kies en Runners | G77: =IF(ISBLANK(A77),"",VLOOKUP(A77,Etappe!A$2:B$13,2,FALSE)) -> Luttelgeest - Marknesse
A78: 2 | B78: 21 | D78: 0.01554050926 | E78: 0.01554050926 | F78: =IF( ISBLANK(A78),"",IF(ISBLANK(B78),"",VLOOKUP(B78,Teams!A$2:B$95,2,0))) -> 050media | G78: =IF(ISBLANK(A78),"",VLOOKUP(A78,Etappe!A$2:B$13,2,FALSE)) -> Luttelgeest - Marknesse
A79: 2 | B79: 39 | C79: v | D79: 0.01554814815 | E79: 0.01399333333 | F79: =IF( ISBLANK(A79),"",IF(ISBLANK(B79),"",VLOOKUP(B79,Teams!A$2:B$95,2,0))) -> Suplacon | G79: =IF(ISBLANK(A79),"",VLOOKUP(A79,Etappe!A$2:B$13,2,FALSE)) -> Luttelgeest - Marknesse
A80: 2 | B80: 19 | C80: v | D80: 0.01564259259 | E80: 0.01407833333 | F80: =IF( ISBLANK(A80),"",IF(ISBLANK(B80),"",VLOOKUP(B80,Teams!A$2:B$95,2,0))) -> STC Rutten | G80: =IF(ISBLANK(A80),"",VLOOKUP(A80,Etappe!A$2:B$13,2,FALSE)) -> Luttelgeest - Marknesse
A81: 2 | B81: 36 | C81: v | D81: 0.01565335648 | E81: 0.01408802083 | F81: =IF( ISBLANK(A81),"",IF(ISBLANK(B81),"",VLOOKUP(B81,Teams!A$2:B$95,2,0))) -> Schol op Urk | G81: =IF(ISBLANK(A81),"",VLOOKUP(A81,Etappe!A$2:B$13,2,FALSE)) -> Luttelgeest - Marknesse
A82: 2 | B82: 52 | D82: 0.01579050926 | E82: 0.01579050926 | F82: =IF( ISBLANK(A82),"",IF(ISBLANK(B82),"",VLOOKUP(B82,Teams!A$2:B$95,2,0))) -> Pool-der run4fun | G82: =IF(ISBLANK(A82),"",VLOOKUP(A82,Etappe!A$2:B$13,2,FALSE)) -> Luttelgeest - Marknesse
A83: 2 | B83: 9 | C83: v | D83: 0.01580821759 | E83: 0.01422739583 | F83: =IF( ISBLANK(A83),"",IF(ISBLANK(B83),"",VLOOKUP(B83,Teams!A$2:B$95,2,0))) -> VAN BLOOIS SPORTADVIES | G83: =IF(ISBLANK(A83),"",VLOOKUP(A83,Etappe!A$2:B$13,2,FALSE)) -> Luttelgeest - Marknesse
A84: 2 | B84: 49 | D84: 0.01583101852 | E84: 0.01583101852 | F84: =IF( ISBLANK(A84),"",IF(ISBLANK(B84),"",VLOOKUP(B84,Teams!A$2:B$95,2,0))) -> Flynth | G84: =IF(ISBLANK(A84),"",VLOOKUP(A84,Etappe!A$2:B$13,2,FALSE)) -> Luttelgeest - Marknesse
A85: 2 | B85: 18 | D85: 0.01584548611 | E85: 0.01584548611 | F85: =IF( ISBLANK(A85),"",IF(ISBLANK(B85),"",VLOOKUP(B85,Teams!A$2:B$95,2,0))) -> Fit Fun/ Anytime | G85: =IF(ISBLANK(A85),"",VLOOKUP(A85,Etappe!A$2:B$13,2,FALSE)) -> Luttelgeest - Marknesse
A86: 2 | B86: 34 | D86: 0.01586828704 | E86: 0.01586828704 | F86: =IF( ISBLANK(A86),"",IF(ISBLANK(B86),"",VLOOKUP(B86,Teams!A$2:B$95,2,0))) -> Team 't Voorhuys | G86: =IF(ISBLANK(A86),"",VLOOKUP(A86,Etappe!A$2:B$13,2,FALSE)) -> Luttelgeest - Marknesse
A87: 2 | B87: 50 | C87: v | D87: 0.0159431713 | E87: 0.01434885417 | F87: =IF( ISBLANK(A87),"",IF(ISBLANK(B87),"",VLOOKUP(B87,Teams!A$2:B$95,2,0))) -> Nick & de rest | G87: =IF(ISBLANK(A87),"",VLOOKUP(A87,Etappe!A$2:B$13,2,FALSE)) -> Luttelgeest - Marknesse
A88: 2 | B88: 43 | D88: 0.01600717593 | E88: 0.01600717593 | F88: =IF( ISBLANK(A88),"",IF(ISBLANK(B88),"",VLOOKUP(B88,Teams!A$2:B$95,2,0))) -> Lerøy Seafood NL | G88: =IF(ISBLANK(A88),"",VLOOKUP(A88,Etappe!A$2:B$13,2,FALSE)) -> Luttelgeest - Marknesse
A89: 2 | B89: 23 | D89: 0.01611053241 | E89: 0.01611053241 | F89: =IF( ISBLANK(A89),"",IF(ISBLANK(B89),"",VLOOKUP(B89,Teams!A$2:B$95,2,0))) -> Seaconcept | G89: =IF(ISBLANK(A89),"",VLOOKUP(A89,Etappe!A$2:B$13,2,FALSE)) -> Luttelgeest - Marknesse
A90: 2 | B90: 20 | C90: v | D90: 0.01611921296 | E90: 0.01450729167 | F90: =IF( ISBLANK(A90),"",IF(ISBLANK(B90),"",VLOOKUP(B90,Teams!A$2:B$95,2,0))) -> Creil | G90: =IF(ISBLANK(A90),"",VLOOKUP(A90,Etappe!A$2:B$13,2,FALSE)) -> Luttelgeest - Marknesse
A91: 2 | B91: 14 | D91: 0.01624513889 | E91: 0.01624513889 | F91: =IF( ISBLANK(A91),"",IF(ISBLANK(B91),"",VLOOKUP(B91,Teams!A$2:B$95,2,0))) -> Vivan komt dr’an | G91: =IF(ISBLANK(A91),"",VLOOKUP(A91,Etappe!A$2:B$13,2,FALSE)) -> Luttelgeest - Marknesse
A92: 2 | B92: 10 | D92: 0.01629282407 | E92: 0.01629282407 | F92: =IF( ISBLANK(A92),"",IF(ISBLANK(B92),"",VLOOKUP(B92,Teams!A$2:B$95,2,0))) -> RUN TEAM MARKNESSE | G92: =IF(ISBLANK(A92),"",VLOOKUP(A92,Etappe!A$2:B$13,2,FALSE)) -> Luttelgeest - Marknesse
A93: 2 | B93: 42 | C93: v | D93: 0.01638506944 | E93: 0.0147465625 | F93: =IF( ISBLANK(A93),"",IF(ISBLANK(B93),"",VLOOKUP(B93,Teams!A$2:B$95,2,0))) -> Kinderopvang Pipo | G93: =IF(ISBLANK(A93),"",VLOOKUP(A93,Etappe!A$2:B$13,2,FALSE)) -> Luttelgeest - Marknesse
A94: 2 | B94: 29 | C94: v | D94: 0.01666319444 | E94: 0.014996875 | F94: =IF( ISBLANK(A94),"",IF(ISBLANK(B94),"",VLOOKUP(B94,Teams!A$2:B$95,2,0))) -> Waterman Onions Pink Ladies | G94: =IF(ISBLANK(A94),"",VLOOKUP(A94,Etappe!A$2:B$13,2,FALSE)) -> Luttelgeest - Marknesse
A95: 2 | B95: 24 | D95: 0.01682384259 | E95: 0.01682384259 | F95: =IF( ISBLANK(A95),"",IF(ISBLANK(B95),"",VLOOKUP(B95,Teams!A$2:B$95,2,0))) -> Ter Haar Family & Friends | G95: =IF(ISBLANK(A95),"",VLOOKUP(A95,Etappe!A$2:B$13,2,FALSE)) -> Luttelgeest - Marknesse
A96: 2 | B96: 35 | C96: v | D96: 0.01715729167 | E96: 0.0154415625 | F96: =IF( ISBLANK(A96),"",IF(ISBLANK(B96),"",VLOOKUP(B96,Teams!A$2:B$95,2,0))) -> Waterman Onions 2 | G96: =IF(ISBLANK(A96),"",VLOOKUP(A96,Etappe!A$2:B$13,2,FALSE)) -> Luttelgeest - Marknesse
A97: 2 | B97: 16 | C97: v | D97: 0.01750486111 | E97: 0.015754375 | F97: =IF( ISBLANK(A97),"",IF(ISBLANK(B97),"",VLOOKUP(B97,Teams!A$2:B$95,2,0))) -> Team Nagele | G97: =IF(ISBLANK(A97),"",VLOOKUP(A97,Etappe!A$2:B$13,2,FALSE)) -> Luttelgeest - Marknesse
A98: 2 | B98: 40 | C98: v | D98: 0.01759502315 | E98: 0.01583552083 | F98: =IF( ISBLANK(A98),"",IF(ISBLANK(B98),"",VLOOKUP(B98,Teams!A$2:B$95,2,0))) -> Mercatus, lopen op z’n best | G98: =IF(ISBLANK(A98),"",VLOOKUP(A98,Etappe!A$2:B$13,2,FALSE)) -> Luttelgeest - Marknesse
A99: 2 | B99: 54 | C99: v | D99: 0.01766516204 | E99: 0.01589864583 | F99: =IF( ISBLANK(A99),"",IF(ISBLANK(B99),"",VLOOKUP(B99,Teams!A$2:B$95,2,0))) -> De Dijkies | G99: =IF(ISBLANK(A99),"",VLOOKUP(A99,Etappe!A$2:B$13,2,FALSE)) -> Luttelgeest - Marknesse
A100: 2 | B100: 15 | C100: v | D100: 0.01769803241 | E100: 0.01592822917 | F100: =IF( ISBLANK(A100),"",IF(ISBLANK(B100),"",VLOOKUP(B100,Teams!A$2:B$95,2,0))) -> Aves | G100: =IF(ISBLANK(A100),"",VLOOKUP(A100,Etappe!A$2:B$13,2,FALSE)) -> Luttelgeest - Marknesse
A101: 2 | B101: 37 | D101: 0.01775231481 | E101: 0.01775231481 | F101: =IF( ISBLANK(A101),"",IF(ISBLANK(B101),"",VLOOKUP(B101,Teams!A$2:B$95,2,0))) -> Van Staveren | G101: =IF(ISBLANK(A101),"",VLOOKUP(A101,Etappe!A$2:B$13,2,FALSE)) -> Luttelgeest - Marknesse
A102: 2 | B102: 25 | C102: v | D102: 0.018171875 | E102: 0.0163546875 | F102: =IF( ISBLANK(A102),"",IF(ISBLANK(B102),"",VLOOKUP(B102,Teams!A$2:B$95,2,0))) -> Hardloop groep Ens | G102: =IF(ISBLANK(A102),"",VLOOKUP(A102,Etappe!A$2:B$13,2,FALSE)) -> Luttelgeest - Marknesse
A103: 2 | B103: 22 | C103: v | D103: 0.01851469907 | E103: 0.01666322917 | F103: =IF( ISBLANK(A103),"",IF(ISBLANK(B103),"",VLOOKUP(B103,Teams!A$2:B$95,2,0))) -> Tollebeek in beweging | G103: =IF(ISBLANK(A103),"",VLOOKUP(A103,Etappe!A$2:B$13,2,FALSE)) -> Luttelgeest - Marknesse
A104: 2 | B104: 30 | C104: v | D104: 0.01869560185 | E104: 0.01682604167 | F104: =IF( ISBLANK(A104),"",IF(ISBLANK(B104),"",VLOOKUP(B104,Teams!A$2:B$95,2,0))) -> Autofirst Minnaard | G104: =IF(ISBLANK(A104),"",VLOOKUP(A104,Etappe!A$2:B$13,2,FALSE)) -> Luttelgeest - Marknesse
A105: 2 | B105: 55 | C105: v | D105: 0.01905219907 | E105: 0.01714697917 | F105: =IF( ISBLANK(A105),"",IF(ISBLANK(B105),"",VLOOKUP(B105,Teams!A$2:B$95,2,0))) -> Fifty-Five | G105: =IF(ISBLANK(A105),"",VLOOKUP(A105,Etappe!A$2:B$13,2,FALSE)) -> Luttelgeest - Marknesse
A106: 2 | B106: 31 | C106: v | D106: 0.01927210648 | E106: 0.01734489583 | F106: =IF( ISBLANK(A106),"",IF(ISBLANK(B106),"",VLOOKUP(B106,Teams!A$2:B$95,2,0))) -> fam.Dekker Draaft Door | G106: =IF(ISBLANK(A106),"",VLOOKUP(A106,Etappe!A$2:B$13,2,FALSE)) -> Luttelgeest - Marknesse
A107: 2 | B107: 46 | C107: v | D107: 0.01940127315 | E107: 0.01746114583 | F107: =IF( ISBLANK(A107),"",IF(ISBLANK(B107),"",VLOOKUP(B107,Teams!A$2:B$95,2,0))) -> Hoekstra Assurantie B.V. | G107: =IF(ISBLANK(A107),"",VLOOKUP(A107,Etappe!A$2:B$13,2,FALSE)) -> Luttelgeest - Marknesse
A108: 2 | B108: 56 | C108: v | D108: 0.0197068287 | E108: 0.01773614583 | F108: =IF( ISBLANK(A108),"",IF(ISBLANK(B108),"",VLOOKUP(B108,Teams!A$2:B$95,2,0))) -> De Broodlopers | G108: =IF(ISBLANK(A108),"",VLOOKUP(A108,Etappe!A$2:B$13,2,FALSE)) -> Luttelgeest - Marknesse
A109: 2 | B109: 45 | D109: 0.02152777778 | E109: 0.02152777778 | F109: =IF( ISBLANK(A109),"",IF(ISBLANK(B109),"",VLOOKUP(B109,Teams!A$2:B$95,2,0))) -> Berechja College | G109: =IF(ISBLANK(A109),"",VLOOKUP(A109,Etappe!A$2:B$13,2,FALSE)) -> Luttelgeest - Marknesse
A110: 3 | B110: 2 | D110: 0.01379826389 | E110: 0.01379826389 | F110: =IF( ISBLANK(A110),"",IF(ISBLANK(B110),"",VLOOKUP(B110,Teams!A$2:B$95,2,0))) -> hardloopbegeleidingopmaat/klif 18 | G110: =IF(ISBLANK(A110),"",VLOOKUP(A110,Etappe!A$2:B$13,2,FALSE)) -> Marknesse - Kraggenburg
A111: 3 | B111: 8 | D111: 0.01438206019 | E111: 0.01438206019 | F111: =IF( ISBLANK(A111),"",IF(ISBLANK(B111),"",VLOOKUP(B111,Teams!A$2:B$95,2,0))) -> Hardloopteam Bant | G111: =IF(ISBLANK(A111),"",VLOOKUP(A111,Etappe!A$2:B$13,2,FALSE)) -> Marknesse - Kraggenburg
A112: 3 | B112: 4 | D112: 0.01464467593 | E112: 0.01464467593 | F112: =IF( ISBLANK(A112),"",IF(ISBLANK(B112),"",VLOOKUP(B112,Teams!A$2:B$95,2,0))) -> Klif 18 | G112: =IF(ISBLANK(A112),"",VLOOKUP(A112,Etappe!A$2:B$13,2,FALSE)) -> Marknesse - Kraggenburg
A113: 3 | B113: 6 | D113: 0.01530868056 | E113: 0.01530868056 | F113: =IF( ISBLANK(A113),"",IF(ISBLANK(B113),"",VLOOKUP(B113,Teams!A$2:B$95,2,0))) -> Running Ruijters | G113: =IF(ISBLANK(A113),"",VLOOKUP(A113,Etappe!A$2:B$13,2,FALSE)) -> Marknesse - Kraggenburg
A114: 3 | B114: 37 | D114: 0.01534814815 | E114: 0.01534814815 | F114: =IF( ISBLANK(A114),"",IF(ISBLANK(B114),"",VLOOKUP(B114,Teams!A$2:B$95,2,0))) -> Van Staveren | G114: =IF(ISBLANK(A114),"",VLOOKUP(A114,Etappe!A$2:B$13,2,FALSE)) -> Marknesse - Kraggenburg
A115: 3 | B115: 10 | D115: 0.01555972222 | E115: 0.01555972222 | F115: =IF( ISBLANK(A115),"",IF(ISBLANK(B115),"",VLOOKUP(B115,Teams!A$2:B$95,2,0))) -> RUN TEAM MARKNESSE | G115: =IF(ISBLANK(A115),"",VLOOKUP(A115,Etappe!A$2:B$13,2,FALSE)) -> Marknesse - Kraggenburg
A116: 3 | B116: 47 | D116: 0.0157224537 | E116: 0.0157224537 | F116: =IF( ISBLANK(A116),"",IF(ISBLANK(B116),"",VLOOKUP(B116,Teams!A$2:B$95,2,0))) -> CrossFit Urk | G116: =IF(ISBLANK(A116),"",VLOOKUP(A116,Etappe!A$2:B$13,2,FALSE)) -> Marknesse - Kraggenburg
A117: 3 | B117: 7 | D117: 0.01601724537 | E117: 0.01601724537 | F117: =IF( ISBLANK(A117),"",IF(ISBLANK(B117),"",VLOOKUP(B117,Teams!A$2:B$95,2,0))) -> ASV Rutten | G117: =IF(ISBLANK(A117),"",VLOOKUP(A117,Etappe!A$2:B$13,2,FALSE)) -> Marknesse - Kraggenburg
A118: 3 | B118: 11 | D118: 0.01671284722 | E118: 0.01671284722 | F118: =IF( ISBLANK(A118),"",IF(ISBLANK(B118),"",VLOOKUP(B118,Teams!A$2:B$95,2,0))) -> Kraggenburg 4 | G118: =IF(ISBLANK(A118),"",VLOOKUP(A118,Etappe!A$2:B$13,2,FALSE)) -> Marknesse - Kraggenburg
A119: 3 | B119: 36 | D119: 0.01689259259 | E119: 0.01689259259 | F119: =IF( ISBLANK(A119),"",IF(ISBLANK(B119),"",VLOOKUP(B119,Teams!A$2:B$95,2,0))) -> Schol op Urk | G119: =IF(ISBLANK(A119),"",VLOOKUP(A119,Etappe!A$2:B$13,2,FALSE)) -> Marknesse - Kraggenburg
A120: 3 | B120: 49 | D120: 0.01691388889 | E120: 0.01691388889 | F120: =IF( ISBLANK(A120),"",IF(ISBLANK(B120),"",VLOOKUP(B120,Teams!A$2:B$95,2,0))) -> Flynth | G120: =IF(ISBLANK(A120),"",VLOOKUP(A120,Etappe!A$2:B$13,2,FALSE)) -> Marknesse - Kraggenburg
A121: 3 | B121: 3 | D121: 0.01695115741 | E121: 0.01695115741 | F121: =IF( ISBLANK(A121),"",IF(ISBLANK(B121),"",VLOOKUP(B121,Teams!A$2:B$95,2,0))) -> Quick Jewels | G121: =IF(ISBLANK(A121),"",VLOOKUP(A121,Etappe!A$2:B$13,2,FALSE)) -> Marknesse - Kraggenburg
A122: 3 | B122: 46 | D122: 0.0174806713 | E122: 0.0174806713 | F122: =IF( ISBLANK(A122),"",IF(ISBLANK(B122),"",VLOOKUP(B122,Teams!A$2:B$95,2,0))) -> Hoekstra Assurantie B.V. | G122: =IF(ISBLANK(A122),"",VLOOKUP(A122,Etappe!A$2:B$13,2,FALSE)) -> Marknesse - Kraggenburg
A123: 3 | B123: 26 | D123: 0.01761631944 | E123: 0.01761631944 | F123: =IF( ISBLANK(A123),"",IF(ISBLANK(B123),"",VLOOKUP(B123,Teams!A$2:B$95,2,0))) -> van Vilsteren Marknesse.nl | G123: =IF(ISBLANK(A123),"",VLOOKUP(A123,Etappe!A$2:B$13,2,FALSE)) -> Marknesse - Kraggenburg
A124: 3 | B124: 1 | C124: v | D124: 0.01763009259 | E124: 0.01586708333 | F124: =IF( ISBLANK(A124),"",IF(ISBLANK(B124),"",VLOOKUP(B124,Teams!A$2:B$95,2,0))) -> De Corner | G124: =IF(ISBLANK(A124),"",VLOOKUP(A124,Etappe!A$2:B$13,2,FALSE)) -> Marknesse - Kraggenburg
A125: 3 | B125: 21 | D125: 0.01769409722 | E125: 0.01769409722 | F125: =IF( ISBLANK(A125),"",IF(ISBLANK(B125),"",VLOOKUP(B125,Teams!A$2:B$95,2,0))) -> 050media | G125: =IF(ISBLANK(A125),"",VLOOKUP(A125,Etappe!A$2:B$13,2,FALSE)) -> Marknesse - Kraggenburg
A126: 3 | B126: 5 | D126: 0.01772013889 | E126: 0.01772013889 | F126: =IF( ISBLANK(A126),"",IF(ISBLANK(B126),"",VLOOKUP(B126,Teams!A$2:B$95,2,0))) -> Dujob | G126: =IF(ISBLANK(A126),"",VLOOKUP(A126,Etappe!A$2:B$13,2,FALSE)) -> Marknesse - Kraggenburg
A127: 3 | B127: 32 | C127: v | D127: 0.01785578704 | E127: 0.01607020833 | F127: =IF( ISBLANK(A127),"",IF(ISBLANK(B127),"",VLOOKUP(B127,Teams!A$2:B$95,2,0))) -> Ber-di-do | G127: =IF(ISBLANK(A127),"",VLOOKUP(A127,Etappe!A$2:B$13,2,FALSE)) -> Marknesse - Kraggenburg
A128: 3 | B128: 18 | D128: 0.01790127315 | E128: 0.01790127315 | F128: =IF( ISBLANK(A128),"",IF(ISBLANK(B128),"",VLOOKUP(B128,Teams!A$2:B$95,2,0))) -> Fit Fun/ Anytime | G128: =IF(ISBLANK(A128),"",VLOOKUP(A128,Etappe!A$2:B$13,2,FALSE)) -> Marknesse - Kraggenburg
A129: 3 | B129: 25 | D129: 0.01808321759 | E129: 0.01808321759 | F129: =IF( ISBLANK(A129),"",IF(ISBLANK(B129),"",VLOOKUP(B129,Teams!A$2:B$95,2,0))) -> Hardloop groep Ens | G129: =IF(ISBLANK(A129),"",VLOOKUP(A129,Etappe!A$2:B$13,2,FALSE)) -> Marknesse - Kraggenburg
A130: 3 | B130: 33 | C130: v | D130: 0.01813460648 | E130: 0.01632114583 | F130: =IF( ISBLANK(A130),"",IF(ISBLANK(B130),"",VLOOKUP(B130,Teams!A$2:B$95,2,0))) -> woensdagavondlopers | G130: =IF(ISBLANK(A130),"",VLOOKUP(A130,Etappe!A$2:B$13,2,FALSE)) -> Marknesse - Kraggenburg
A131: 3 | B131: 43 | D131: 0.01833680556 | E131: =IF(ISBLANK(A131),"",IF(C131="v",0.9*D131,D131)) -> 0.01833680556 | F131: =IF( ISBLANK(A131),"",IF(ISBLANK(B131),"",VLOOKUP(B131,Teams!A$2:B$95,2,0))) -> Lerøy Seafood NL | G131: =IF(ISBLANK(A131),"",VLOOKUP(A131,Etappe!A$2:B$13,2,FALSE)) -> Marknesse - Kraggenburg
A132: 3 | B132: 39 | D132: 0.01834328704 | E132: 0.01834328704 | F132: =IF( ISBLANK(A132),"",IF(ISBLANK(B132),"",VLOOKUP(B132,Teams!A$2:B$95,2,0))) -> Suplacon | G132: =IF(ISBLANK(A132),"",VLOOKUP(A132,Etappe!A$2:B$13,2,FALSE)) -> Marknesse - Kraggenburg
A133: 3 | B133: 27 | D133: 0.01853819444 | E133: 0.01853819444 | F133: =IF( ISBLANK(A133),"",IF(ISBLANK(B133),"",VLOOKUP(B133,Teams!A$2:B$95,2,0))) -> Running Team Espel | G133: =IF(ISBLANK(A133),"",VLOOKUP(A133,Etappe!A$2:B$13,2,FALSE)) -> Marknesse - Kraggenburg
A134: 3 | B134: 12 | D134: 0.01857627315 | E134: 0.01857627315 | F134: =IF( ISBLANK(A134),"",IF(ISBLANK(B134),"",VLOOKUP(B134,Teams!A$2:B$95,2,0))) -> Hekwerkwebshop.nl | G134: =IF(ISBLANK(A134),"",VLOOKUP(A134,Etappe!A$2:B$13,2,FALSE)) -> Marknesse - Kraggenburg
A135: 3 | B135: 51 | D135: 0.01858993056 | E135: 0.01858993056 | F135: =IF( ISBLANK(A135),"",IF(ISBLANK(B135),"",VLOOKUP(B135,Teams!A$2:B$95,2,0))) -> Van Urk voeding | G135: =IF(ISBLANK(A135),"",VLOOKUP(A135,Etappe!A$2:B$13,2,FALSE)) -> Marknesse - Kraggenburg
A136: 3 | B136: 54 | C136: v | D136: 0.01877303241 | E136: 0.01689572917 | F136: =IF( ISBLANK(A136),"",IF(ISBLANK(B136),"",VLOOKUP(B136,Teams!A$2:B$95,2,0))) -> De Dijkies | G136: =IF(ISBLANK(A136),"",VLOOKUP(A136,Etappe!A$2:B$13,2,FALSE)) -> Marknesse - Kraggenburg
A137: 3 | B137: 30 | D137: 0.01882141204 | E137: 0.01882141204 | F137: =IF( ISBLANK(A137),"",IF(ISBLANK(B137),"",VLOOKUP(B137,Teams!A$2:B$95,2,0))) -> Autofirst Minnaard | G137: =IF(ISBLANK(A137),"",VLOOKUP(A137,Etappe!A$2:B$13,2,FALSE)) -> Marknesse - Kraggenburg
A138: 3 | B138: 17 | D138: 0.01885150463 | E138: 0.01885150463 | F138: =IF( ISBLANK(A138),"",IF(ISBLANK(B138),"",VLOOKUP(B138,Teams!A$2:B$95,2,0))) -> SAMEN ONDER WEG | G138: =IF(ISBLANK(A138),"",VLOOKUP(A138,Etappe!A$2:B$13,2,FALSE)) -> Marknesse - Kraggenburg
A139: 3 | B139: 15 | C139: v | D139: 0.01897013889 | E139: 0.017073125 | F139: =IF( ISBLANK(A139),"",IF(ISBLANK(B139),"",VLOOKUP(B139,Teams!A$2:B$95,2,0))) -> Aves | G139: =IF(ISBLANK(A139),"",VLOOKUP(A139,Etappe!A$2:B$13,2,FALSE)) -> Marknesse - Kraggenburg
A140: 3 | B140: 9 | D140: 0.01899328704 | E140: 0.01899328704 | F140: =IF( ISBLANK(A140),"",IF(ISBLANK(B140),"",VLOOKUP(B140,Teams!A$2:B$95,2,0))) -> VAN BLOOIS SPORTADVIES | G140: =IF(ISBLANK(A140),"",VLOOKUP(A140,Etappe!A$2:B$13,2,FALSE)) -> Marknesse - Kraggenburg
A141: 3 | B141: 44 | D141: 0.01903993056 | E141: 0.01903993056 | F141: =IF( ISBLANK(A141),"",IF(ISBLANK(B141),"",VLOOKUP(B141,Teams!A$2:B$95,2,0))) -> Tafelronde Noordoostpolder | G141: =IF(ISBLANK(A141),"",VLOOKUP(A141,Etappe!A$2:B$13,2,FALSE)) -> Marknesse - Kraggenburg
A142: 3 | B142: 14 | C142: v | D142: 0.01912314815 | E142: 0.01721083333 | F142: =IF( ISBLANK(A142),"",IF(ISBLANK(B142),"",VLOOKUP(B142,Teams!A$2:B$95,2,0))) -> Vivan komt dr’an | G142: =IF(ISBLANK(A142),"",VLOOKUP(A142,Etappe!A$2:B$13,2,FALSE)) -> Marknesse - Kraggenburg
A143: 3 | B143: 13 | C143: v | D143: 0.01939328704 | E143: 0.01745395833 | F143: =IF( ISBLANK(A143),"",IF(ISBLANK(B143),"",VLOOKUP(B143,Teams!A$2:B$95,2,0))) -> KLIF18 ladies | G143: =IF(ISBLANK(A143),"",VLOOKUP(A143,Etappe!A$2:B$13,2,FALSE)) -> Marknesse - Kraggenburg
A144: 3 | B144: 56 | D144: 0.01947361111 | E144: 0.01947361111 | F144: =IF( ISBLANK(A144),"",IF(ISBLANK(B144),"",VLOOKUP(B144,Teams!A$2:B$95,2,0))) -> De Broodlopers | G144: =IF(ISBLANK(A144),"",VLOOKUP(A144,Etappe!A$2:B$13,2,FALSE)) -> Marknesse - Kraggenburg
A145: 3 | B145: 22 | D145: 0.01948773148 | E145: 0.01948773148 | F145: =IF( ISBLANK(A145),"",IF(ISBLANK(B145),"",VLOOKUP(B145,Teams!A$2:B$95,2,0))) -> Tollebeek in beweging | G145: =IF(ISBLANK(A145),"",VLOOKUP(A145,Etappe!A$2:B$13,2,FALSE)) -> Marknesse - Kraggenburg
A146: 3 | B146: 20 | C146: v | D146: 0.01996944444 | E146: 0.0179725 | F146: =IF( ISBLANK(A146),"",IF(ISBLANK(B146),"",VLOOKUP(B146,Teams!A$2:B$95,2,0))) -> Creil | G146: =IF(ISBLANK(A146),"",VLOOKUP(A146,Etappe!A$2:B$13,2,FALSE)) -> Marknesse - Kraggenburg
A147: 3 | B147: 45 | C147: v | D147: 0.02016041667 | E147: 0.018144375 | F147: =IF( ISBLANK(A147),"",IF(ISBLANK(B147),"",VLOOKUP(B147,Teams!A$2:B$95,2,0))) -> Berechja College | G147: =IF(ISBLANK(A147),"",VLOOKUP(A147,Etappe!A$2:B$13,2,FALSE)) -> Marknesse - Kraggenburg
A148: 3 | B148: 34 | C148: v | D148: 0.02019699074 | E148: 0.01817729167 | F148: =IF( ISBLANK(A148),"",IF(ISBLANK(B148),"",VLOOKUP(B148,Teams!A$2:B$95,2,0))) -> Team 't Voorhuys | G148: =IF(ISBLANK(A148),"",VLOOKUP(A148,Etappe!A$2:B$13,2,FALSE)) -> Marknesse - Kraggenburg
A149: 3 | B149: 28 | C149: v | D149: 0.02059594907 | E149: 0.01853635417 | F149: =IF( ISBLANK(A149),"",IF(ISBLANK(B149),"",VLOOKUP(B149,Teams!A$2:B$95,2,0))) -> Waterman Onions 1 | G149: =IF(ISBLANK(A149),"",VLOOKUP(A149,Etappe!A$2:B$13,2,FALSE)) -> Marknesse - Kraggenburg
A150: 3 | B150: 23 | D150: 0.02075972222 | E150: 0.02075972222 | F150: =IF( ISBLANK(A150),"",IF(ISBLANK(B150),"",VLOOKUP(B150,Teams!A$2:B$95,2,0))) -> Seaconcept | G150: =IF(ISBLANK(A150),"",VLOOKUP(A150,Etappe!A$2:B$13,2,FALSE)) -> Marknesse - Kraggenburg
A151: 3 | B151: 38 | D151: 0.0209818287 | E151: 0.0209818287 | F151: =IF( ISBLANK(A151),"",IF(ISBLANK(B151),"",VLOOKUP(B151,Teams!A$2:B$95,2,0))) -> Vegterlopers | G151: =IF(ISBLANK(A151),"",VLOOKUP(A151,Etappe!A$2:B$13,2,FALSE)) -> Marknesse - Kraggenburg
A152: 3 | B152: 42 | C152: v | D152: 0.0209962963 | E152: 0.01889666667 | F152: =IF( ISBLANK(A152),"",IF(ISBLANK(B152),"",VLOOKUP(B152,Teams!A$2:B$95,2,0))) -> Kinderopvang Pipo | G152: =IF(ISBLANK(A152),"",VLOOKUP(A152,Etappe!A$2:B$13,2,FALSE)) -> Marknesse - Kraggenburg
A153: 3 | B153: 50 | C153: v | D153: 0.021359375 | E153: 0.0192234375 | F153: =IF( ISBLANK(A153),"",IF(ISBLANK(B153),"",VLOOKUP(B153,Teams!A$2:B$95,2,0))) -> Nick & de rest | G153: =IF(ISBLANK(A153),"",VLOOKUP(A153,Etappe!A$2:B$13,2,FALSE)) -> Marknesse - Kraggenburg
A154: 3 | B154: 35 | D154: 0.02139050926 | E154: 0.02139050926 | F154: =IF( ISBLANK(A154),"",IF(ISBLANK(B154),"",VLOOKUP(B154,Teams!A$2:B$95,2,0))) -> Waterman Onions 2 | G154: =IF(ISBLANK(A154),"",VLOOKUP(A154,Etappe!A$2:B$13,2,FALSE)) -> Marknesse - Kraggenburg
A155: 3 | B155: 40 | D155: 0.02149467593 | E155: 0.02149467593 | F155: =IF( ISBLANK(A155),"",IF(ISBLANK(B155),"",VLOOKUP(B155,Teams!A$2:B$95,2,0))) -> Mercatus, lopen op z’n best | G155: =IF(ISBLANK(A155),"",VLOOKUP(A155,Etappe!A$2:B$13,2,FALSE)) -> Marknesse - Kraggenburg
A156: 3 | B156: 16 | C156: v | D156: 0.02169548611 | E156: 0.0195259375 | F156: =IF( ISBLANK(A156),"",IF(ISBLANK(B156),"",VLOOKUP(B156,Teams!A$2:B$95,2,0))) -> Team Nagele | G156: =IF(ISBLANK(A156),"",VLOOKUP(A156,Etappe!A$2:B$13,2,FALSE)) -> Marknesse - Kraggenburg
A157: 3 | B157: 41 | D157: 0.0218212963 | E157: 0.0218212963 | F157: =IF( ISBLANK(A157),"",IF(ISBLANK(B157),"",VLOOKUP(B157,Teams!A$2:B$95,2,0))) -> Advies en Kies en Runners | G157: =IF(ISBLANK(A157),"",VLOOKUP(A157,Etappe!A$2:B$13,2,FALSE)) -> Marknesse - Kraggenburg
A158: 3 | B158: 24 | C158: v | D158: 0.02193564815 | E158: 0.01974208333 | F158: =IF( ISBLANK(A158),"",IF(ISBLANK(B158),"",VLOOKUP(B158,Teams!A$2:B$95,2,0))) -> Ter Haar Family & Friends | G158: =IF(ISBLANK(A158),"",VLOOKUP(A158,Etappe!A$2:B$13,2,FALSE)) -> Marknesse - Kraggenburg
A159: 3 | B159: 31 | D159: 0.02238125 | E159: 0.02238125 | F159: =IF( ISBLANK(A159),"",IF(ISBLANK(B159),"",VLOOKUP(B159,Teams!A$2:B$95,2,0))) -> fam.Dekker Draaft Door | G159: =IF(ISBLANK(A159),"",VLOOKUP(A159,Etappe!A$2:B$13,2,FALSE)) -> Marknesse - Kraggenburg
A160: 3 | B160: 55 | D160: 0.02308252315 | E160: 0.02308252315 | F160: =IF( ISBLANK(A160),"",IF(ISBLANK(B160),"",VLOOKUP(B160,Teams!A$2:B$95,2,0))) -> Fifty-Five | G160: =IF(ISBLANK(A160),"",VLOOKUP(A160,Etappe!A$2:B$13,2,FALSE)) -> Marknesse - Kraggenburg
A161: 3 | B161: 52 | C161: v | D161: 0.02363773148 | E161: 0.02127395833 | F161: =IF( ISBLANK(A161),"",IF(ISBLANK(B161),"",VLOOKUP(B161,Teams!A$2:B$95,2,0))) -> Pool-der run4fun | G161: =IF(ISBLANK(A161),"",VLOOKUP(A161,Etappe!A$2:B$13,2,FALSE)) -> Marknesse - Kraggenburg
A162: 3 | B162: 19 | C162: v | D162: 0.02393356481 | E162: 0.02154020833 | F162: =IF( ISBLANK(A162),"",IF(ISBLANK(B162),"",VLOOKUP(B162,Teams!A$2:B$95,2,0))) -> STC Rutten | G162: =IF(ISBLANK(A162),"",VLOOKUP(A162,Etappe!A$2:B$13,2,FALSE)) -> Marknesse - Kraggenburg
A163: 3 | B163: 29 | C163: v | D163: 0.02454664352 | E163: 0.02209197917 | F163: =IF( ISBLANK(A163),"",IF(ISBLANK(B163),"",VLOOKUP(B163,Teams!A$2:B$95,2,0))) -> Waterman Onions Pink Ladies | G163: =IF(ISBLANK(A163),"",VLOOKUP(A163,Etappe!A$2:B$13,2,FALSE)) -> Marknesse - Kraggenburg
A164: 4 | B164: 2 | D164: 0.0154880787 | E164: 0.0154880787 | F164: =IF( ISBLANK(A164),"",IF(ISBLANK(B164),"",VLOOKUP(B164,Teams!A$2:B$95,2,0))) -> hardloopbegeleidingopmaat/klif 18 | G164: =IF(ISBLANK(A164),"",VLOOKUP(A164,Etappe!A$2:B$13,2,FALSE)) -> Kraggenburg - Ens
A165: 4 | B165: 4 | D165: 0.015759375 | E165: 0.015759375 | F165: =IF( ISBLANK(A165),"",IF(ISBLANK(B165),"",VLOOKUP(B165,Teams!A$2:B$95,2,0))) -> Klif 18 | G165: =IF(ISBLANK(A165),"",VLOOKUP(A165,Etappe!A$2:B$13,2,FALSE)) -> Kraggenburg - Ens
A166: 4 | B166: 6 | D166: 0.01595578704 | E166: 0.01595578704 | F166: =IF( ISBLANK(A166),"",IF(ISBLANK(B166),"",VLOOKUP(B166,Teams!A$2:B$95,2,0))) -> Running Ruijters | G166: =IF(ISBLANK(A166),"",VLOOKUP(A166,Etappe!A$2:B$13,2,FALSE)) -> Kraggenburg - Ens
A167: 4 | B167: 25 | D167: 0.01612210648 | E167: 0.01612210648 | F167: =IF( ISBLANK(A167),"",IF(ISBLANK(B167),"",VLOOKUP(B167,Teams!A$2:B$95,2,0))) -> Hardloop groep Ens | G167: =IF(ISBLANK(A167),"",VLOOKUP(A167,Etappe!A$2:B$13,2,FALSE)) -> Kraggenburg - Ens
A168: 4 | B168: 8 | D168: 0.01640972222 | E168: 0.01640972222 | F168: =IF( ISBLANK(A168),"",IF(ISBLANK(B168),"",VLOOKUP(B168,Teams!A$2:B$95,2,0))) -> Hardloopteam Bant | G168: =IF(ISBLANK(A168),"",VLOOKUP(A168,Etappe!A$2:B$13,2,FALSE)) -> Kraggenburg - Ens
A169: 4 | B169: 3 | D169: 0.01759895833 | E169: 0.01759895833 | F169: =IF( ISBLANK(A169),"",IF(ISBLANK(B169),"",VLOOKUP(B169,Teams!A$2:B$95,2,0))) -> Quick Jewels | G169: =IF(ISBLANK(A169),"",VLOOKUP(A169,Etappe!A$2:B$13,2,FALSE)) -> Kraggenburg - Ens
A170: 4 | B170: 26 | D170: 0.01764953704 | E170: 0.01764953704 | F170: =IF( ISBLANK(A170),"",IF(ISBLANK(B170),"",VLOOKUP(B170,Teams!A$2:B$95,2,0))) -> van Vilsteren Marknesse.nl | G170: =IF(ISBLANK(A170),"",VLOOKUP(A170,Etappe!A$2:B$13,2,FALSE)) -> Kraggenburg - Ens
A171: 4 | B171: 17 | D171: 0.0176900463 | E171: 0.0176900463 | F171: =IF( ISBLANK(A171),"",IF(ISBLANK(B171),"",VLOOKUP(B171,Teams!A$2:B$95,2,0))) -> SAMEN ONDER WEG | G171: =IF(ISBLANK(A171),"",VLOOKUP(A171,Etappe!A$2:B$13,2,FALSE)) -> Kraggenburg - Ens
A172: 4 | B172: 5 | D172: 0.01792083333 | E172: 0.01792083333 | F172: =IF( ISBLANK(A172),"",IF(ISBLANK(B172),"",VLOOKUP(B172,Teams!A$2:B$95,2,0))) -> Dujob | G172: =IF(ISBLANK(A172),"",VLOOKUP(A172,Etappe!A$2:B$13,2,FALSE)) -> Kraggenburg - Ens
A173: 4 | B173: 1 | C173: v | D173: 0.01806736111 | E173: 0.016260625 | F173: =IF( ISBLANK(A173),"",IF(ISBLANK(B173),"",VLOOKUP(B173,Teams!A$2:B$95,2,0))) -> De Corner | G173: =IF(ISBLANK(A173),"",VLOOKUP(A173,Etappe!A$2:B$13,2,FALSE)) -> Kraggenburg - Ens
A174: 4 | B174: 12 | D174: 0.01889456019 | E174: 0.01889456019 | F174: =IF( ISBLANK(A174),"",IF(ISBLANK(B174),"",VLOOKUP(B174,Teams!A$2:B$95,2,0))) -> Hekwerkwebshop.nl | G174: =IF(ISBLANK(A174),"",VLOOKUP(A174,Etappe!A$2:B$13,2,FALSE)) -> Kraggenburg - Ens
A175: 4 | B175: 10 | D175: 0.01941134259 | E175: 0.01941134259 | F175: =IF( ISBLANK(A175),"",IF(ISBLANK(B175),"",VLOOKUP(B175,Teams!A$2:B$95,2,0))) -> RUN TEAM MARKNESSE | G175: =IF(ISBLANK(A175),"",VLOOKUP(A175,Etappe!A$2:B$13,2,FALSE)) -> Kraggenburg - Ens
A176: 4 | B176: 14 | D176: 0.0198974537 | E176: 0.0198974537 | F176: =IF( ISBLANK(A176),"",IF(ISBLANK(B176),"",VLOOKUP(B176,Teams!A$2:B$95,2,0))) -> Vivan komt dr’an | G176: =IF(ISBLANK(A176),"",VLOOKUP(A176,Etappe!A$2:B$13,2,FALSE)) -> Kraggenburg - Ens
A177: 4 | B177: 18 | D177: 0.02004178241 | E177: 0.02004178241 | F177: =IF( ISBLANK(A177),"",IF(ISBLANK(B177),"",VLOOKUP(B177,Teams!A$2:B$95,2,0))) -> Fit Fun/ Anytime | G177: =IF(ISBLANK(A177),"",VLOOKUP(A177,Etappe!A$2:B$13,2,FALSE)) -> Kraggenburg - Ens
A178: 4 | B178: 39 | D178: 0.02011481481 | E178: 0.02011481481 | F178: =IF( ISBLANK(A178),"",IF(ISBLANK(B178),"",VLOOKUP(B178,Teams!A$2:B$95,2,0))) -> Suplacon | G178: =IF(ISBLANK(A178),"",VLOOKUP(A178,Etappe!A$2:B$13,2,FALSE)) -> Kraggenburg - Ens
A179: 4 | B179: 54 | D179: 0.02015752315 | E179: 0.02015752315 | F179: =IF( ISBLANK(A179),"",IF(ISBLANK(B179),"",VLOOKUP(B179,Teams!A$2:B$95,2,0))) -> De Dijkies | G179: =IF(ISBLANK(A179),"",VLOOKUP(A179,Etappe!A$2:B$13,2,FALSE)) -> Kraggenburg - Ens
A180: 4 | B180: 42 | D180: 0.02016400463 | E180: 0.02016400463 | F180: =IF( ISBLANK(A180),"",IF(ISBLANK(B180),"",VLOOKUP(B180,Teams!A$2:B$95,2,0))) -> Kinderopvang Pipo | G180: =IF(ISBLANK(A180),"",VLOOKUP(A180,Etappe!A$2:B$13,2,FALSE)) -> Kraggenburg - Ens
A181: 4 | B181: 47 | D181: 0.02021111111 | E181: 0.02021111111 | F181: =IF( ISBLANK(A181),"",IF(ISBLANK(B181),"",VLOOKUP(B181,Teams!A$2:B$95,2,0))) -> CrossFit Urk | G181: =IF(ISBLANK(A181),"",VLOOKUP(A181,Etappe!A$2:B$13,2,FALSE)) -> Kraggenburg - Ens
A182: 4 | B182: 37 | D182: 0.02029571759 | E182: 0.02029571759 | F182: =IF( ISBLANK(A182),"",IF(ISBLANK(B182),"",VLOOKUP(B182,Teams!A$2:B$95,2,0))) -> Van Staveren | G182: =IF(ISBLANK(A182),"",VLOOKUP(A182,Etappe!A$2:B$13,2,FALSE)) -> Kraggenburg - Ens
A183: 4 | B183: 29 | D183: 0.02039872685 | E183: 0.02039872685 | F183: =IF( ISBLANK(A183),"",IF(ISBLANK(B183),"",VLOOKUP(B183,Teams!A$2:B$95,2,0))) -> Waterman Onions Pink Ladies | G183: =IF(ISBLANK(A183),"",VLOOKUP(A183,Etappe!A$2:B$13,2,FALSE)) -> Kraggenburg - Ens
A184: 4 | B184: 40 | D184: 0.02042523148 | E184: 0.02042523148 | F184: =IF( ISBLANK(A184),"",IF(ISBLANK(B184),"",VLOOKUP(B184,Teams!A$2:B$95,2,0))) -> Mercatus, lopen op z’n best | G184: =IF(ISBLANK(A184),"",VLOOKUP(A184,Etappe!A$2:B$13,2,FALSE)) -> Kraggenburg - Ens
A185: 4 | B185: 46 | D185: 0.02045300926 | E185: 0.02045300926 | F185: =IF( ISBLANK(A185),"",IF(ISBLANK(B185),"",VLOOKUP(B185,Teams!A$2:B$95,2,0))) -> Hoekstra Assurantie B.V. | G185: =IF(ISBLANK(A185),"",VLOOKUP(A185,Etappe!A$2:B$13,2,FALSE)) -> Kraggenburg - Ens
A186: 4 | B186: 7 | D186: 0.0205037037 | E186: 0.0205037037 | F186: =IF( ISBLANK(A186),"",IF(ISBLANK(B186),"",VLOOKUP(B186,Teams!A$2:B$95,2,0))) -> ASV Rutten | G186: =IF(ISBLANK(A186),"",VLOOKUP(A186,Etappe!A$2:B$13,2,FALSE)) -> Kraggenburg - Ens
A187: 4 | B187: 32 | D187: 0.02051203704 | E187: 0.02051203704 | F187: =IF( ISBLANK(A187),"",IF(ISBLANK(B187),"",VLOOKUP(B187,Teams!A$2:B$95,2,0))) -> Ber-di-do | G187: =IF(ISBLANK(A187),"",VLOOKUP(A187,Etappe!A$2:B$13,2,FALSE)) -> Kraggenburg - Ens
A188: 4 | B188: 31 | D188: 0.02052071759 | E188: 0.02052071759 | F188: =IF( ISBLANK(A188),"",IF(ISBLANK(B188),"",VLOOKUP(B188,Teams!A$2:B$95,2,0))) -> fam.Dekker Draaft Door | G188: =IF(ISBLANK(A188),"",VLOOKUP(A188,Etappe!A$2:B$13,2,FALSE)) -> Kraggenburg - Ens
A189: 4 | B189: 21 | C189: v | D189: 0.0205275463 | E189: 0.01847479167 | F189: =IF( ISBLANK(A189),"",IF(ISBLANK(B189),"",VLOOKUP(B189,Teams!A$2:B$95,2,0))) -> 050media | G189: =IF(ISBLANK(A189),"",VLOOKUP(A189,Etappe!A$2:B$13,2,FALSE)) -> Kraggenburg - Ens
A190: 4 | B190: 44 | D190: 0.02057199074 | E190: 0.02057199074 | F190: =IF( ISBLANK(A190),"",IF(ISBLANK(B190),"",VLOOKUP(B190,Teams!A$2:B$95,2,0))) -> Tafelronde Noordoostpolder | G190: =IF(ISBLANK(A190),"",VLOOKUP(A190,Etappe!A$2:B$13,2,FALSE)) -> Kraggenburg - Ens
A191: 4 | B191: 27 | D191: 0.02063969907 | E191: 0.02063969907 | F191: =IF( ISBLANK(A191),"",IF(ISBLANK(B191),"",VLOOKUP(B191,Teams!A$2:B$95,2,0))) -> Running Team Espel | G191: =IF(ISBLANK(A191),"",VLOOKUP(A191,Etappe!A$2:B$13,2,FALSE)) -> Kraggenburg - Ens
A192: 4 | B192: 24 | D192: 0.02076840278 | E192: 0.02076840278 | F192: =IF( ISBLANK(A192),"",IF(ISBLANK(B192),"",VLOOKUP(B192,Teams!A$2:B$95,2,0))) -> Ter Haar Family & Friends | G192: =IF(ISBLANK(A192),"",VLOOKUP(A192,Etappe!A$2:B$13,2,FALSE)) -> Kraggenburg - Ens
A193: 4 | B193: 11 | C193: v | D193: 0.02083645833 | E193: 0.0187528125 | F193: =IF( ISBLANK(A193),"",IF(ISBLANK(B193),"",VLOOKUP(B193,Teams!A$2:B$95,2,0))) -> Kraggenburg 4 | G193: =IF(ISBLANK(A193),"",VLOOKUP(A193,Etappe!A$2:B$13,2,FALSE)) -> Kraggenburg - Ens
A194: 4 | B194: 56 | D194: 0.02091238426 | E194: 0.02091238426 | F194: =IF( ISBLANK(A194),"",IF(ISBLANK(B194),"",VLOOKUP(B194,Teams!A$2:B$95,2,0))) -> De Broodlopers | G194: =IF(ISBLANK(A194),"",VLOOKUP(A194,Etappe!A$2:B$13,2,FALSE)) -> Kraggenburg - Ens
A195: 4 | B195: 50 | D195: 0.02095868056 | E195: =IF(ISBLANK(A195),"",IF(C195="v",0.9*D195,D195)) -> 0.02095868056 | F195: =IF( ISBLANK(A195),"",IF(ISBLANK(B195),"",VLOOKUP(B195,Teams!A$2:B$95,2,0))) -> Nick & de rest | G195: =IF(ISBLANK(A195),"",VLOOKUP(A195,Etappe!A$2:B$13,2,FALSE)) -> Kraggenburg - Ens
A196: 4 | B196: 22 | D196: 0.02111886574 | E196: 0.02111886574 | F196: =IF( ISBLANK(A196),"",IF(ISBLANK(B196),"",VLOOKUP(B196,Teams!A$2:B$95,2,0))) -> Tollebeek in beweging | G196: =IF(ISBLANK(A196),"",VLOOKUP(A196,Etappe!A$2:B$13,2,FALSE)) -> Kraggenburg - Ens
A197: 4 | B197: 13 | C197: v | D197: 0.02116770833 | E197: 0.0190509375 | F197: =IF( ISBLANK(A197),"",IF(ISBLANK(B197),"",VLOOKUP(B197,Teams!A$2:B$95,2,0))) -> KLIF18 ladies | G197: =IF(ISBLANK(A197),"",VLOOKUP(A197,Etappe!A$2:B$13,2,FALSE)) -> Kraggenburg - Ens
A198: 4 | B198: 49 | D198: 0.02126539352 | E198: 0.02126539352 | F198: =IF( ISBLANK(A198),"",IF(ISBLANK(B198),"",VLOOKUP(B198,Teams!A$2:B$95,2,0))) -> Flynth | G198: =IF(ISBLANK(A198),"",VLOOKUP(A198,Etappe!A$2:B$13,2,FALSE)) -> Kraggenburg - Ens
A199: 4 | B199: 33 | C199: v | D199: 0.02161365741 | E199: 0.01945229167 | F199: =IF( ISBLANK(A199),"",IF(ISBLANK(B199),"",VLOOKUP(B199,Teams!A$2:B$95,2,0))) -> woensdagavondlopers | G199: =IF(ISBLANK(A199),"",VLOOKUP(A199,Etappe!A$2:B$13,2,FALSE)) -> Kraggenburg - Ens
A200: 4 | B200: 51 | C200: v | D200: 0.02163472222 | E200: 0.01947125 | F200: =IF( ISBLANK(A200),"",IF(ISBLANK(B200),"",VLOOKUP(B200,Teams!A$2:B$95,2,0))) -> Van Urk voeding | G200: =IF(ISBLANK(A200),"",VLOOKUP(A200,Etappe!A$2:B$13,2,FALSE)) -> Kraggenburg - Ens
... 1300 more rows

Sheet 1L
A1: Etappeuitslag Voorhuys 12-dorpenloop AV NOP 2 april 2022
A2: Uitslag van deze etappe. De tijd is de brutotijd | H2: Uitslag t/m deze etappe. De tijd is de som van de nettotijden.
A3: Emmeloord - Luttelgeest | D3: 11.34 | E3: km | H3: Emmeloord - Luttelgeest
A4: nr | B4: team | C4: Naam loper | D4: Tijd | F4: km/h | H4: nr | I4: team | J4: Teamnaam | K4: Tijd | L4: ∆
A5: 1 | B5: 2 | C5: Bas Hollegien | D5: 0.02631944444 | F5: 17.9525066 | H5: 1 | I5: 2 | J5: hardloopbegeleidingopmaat/klif 18 | K5: 0.02631944444 | L5: 0
A6: 2 | B6: 1 | C6: Luc Beuckers | D6: 0.03002800926 | F6: 15.73530886 | H6: 2 | I6: 4 | J6: Klif 18 | K6: 0.0287521875 | L6: 0.002432743056
A7: 3 | B7: 5 | C7: Tomas Prysmantas | D7: 0.03049247685 | F7: 15.49562544 | H7: 3 | I7: 1 | J7: De Corner | K7: 0.03002800926 | L7: 0.003708564815
A8: 4 | B8: 3 | C8: Meindert Ruiten | D8: 0.03052824074 | F8: 15.47747229 | H8: 4 | I8: 5 | J8: Dujob | K8: 0.03049247685 | L8: 0.004173032407
A9: 5 | B9: 52 | C9: Krzysiek | D9: 0.03088564815 | F9: 15.29836763 | H9: 5 | I9: 3 | J9: Quick Jewels | K9: 0.03052824074 | L9: 0.004208796296
A10: 6 | B10: 34 | C10: Rick Hellendoorn | D10: 0.03095543981 | F10: 15.26387617 | H10: 6 | I10: 52 | J10: Pool-der run4fun | K10: 0.03088564815 | L10: 0.004566203704
A11: 7 | B11: 4 | C11: Jacolien Ruizendaal | D11: 0.031946875 | E11: v | F11: 14.79017901 | H11: 7 | I11: 20 | J11: Creil | K11: 0.03094125 | L11: 0.004621805556
A12: 8 | B12: 22 | C12: Luc Overvoorde | D12: 0.03229363426 | F12: 14.63136655 | H12: 8 | I12: 34 | J12: Team 't Voorhuys | K12: 0.03095543981 | L12: 0.00463599537
A13: 9 | B13: 14 | C13: Arjen Spaan | D13: 0.03272407407 | F13: 14.43891121 | H13: 9 | I13: 26 | J13: van Vilsteren Marknesse.nl | K13: 0.03196083333 | L13: 0.005641388889
A14: 10 | B14: 21 | C14: Gert Jan van de Berg | D14: 0.03279710648 | F14: 14.40675873 | H14: 10 | I14: 22 | J14: Tollebeek in beweging | K14: 0.03229363426 | L14: 0.005974189815
A15: 11 | B15: 9 | C15: William van Boven | D15: 0.03318530093 | F15: 14.23823159 | H15: 11 | I15: 14 | J15: Vivan komt dr’an | K15: 0.03272407407 | L15: 0.00640462963
A16: 12 | B16: 20 | C16: Erna van Es-Keen | D16: 0.03437916667 | E16: v | F16: 13.74378863 | H16: 12 | I16: 21 | J16: 050media | K16: 0.03279710648 | L16: 0.006477662037
A17: 13 | B17: 6 | C17: Jos Ruijter | D17: 0.03444178241 | F17: 13.71880219 | H17: 13 | I17: 30 | J17: Autofirst Minnaard | K17: 0.03313135417 | L17: 0.006811909722
A18: 14 | B18: 46 | C18: Jan Willem Koster | D18: 0.03458321759 | F18: 13.66269633 | H18: 14 | I18: 9 | J18: VAN BLOOIS SPORTADVIES | K18: 0.03318530093 | L18: 0.006865856481
A19: 15 | B19: 25 | C19: Maarten Maaskant | D19: 0.03467361111 | F19: 13.62707791 | H19: 15 | I19: 39 | J19: Suplacon | K19: 0.03382177083 | L19: 0.007502326389
A20: 16 | B20: 10 | C20: Klaas Jurjen Zachariasse | D20: 0.03467939815 | F20: 13.62480392 | H20: 16 | I20: 29 | J20: Waterman Onions Pink Ladies | K20: 0.03382697917 | L20: 0.007507534722
A21: 17 | B21: 55 | C21: Gerard Hesselmans | D21: 0.03468553241 | F21: 13.62239433 | H21: 17 | I21: 13 | J21: KLIF18 ladies | K21: 0.0338325 | L21: 0.007513055556
A22: 18 | B22: 37 | C22: Coen Willems | D22: 0.03470798611 | F22: 13.61358157 | H22: 18 | I22: 6 | J22: Running Ruijters | K22: 0.03444178241 | L22: 0.008122337963
A23: 19 | B23: 56 | C23: Mark Groenewold | D23: 0.03521435185 | F23: 13.4178247 | H23: 19 | I23: 46 | J23: Hoekstra Assurantie B.V. | K23: 0.03458321759 | L23: 0.008263773148
A24: 20 | B24: 36 | C24: Bert van Slooten | D24: 0.03531631944 | F24: 13.37908387 | H24: 20 | I24: 25 | J24: Hardloop groep Ens | K24: 0.03467361111 | L24: 0.008354166667
A25: 21 | B25: 32 | C25: Harold Oeverhaus | D25: 0.03539837963 | F25: 13.34806861 | H25: 21 | I25: 10 | J25: RUN TEAM MARKNESSE | K25: 0.03467939815 | L25: 0.008359953704
A26: 22 | B26: 26 | C26: Iris Peters | D26: 0.03551203704 | E26: v | F26: 13.30534769 | H26: 22 | I26: 55 | J26: Fifty-Five | K26: 0.03468553241 | L26: 0.008366087963
A27: 23 | B27: 27 | C27: Pieter Maas | D27: 0.03551886574 | F27: 13.30278966 | H27: 23 | I27: 37 | J27: Van Staveren | K27: 0.03470798611 | L27: 0.008388541667
A28: 24 | B28: 17 | C28: Olaf van Campen | D28: 0.03589467593 | F28: 13.16351208 | H28: 24 | I28: 56 | J28: De Broodlopers | K28: 0.03521435185 | L28: 0.008894907407
A29: 25 | B29: 19 | C29: Anne Oenema | D29: 0.03644444444 | F29: 12.96493902 | H29: 25 | I29: 36 | J29: Schol op Urk | K29: 0.03531631944 | L29: 0.008996875
A30: 26 | B30: 11 | C30: Marco van Diepen | D30: 0.03650405093 | F30: 12.94376892 | H30: 26 | I30: 32 | J30: Ber-di-do | K30: 0.03539837963 | L30: 0.009078935185
A31: 27 | B31: 49 | C31: Albert Koffeman | D31: 0.03657789352 | F31: 12.91763835 | H31: 27 | I31: 27 | J31: Running Team Espel | K31: 0.03551886574 | L31: 0.009199421296
A32: 28 | B32: 30 | C32: Daniëlle Willems | D32: 0.03681261574 | E32: v | F32: 12.83527374 | H32: 28 | I32: 17 | J32: SAMEN ONDER WEG | K32: 0.03589467593 | L32: 0.009575231481
A33: 29 | B33: 8 | C33: Gabry Vlot | D33: 0.0368625 | F33: 12.81790437 | H33: 29 | I33: 19 | J33: STC Rutten | K33: 0.03644444444 | L33: 0.010125
A34: 30 | B34: 31 | C34: Arjan Vroegop | D34: 0.03686979167 | F34: 12.8153694 | H34: 30 | I34: 11 | J34: Kraggenburg 4 | K34: 0.03650405093 | L34: 0.01018460648
A35: 31 | B35: 45 | C35: Dirk Wesseling | D35: 0.03689074074 | F35: 12.80809196 | H35: 31 | I35: 49 | J35: Flynth | K35: 0.03657789352 | L35: 0.01025844907
A36: 32 | B36: 12 | C36: Andries de Boer | D36: 0.03700798611 | F36: 12.76751452 | H36: 32 | I36: 8 | J36: Hardloopteam Bant | K36: 0.0368625 | L36: 0.01054305556
A37: 33 | B37: 33 | C37: hendrik hornstra | D37: 0.03712581019 | F37: 12.72699498 | H37: 33 | I37: 31 | J37: fam.Dekker Draaft Door | K37: 0.03686979167 | L37: 0.01055034722
A38: 34 | B38: 42 | C38: Rafaël | D38: 0.03746261574 | F38: 12.61257365 | H38: 34 | I38: 45 | J38: Berechja College | K38: 0.03689074074 | L38: 0.0105712963
A39: 35 | B39: 39 | C39: Lianne van de Guchte | D39: 0.03757974537 | E39: v | F39: 12.57326241 | H39: 35 | I39: 12 | J39: Hekwerkwebshop.nl | K39: 0.03700798611 | L39: 0.01068854167
A40: 36 | B40: 29 | C40: Annegina de Vries | D40: 0.03758553241 | E40: v | F40: 12.57132651 | H40: 36 | I40: 15 | J40: Aves | K40: 0.03706979167 | L40: 0.01075034722
A41: 37 | B41: 13 | C41: Willeke Post | D41: 0.03759166667 | E41: v | F41: 12.56927511 | H41: 37 | I41: 33 | J41: woensdagavondlopers | K41: 0.03712581019 | L41: 0.01080636574
A42: 38 | B42: 23 | C42: Reindert Rorije | D42: 0.03770671296 | F42: 12.53092521 | H42: 38 | I42: 42 | J42: Kinderopvang Pipo | K42: 0.03746261574 | L42: 0.0111431713
A43: 39 | B43: 51 | C43: Cees Zwarthoed | D43: 0.03778159722 | F43: 12.50608854 | H43: 39 | I43: 23 | J43: Seaconcept | K43: 0.03770671296 | L43: 0.01138726852
A44: 40 | B44: 44 | C44: Gert-Jan Baken | D44: 0.03805902778 | F44: 12.41492565 | H44: 40 | I44: 51 | J44: Van Urk voeding | K44: 0.03778159722 | L44: 0.01146215278
A45: 41 | B45: 54 | C45: Arnoud Kievit | D45: 0.03807025463 | F45: 12.41126451 | H45: 41 | I45: 44 | J45: Tafelronde Noordoostpolder | K45: 0.03805902778 | L45: 0.01173958333
A46: 42 | B46: 47 | C46: Cornelis Romkes | D46: 0.03868981481 | F46: 12.21251645 | H46: 42 | I46: 54 | J46: De Dijkies | K46: 0.03807025463 | L46: 0.01175081019
A47: 43 | B47: 7 | C47: Edwin Wever | D47: 0.03880729167 | F47: 12.17554691 | H47: 43 | I47: 47 | J47: CrossFit Urk | K47: 0.03868981481 | L47: 0.01237037037
A48: 44 | B48: 18 | C48: Wim Kuis | D48: 0.03917731481 | F48: 12.06055091 | H48: 44 | I48: 7 | J48: ASV Rutten | K48: 0.03880729167 | L48: 0.01248784722
A49: 45 | B49: 40 | C49: Matthijs de Vries | D49: 0.03943414352 | F49: 11.98200234 | H49: 45 | I49: 18 | J49: Fit Fun/ Anytime | K49: 0.03917731481 | L49: 0.01285787037
A50: 46 | B50: 38 | C50: Alexander Kooijman | D50: 0.03959293981 | F50: 11.93394586 | H50: 46 | I50: 40 | J50: Mercatus, lopen op z’n best | K50: 0.03943414352 | L50: 0.01311469907
A51: 47 | B51: 50 | C51: Peter-Paul Frijlink | D51: 0.03970104167 | F51: 11.90145095 | H51: 47 | I51: 38 | J51: Vegterlopers | K51: 0.03959293981 | L51: 0.01327349537
A52: 48 | B52: 16 | C52: Wilco van der Sar | D52: 0.03983854167 | F52: 11.86037391 | H52: 48 | I52: 50 | J52: Nick & de rest | K52: 0.03970104167 | L52: 0.01338159722
A53: 49 | B53: 35 | C53: Jan Dam | D53: 0.04048125 | F53: 11.6720704 | H53: 49 | I53: 16 | J53: Team Nagele | K53: 0.03983854167 | L53: 0.01351909722
A54: 50 | B54: 15 | C54: Marianne Slimmen | D54: 0.04118865741 | E54: v | F54: 11.4716048 | H54: 50 | I54: 35 | J54: Waterman Onions 2 | K54: 0.04048125 | L54: 0.01416180556
A55: 51 | B55: 28 | C55: Wim Waterman | D55: 0.04160289352 | F55: 11.35738311 | H55: 51 | I55: 28 | J55: Waterman Onions 1 | K55: 0.04160289352 | L55: 0.01528344907
A56: 52 | B56: 24 | C56: Harjan ter Haar | D56: 0.04170231481 | F56: 11.33030629 | H56: 52 | I56: 24 | J56: Ter Haar Family & Friends | K56: 0.04170231481 | L56: 0.01538287037
A57: 53 | B57: 43 | C57: Wouter de Vries | D57: 0.04210775463 | F57: 11.22121101 | H57: 53 | I57: 43 | J57: Lerøy Seafood NL | K57: 0.04210775463 | L57: 0.01578831019
A58: 54 | B58: 41 | C58: Johann Diermeier | D58: 0.04258738426 | F58: 11.09483497 | H58: 54 | I58: 41 | J58: Advies en Kies en Runners | K58: 0.04258738426 | L58: 0.01626793981

Sheet 2M
A1: Etappeuitslag Voorhuys 12-dorpenloop AV NOP 2 april 2022
A2: Uitslag van deze etappe. De tijd is de brutotijd | H2: Uitslag t/m deze etappe. De tijd is de som van de nettotijden.
A3: Luttelgeest - Marknesse | D3: 4.7 | E3: km | H3: Luttelgeest - Marknesse
A4: nr | B4: team | C4: Naam loper | D4: Tijd | F4: km/h | H4: nr | I4: team | J4: Teamnaam | K4: Tijd | L4: ∆
A5: 1 | B5: 26 | C5: Rob Loman | D5: 0.01185173611 | F5: 16.52359886 | H5: 1 | I5: 2 | J5: hardloopbegeleidingopmaat/klif 18 | K5: 0.03812100694 | L5: 0
A6: 2 | B6: 51 | C6: Jelle Kramer | D6: 0.01235231481 | F6: 15.85397849 | H6: 2 | I6: 4 | J6: Klif 18 | K6: 0.04138980324 | L6: 0.003268796296
A7: 3 | B7: 3 | C7: Cornelis Post | D7: 0.01237430556 | F7: 15.82580392 | H7: 3 | I7: 1 | J7: De Corner | K7: 0.04146696759 | L7: 0.003345960648
A8: 4 | B8: 27 | C8: Jeroen van de Berg | D8: 0.01256678241 | F8: 15.58341085 | H8: 4 | I8: 3 | J8: Quick Jewels | K8: 0.0429025463 | L8: 0.004781539352
A9: 5 | B9: 4 | C9: Jeroen Vels | D9: 0.01263761574 | F9: 15.49606645 | H9: 5 | I9: 26 | J9: van Vilsteren Marknesse.nl | K9: 0.04381256944 | L9: 0.0056915625
A10: 6 | B10: 1 | C10: Jazlin Ruinermans | D10: 0.0127099537 | E10: v | F10: 15.40787149 | H10: 6 | I10: 5 | J10: Dujob | K10: 0.0451005787 | L10: 0.006979571759
A11: 7 | B11: 2 | C11: Priscilla Freke | D11: 0.01311284722 | E11: v | F11: 14.93446313 | H11: 7 | I11: 20 | J11: Creil | K11: 0.04544854167 | L11: 0.007327534722
A12: 8 | B12: 28 | C12: Boguslaw Korcz | D12: 0.01311828704 | F12: 14.92827019 | H12: 8 | I12: 13 | J12: KLIF18 ladies | K12: 0.0459290625 | L12: 0.007808055556
A13: 9 | B13: 13 | C13: Margo Ras | D13: 0.013440625 | E13: v | F13: 14.57025498 | H13: 9 | I13: 52 | J13: Pool-der run4fun | K13: 0.04667615741 | L13: 0.008555150463
A14: 10 | B14: 11 | C14: Joost Potters | D14: 0.01345578704 | F14: 14.55383716 | H14: 10 | I14: 34 | J14: Team 't Voorhuys | K14: 0.04682372685 | L14: 0.008702719907
A15: 11 | B15: 7 | C15: Meinder Buynink | D15: 0.01390856481 | F15: 14.08005326 | H15: 11 | I15: 9 | J15: VAN BLOOIS SPORTADVIES | K15: 0.04741269676 | L15: 0.009291689815
A16: 12 | B16: 6 | C16: Siem Sweep | D16: 0.01395891204 | F16: 14.0292691 | H16: 12 | I16: 39 | J16: Suplacon | K16: 0.04781510417 | L16: 0.009694097222
A17: 13 | B17: 38 | C17: Roan Tolsma | D17: 0.01410138889 | F17: 13.88752093 | H17: 13 | I17: 27 | J17: Running Team Espel | K17: 0.04808564815 | L17: 0.009964641204
A18: 14 | B18: 8 | C18: Tom Vermunt | D18: 0.01443414352 | F18: 13.56736775 | H18: 14 | I18: 21 | J18: 050media | K18: 0.04833761574 | L18: 0.0102166088
A19: 15 | B19: 5 | C19: Willem de Vries | D19: 0.01460810185 | F19: 13.40580284 | H19: 15 | I19: 6 | J19: Running Ruijters | K19: 0.04840069444 | L19: 0.0102796875
A20: 16 | B20: 12 | C20: Sarah Visscher | D20: 0.01469131944 | E20: v | F20: 13.32986694 | H20: 16 | I20: 29 | J20: Waterman Onions Pink Ladies | K20: 0.04882385417 | L20: 0.01070284722
A21: 17 | B21: 33 | C21: ramon vschendel | D21: 0.01491597222 | F21: 13.12910284 | H21: 17 | I21: 32 | J21: Ber-di-do | K21: 0.04883212963 | L21: 0.01071112269
A22: 18 | B22: 32 | C22: Marjanne Sloots | D22: 0.01492638889 | E22: v | F22: 13.11994045 | H22: 18 | I22: 22 | J22: Tollebeek in beweging | K22: 0.04895686343 | L22: 0.01083585648
A23: 19 | B23: 44 | C23: Rudi Verwer | D23: 0.01519293981 | F23: 12.88975904 | H23: 19 | I23: 14 | J23: Vivan komt dr’an | K23: 0.04896921296 | L23: 0.01084820602
A24: 20 | B24: 17 | C24: Hans Jurgen Knapmann | D24: 0.01520532407 | F24: 12.87926074 | H24: 20 | I24: 36 | J24: Schol op Urk | K24: 0.04940434028 | L24: 0.01128333333
A25: 21 | B25: 47 | C25: Jan Pieter Baarssen | D25: 0.01533333333 | F25: 12.77173913 | H25: 21 | I25: 30 | J25: Autofirst Minnaard | K25: 0.04995739583 | L25: 0.01183638889
A26: 22 | B26: 41 | C26: Karel Kooij | D26: 0.01536875 | F26: 12.74230717 | H26: 22 | I26: 11 | J26: Kraggenburg 4 | K26: 0.04995983796 | L26: 0.01183883102
A27: 23 | B27: 21 | C27: Niek Hessels | D27: 0.01554050926 | F27: 12.60147464 | H27: 23 | I27: 51 | J27: Van Urk voeding | K27: 0.05013391204 | L27: 0.01201290509
A28: 24 | B28: 39 | C28: Vera te Riele | D28: 0.01554814815 | E28: v | F28: 12.59528347 | H28: 24 | I28: 12 | J28: Hekwerkwebshop.nl | K28: 0.05023017361 | L28: 0.01210916667
A29: 25 | B29: 19 | C29: Selina de Jong | D29: 0.01564259259 | E29: v | F29: 12.5192376 | H29: 25 | I29: 19 | J29: STC Rutten | K29: 0.05052277778 | L29: 0.01240177083
A30: 26 | B30: 36 | C30: Linda de Boer | D30: 0.01565335648 | E30: v | F30: 12.51062886 | H30: 26 | I30: 10 | J30: RUN TEAM MARKNESSE | K30: 0.05097222222 | L30: 0.01285121528
A31: 27 | B31: 52 | C31: Marcin | D31: 0.01579050926 | F31: 12.40196438 | H31: 27 | I31: 25 | J31: Hardloop groep Ens | K31: 0.05102829861 | L31: 0.01290729167
A32: 28 | B32: 9 | C32: Ylva Snoek | D32: 0.01580821759 | E32: v | F32: 12.38807172 | H32: 28 | I32: 17 | J32: SAMEN ONDER WEG | K32: 0.0511 | L32: 0.01297899306
A33: 29 | B33: 49 | C33: Lubbert van Otterloo | D33: 0.01583101852 | F33: 12.37022957 | H33: 29 | I33: 8 | J33: Hardloopteam Bant | K33: 0.05129664352 | L33: 0.01317563657
A34: 30 | B34: 18 | C34: Adriaan Bootsma | D34: 0.01584548611 | F34: 12.35893503 | H34: 30 | I34: 55 | J34: Fifty-Five | K34: 0.05183251157 | L34: 0.01371150463
A35: 31 | B35: 34 | C35: Robbin Gerritsen | D35: 0.01586828704 | F35: 12.34117664 | H35: 31 | I35: 33 | J35: woensdagavondlopers | K35: 0.05204178241 | L35: 0.01392077546
A36: 32 | B36: 50 | C36: Jantine van der Linde | D36: 0.0159431713 | E36: v | F36: 12.28321077 | H36: 32 | I36: 46 | J36: Hoekstra Assurantie B.V. | K36: 0.05204436343 | L36: 0.01392335648
A37: 33 | B37: 43 | C37: Peter Lens | D37: 0.01600717593 | F37: 12.2340964 | H37: 33 | I37: 42 | J37: Kinderopvang Pipo | K37: 0.05220917824 | L37: 0.0140881713
A38: 34 | B38: 23 | C38: Auke Pasterkamp | D38: 0.01611053241 | F38: 12.15560904 | H38: 34 | I38: 49 | J38: Flynth | K38: 0.05240891204 | L38: 0.01428790509
A39: 35 | B39: 20 | C39: Kris van Valburg | D39: 0.01611921296 | E39: v | F39: 12.14906297 | H39: 35 | I39: 37 | J39: Van Staveren | K39: 0.05246030093 | L39: 0.01433929398
A40: 36 | B40: 14 | C40: Paul Benjamins | D40: 0.01624513889 | F40: 12.05488821 | H40: 36 | I40: 7 | J40: ASV Rutten | K40: 0.05271585648 | L40: 0.01459484954
A41: 37 | B41: 10 | C41: Bennie Janssen | D41: 0.01629282407 | F41: 12.01960645 | H41: 37 | I41: 56 | J41: De Broodlopers | K41: 0.05295049769 | L41: 0.01482949074
A42: 38 | B42: 42 | C42: Cynthia | D42: 0.01638506944 | E42: v | F42: 11.95193795 | H42: 38 | I42: 15 | J42: Aves | K42: 0.05299802083 | L42: 0.01487701389
A43: 39 | B43: 29 | C43: Isabel van Kuijk | D43: 0.01666319444 | E43: v | F43: 11.75244843 | H43: 39 | I43: 44 | J43: Tafelronde Noordoostpolder | K43: 0.05325196759 | L43: 0.01513096065
A44: 40 | B44: 24 | C44: Alko Tolner | D44: 0.01682384259 | F44: 11.6402262 | H44: 40 | I44: 38 | J44: Vegterlopers | K44: 0.0536943287 | L44: 0.01557332176
A45: 41 | B45: 35 | C45: Sylwia Lidwa | D45: 0.01715729167 | E45: v | F45: 11.41400036 | H45: 41 | I45: 23 | J45: Seaconcept | K45: 0.05381724537 | L45: 0.01569623843
A46: 42 | B46: 16 | C46: Margo Hanson | D46: 0.01750486111 | E46: v | F46: 11.18736859 | H46: 42 | I46: 54 | J46: De Dijkies | K46: 0.05396890046 | L46: 0.01584789352
A47: 43 | B47: 40 | C47: Judith de Visser | D47: 0.01759502315 | E47: v | F47: 11.13004124 | H47: 43 | I47: 47 | J47: CrossFit Urk | K47: 0.05402314815 | L47: 0.0159021412
A48: 44 | B48: 54 | C48: Anneleen Dijkstra | D48: 0.01766516204 | E48: v | F48: 11.08584982 | H48: 44 | I48: 50 | J48: Nick & de rest | K48: 0.05404989583 | L48: 0.01592888889
A49: 45 | B49: 15 | C49: Greta Procee | D49: 0.01769803241 | E49: v | F49: 11.06526018 | H49: 45 | I49: 31 | J49: fam.Dekker Draaft Door | K49: 0.0542146875 | L49: 0.01609368056
A50: 46 | B50: 37 | C50: Pim Meijer | D50: 0.01775231481 | F50: 11.03142522 | H50: 46 | I50: 28 | J50: Waterman Onions 1 | K50: 0.05472118056 | L50: 0.01660017361
A51: 47 | B51: 25 | C51: Ingrid Dohmen | D51: 0.018171875 | E51: v | F51: 10.77672686 | H51: 47 | I51: 18 | J51: Fit Fun/ Anytime | K51: 0.05502280093 | L51: 0.01690179398
A52: 48 | B52: 22 | C52: Trudy van der Pol | D52: 0.01851469907 | E52: v | F52: 10.57718154 | H52: 48 | I52: 40 | J52: Mercatus, lopen op z’n best | K52: 0.05526966435 | L52: 0.01714865741
A53: 49 | B53: 30 | C53: Kyra Ronner | D53: 0.01869560185 | E53: v | F53: 10.4748344 | H53: 49 | I53: 16 | J53: Team Nagele | K53: 0.05559291667 | L53: 0.01747190972
A54: 50 | B54: 55 | C54: Anneke Aarnink | D54: 0.01905219907 | E54: v | F54: 10.27877845 | H54: 50 | I54: 35 | J54: Waterman Onions 2 | K54: 0.0559228125 | L54: 0.01780180556
A55: 51 | B55: 31 | C55: Iris Vroegop | D55: 0.01927210648 | E55: v | F55: 10.16149083 | H55: 51 | I55: 41 | J55: Advies en Kies en Runners | K55: 0.05795613426 | L55: 0.01983512731
A56: 52 | B56: 46 | C56: Wilma Harteveld | D56: 0.01940127315 | E56: v | F56: 10.0938393 | H56: 52 | I56: 43 | J56: Lerøy Seafood NL | K56: 0.05811493056 | L56: 0.01999392361
A57: 53 | B57: 56 | C57: Meghan van Lent | D57: 0.0197068287 | E57: v | F57: 9.937333717 | H57: 53 | I57: 45 | J57: Berechja College | K57: 0.05841851852 | L57: 0.02029751157
A58: 54 | B58: 45 | C58: John Dam | D58: 0.02152777778 | F58: 9.096774194 | H58: 54 | I58: 24 | J58: Ter Haar Family & Friends | K58: 0.05852615741 | L58: 0.02040515046

Sheet 3K
A1: Etappeuitslag Voorhuys 12-dorpenloop AV NOP 2 april 2022
A2: Uitslag van deze etappe. De tijd is de brutotijd | H2: Uitslag t/m deze etappe. De tijd is de som van de nettotijden.
A3: Marknesse - Kraggenburg | D3: 5.72 | E3: km | H3: Marknesse - Kraggenburg
A4: nr | B4: team | C4: Naam loper | D4: Tijd | F4: km/h | H4: nr | I4: team | J4: Teamnaam | K4: Tijd | L4: ∆
A5: 1 | B5: 2 | C5: Thomas Straathof | D5: 0.01379826389 | F5: 17.2727044 | H5: 1 | I5: 2 | J5: hardloopbegeleidingopmaat/klif 18 | K5: 0.05191927083 | L5: 0
A6: 2 | B6: 8 | C6: Max Bouma | D6: 0.01438206019 | F6: 16.57157113 | H6: 2 | I6: 4 | J6: Klif 18 | K6: 0.05603447917 | L6: 0.004115208333
A7: 3 | B7: 4 | C7: Lucas Rustenburg | D7: 0.01464467593 | F7: 16.27440133 | H7: 3 | I7: 1 | J7: De Corner | K7: 0.05733405093 | L7: 0.005414780093
A8: 4 | B8: 6 | C8: Menno Ruijter | D8: 0.01530868056 | F8: 15.56850915 | H8: 4 | I8: 3 | J8: Quick Jewels | K8: 0.0598537037 | L8: 0.00793443287
A9: 5 | B9: 37 | C9: Robin Boersma | D9: 0.01534814815 | F9: 15.5284749 | H9: 5 | I9: 26 | J9: van Vilsteren Marknesse.nl | K9: 0.06142888889 | L9: 0.009509618056
A10: 6 | B10: 10 | C10: Chris Berndsen | D10: 0.01555972222 | F10: 15.31732572 | H10: 6 | I10: 5 | J10: Dujob | K10: 0.06282071759 | L10: 0.01090144676
A11: 7 | B11: 47 | C11: Kobus Bos | D11: 0.0157224537 | F11: 15.15878741 | H11: 7 | I11: 13 | J11: KLIF18 ladies | K11: 0.06338302083 | L11: 0.01146375
A12: 8 | B12: 7 | C12: Ruud Burger | D12: 0.01601724537 | F12: 14.87979536 | H12: 8 | I12: 20 | J12: Creil | K12: 0.06342104167 | L12: 0.01150177083
A13: 9 | B13: 11 | C13: Jesper Oosterwijk | D13: 0.01671284722 | F13: 14.26048657 | H13: 9 | I13: 6 | J13: Running Ruijters | K13: 0.063709375 | L13: 0.01179010417
A14: 10 | B14: 36 | C14: Juan Tol | D14: 0.01689259259 | F14: 14.10874808 | H14: 10 | I14: 32 | J14: Ber-di-do | K14: 0.06490233796 | L14: 0.01298306713
A15: 11 | B15: 49 | C15: Stephan Wiersma | D15: 0.01691388889 | F15: 14.09098374 | H15: 11 | I15: 34 | J15: Team 't Voorhuys | K15: 0.06500101852 | L15: 0.01308174769
A16: 12 | B16: 3 | C16: Pieter Buter | D16: 0.01695115741 | F16: 14.06000355 | H16: 12 | I16: 8 | J16: Hardloopteam Bant | K16: 0.0656787037 | L16: 0.01375943287
A17: 13 | B17: 46 | C17: Tim Brouwer | D17: 0.0174806713 | F17: 13.63410645 | H17: 13 | I17: 21 | J17: 050media | K17: 0.06603171296 | L17: 0.01411244213
A18: 14 | B18: 26 | C18: Mark | D18: 0.01761631944 | F18: 13.52912191 | H18: 14 | I18: 39 | J18: Suplacon | K18: 0.0661583912 | L18: 0.01423912037
A19: 15 | B19: 1 | C19: Agnes Olgers | D19: 0.01763009259 | E19: v | F19: 13.51855256 | H19: 15 | I19: 14 | J19: Vivan komt dr’an | K19: 0.0661800463 | L19: 0.01426077546
A20: 16 | B20: 21 | C20: Arjen Hollenga | D20: 0.01769409722 | F20: 13.46965207 | H20: 16 | I20: 36 | J20: Schol op Urk | K20: 0.06629693287 | L20: 0.01437766204
A21: 17 | B21: 5 | C21: Jan Willem Woord | D21: 0.01772013889 | F21: 13.44985696 | H21: 17 | I21: 9 | J21: VAN BLOOIS SPORTADVIES | K21: 0.0664059838 | L21: 0.01448671296
A22: 18 | B22: 32 | C22: Afke Kruis | D22: 0.01785578704 | E22: v | F22: 13.3476801 | H22: 18 | I22: 10 | J22: RUN TEAM MARKNESSE | K22: 0.06653194444 | L22: 0.01461267361
A23: 19 | B23: 18 | C23: Henk Pals | D23: 0.01790127315 | F23: 13.31376441 | H23: 19 | I23: 27 | J23: Running Team Espel | K23: 0.06662384259 | L23: 0.01470457176
A24: 20 | B24: 25 | C24: Frans Koeslag | D24: 0.01808321759 | F24: 13.17980786 | H24: 20 | I24: 11 | J24: Kraggenburg 4 | K24: 0.06667268519 | L24: 0.01475341435
A25: 21 | B25: 33 | C25: Linda Schwering | D25: 0.01813460648 | E25: v | F25: 13.14245962 | H25: 21 | I25: 37 | J25: Van Staveren | K25: 0.06780844907 | L25: 0.01588917824
A26: 22 | B26: 43 | C26: Jelle Romkes | D26: 0.01833680556 | F26: 12.99753835 | H26: 22 | I26: 52 | J26: Pool-der run4fun | K26: 0.06795011574 | L26: 0.01603084491
A27: 23 | B27: 39 | C27: Adrian Gliwka | D27: 0.01834328704 | F27: 12.99294575 | H27: 23 | I27: 33 | J27: woensdagavondlopers | K27: 0.06836292824 | L27: 0.01644365741
A28: 24 | B28: 27 | C28: Piet Veeke | D28: 0.01853819444 | F28: 12.85634014 | H28: 24 | I28: 22 | J28: Tollebeek in beweging | K28: 0.06844459491 | L28: 0.01652532407
A29: 25 | B29: 12 | C29: Adriaan Tiemen de Boer | D29: 0.01857627315 | F29: 12.82998648 | H29: 25 | I29: 51 | J29: Van Urk voeding | K29: 0.06872384259 | L29: 0.01680457176
A30: 26 | B30: 51 | C30: Albert Ras | D30: 0.01858993056 | F30: 12.82056071 | H30: 26 | I30: 7 | J30: ASV Rutten | K30: 0.06873310185 | L30: 0.01681383102
A31: 27 | B31: 54 | C31: Esmee Dijkstra | D31: 0.01877303241 | E31: v | F31: 12.695516 | H31: 27 | I31: 30 | J31: Autofirst Minnaard | K31: 0.06877880787 | L31: 0.01685953704
A32: 28 | B32: 30 | C32: Maikel Minnaard | D32: 0.01882141204 | F32: 12.66288272 | H32: 28 | I32: 12 | J32: Hekwerkwebshop.nl | K32: 0.06880644676 | L32: 0.01688717593
A33: 29 | B33: 17 | C33: Gerben Eenkhoorn | D33: 0.01885150463 | F33: 12.64266901 | H33: 29 | I33: 25 | J33: Hardloop groep Ens | K33: 0.0691115162 | L33: 0.01719224537
A34: 30 | B34: 15 | C34: Jaqueline Koets | D34: 0.01897013889 | E34: v | F34: 12.56360508 | H34: 30 | I34: 49 | J34: Flynth | K34: 0.06932280093 | L34: 0.01740353009
A35: 31 | B35: 9 | C35: Kees Regelink | D35: 0.01899328704 | F35: 12.54829313 | H35: 31 | I35: 46 | J35: Hoekstra Assurantie B.V. | K35: 0.06952503472 | L35: 0.01760576389
A36: 32 | B36: 44 | C36: Arjan Vaandrager | D36: 0.01903993056 | F36: 12.51755266 | H36: 32 | I36: 47 | J36: CrossFit Urk | K36: 0.06974560185 | L36: 0.01782633102
A37: 33 | B37: 14 | C37: Anna Heemskerk | D37: 0.01912314815 | E37: v | F37: 12.46308042 | H37: 33 | I37: 17 | J37: SAMEN ONDER WEG | K37: 0.06995150463 | L37: 0.0180322338
A38: 34 | B38: 13 | C38: Barbara Kaptein | D38: 0.01939328704 | E38: v | F38: 12.28947588 | H38: 34 | I38: 15 | J38: Aves | K38: 0.07007114583 | L38: 0.018151875
A39: 35 | B39: 56 | C39: Erwin Koolhof | D39: 0.01947361111 | F39: 12.23878468 | H39: 35 | I39: 54 | J39: De Dijkies | K39: 0.07086462963 | L39: 0.0189453588
A40: 36 | B40: 22 | C40: Jacco van Breugel | D40: 0.01948773148 | F40: 12.22991673 | H40: 36 | I40: 29 | J40: Waterman Onions Pink Ladies | K40: 0.07091583333 | L40: 0.0189965625
A41: 37 | B41: 20 | C41: Corine Boonen | D41: 0.01996944444 | E41: v | F41: 11.93490054 | H41: 37 | I41: 42 | J41: Kinderopvang Pipo | K41: 0.07110584491 | L41: 0.01918657407
A42: 38 | B42: 45 | C42: Maarten Post | D42: 0.02016041667 | E42: v | F42: 11.82184561 | H42: 38 | I42: 19 | J42: STC Rutten | K42: 0.07206298611 | L42: 0.02014371528
A43: 39 | B43: 34 | C43: Daphne Hellendoorn | D43: 0.02019699074 | E43: v | F43: 11.80043782 | H43: 39 | I43: 44 | J43: Tafelronde Noordoostpolder | K43: 0.07229189815 | L43: 0.02037262731
A44: 40 | B44: 28 | C44: Naomi Waterman | D44: 0.02059594907 | E44: v | F44: 11.57185486 | H44: 40 | I44: 56 | J44: De Broodlopers | K44: 0.0724241088 | L44: 0.02050483796
A45: 41 | B45: 23 | C45: Hans Hamersma | D45: 0.02075972222 | F45: 11.48056466 | H45: 41 | I45: 18 | J45: Fit Fun/ Anytime | K45: 0.07292407407 | L45: 0.02100480324
A46: 42 | B46: 38 | C46: Cor Vegterlo | D46: 0.0209818287 | F46: 11.35903532 | H46: 42 | I46: 28 | J46: Waterman Onions 1 | K46: 0.07325753472 | L46: 0.02133826389
A47: 43 | B47: 42 | C47: Judith | D47: 0.0209962963 | E47: v | F47: 11.35120833 | H47: 43 | I47: 50 | J47: Nick & de rest | K47: 0.07327333333 | L47: 0.0213540625
A48: 44 | B48: 50 | C48: Floortje Ruijter | D48: 0.021359375 | E48: v | F48: 11.15825408 | H48: 44 | I48: 23 | J48: Seaconcept | K48: 0.07457696759 | L48: 0.02265769676
A49: 45 | B49: 35 | C49: Taco ten Brinke | D49: 0.02139050926 | F49: 11.14201305 | H49: 45 | I49: 38 | J49: Vegterlopers | K49: 0.07467615741 | L49: 0.02275688657
A50: 46 | B50: 40 | C50: Johan van Buiten | D50: 0.02149467593 | F50: 11.08801706 | H50: 46 | I50: 55 | J50: Fifty-Five | K50: 0.07491503472 | L50: 0.02299576389
A51: 47 | B51: 16 | C51: Corine de Vries | D51: 0.02169548611 | E51: v | F51: 10.98538803 | H51: 47 | I51: 16 | J51: Team Nagele | K51: 0.07511885417 | L51: 0.02319958333
A52: 48 | B52: 41 | C52: Peter Haikens | D52: 0.0218212963 | F52: 10.92205202 | H52: 48 | I52: 43 | J52: Lerøy Seafood NL | K52: 0.07645173611 | L52: 0.02453246528
A53: 49 | B53: 24 | C53: Denise Lassche | D53: 0.02193564815 | E53: v | F53: 10.86511471 | H53: 49 | I53: 45 | J53: Berechja College | K53: 0.07656289352 | L53: 0.02464362269
A54: 50 | B54: 31 | C54: Henk Dekker | D54: 0.02238125 | F54: 10.64879456 | H54: 50 | I54: 31 | J54: fam.Dekker Draaft Door | K54: 0.0765959375 | L54: 0.02467666667
A55: 51 | B55: 55 | C55: Bauke Hoekstra | D55: 0.02308252315 | F55: 10.32527215 | H55: 51 | I55: 40 | J55: Mercatus, lopen op z’n best | K55: 0.07676434028 | L55: 0.02484506944
A56: 52 | B56: 52 | C56: Magda | D56: 0.02363773148 | E56: v | F56: 10.08274984 | H56: 52 | I56: 35 | J56: Waterman Onions 2 | K56: 0.07731332176 | L56: 0.02539405093
A57: 53 | B57: 19 | C57: Andrina Weerman | D57: 0.02393356481 | E57: v | F57: 9.958120956 | H57: 53 | I57: 24 | J57: Ter Haar Family & Friends | K57: 0.07826824074 | L57: 0.02634896991
A58: 54 | B58: 29 | C58: Vroukje Romkes | D58: 0.02454664352 | E58: v | F58: 9.709406223 | H58: 54 | I58: 41 | J58: Advies en Kies en Runners | K58: 0.07977743056 | L58: 0.02785815972

Sheet 4E
A1: Etappeuitslag Voorhuys 12-dorpenloop AV NOP 2 april 2022
A2: Uitslag van deze etappe. De tijd is de brutotijd | H2: Uitslag t/m deze etappe. De tijd is de som van de nettotijden.
A3: Kraggenburg - Ens | D3: 6.34 | E3: km | H3: Kraggenburg - Ens
A4: nr | B4: team | C4: Naam loper | D4: Tijd | F4: km/h | H4: nr | I4: team | J4: Teamnaam | K4: Tijd | L4: ∆
A5: 1 | B5: 2 | C5: Nathan Uitslag | D5: 0.0154880787 | F5: 17.05612889 | H5: 1 | I5: 2 | J5: hardloopbegeleidingopmaat/klif 18 | K5: 0.06740734954 | L5: 0
A6: 2 | B6: 4 | C6: Kees Kramer | D6: 0.015759375 | F6: 16.76250909 | H6: 2 | I6: 4 | J6: Klif 18 | K6: 0.07179385417 | L6: 0.00438650463
A7: 3 | B7: 6 | C7: Nick Ruijter | D7: 0.01595578704 | F7: 16.55616649 | H7: 3 | I7: 1 | J7: De Corner | K7: 0.07359467593 | L7: 0.006187326389
A8: 4 | B8: 25 | C8: Riekus Nijmijer | D8: 0.01612210648 | F8: 16.38536918 | H8: 4 | I8: 3 | J8: Quick Jewels | K8: 0.07745266204 | L8: 0.0100453125
A9: 5 | B9: 8 | C9: Dennis Seine | D9: 0.01640972222 | F9: 16.09818028 | H9: 5 | I9: 26 | J9: van Vilsteren Marknesse.nl | K9: 0.07907842593 | L9: 0.01167107639
A10: 6 | B10: 3 | C10: Geert Hemelrijk | D10: 0.01759895833 | F10: 15.01035809 | H10: 6 | I10: 6 | J10: Running Ruijters | K10: 0.07966516204 | L10: 0.0122578125
A11: 7 | B11: 26 | C11: Gaston | D11: 0.01764953704 | F11: 14.96734255 | H11: 7 | I11: 5 | J11: Dujob | K11: 0.08074155093 | L11: 0.01333420139
A12: 8 | B12: 17 | C12: Rene Vernooy | D12: 0.0176900463 | F12: 14.93306814 | H12: 8 | I12: 8 | J12: Hardloopteam Bant | K12: 0.08208842593 | L12: 0.01468107639
A13: 9 | B13: 5 | C13: Johan Berkhout | D13: 0.01792083333 | F13: 14.74075796 | H13: 9 | I13: 13 | J13: KLIF18 ladies | K13: 0.08243395833 | L13: 0.0150266088
A14: 10 | B14: 1 | C14: Jolijn Zijlstra | D14: 0.01806736111 | E14: v | F14: 14.62120921 | H14: 10 | I14: 21 | J14: 050media | K14: 0.08450650463 | L14: 0.01709915509
A15: 11 | B15: 12 | C15: Simon Bakker | D15: 0.01889456019 | F15: 13.98109636 | H15: 11 | I15: 25 | J15: Hardloop groep Ens | K15: 0.08523362269 | L15: 0.01782627315
A16: 12 | B16: 10 | C16: Joan Scholtens | D16: 0.01941134259 | F16: 13.60888179 | H16: 12 | I16: 32 | J16: Ber-di-do | K16: 0.085414375 | L16: 0.01800702546
A17: 13 | B17: 14 | C17: Richard Heemskerk | D17: 0.0198974537 | F17: 13.27640564 | H17: 13 | I17: 11 | J17: Kraggenburg 4 | K17: 0.08542549769 | L17: 0.01801814815
A18: 14 | B18: 18 | C18: Klaas Doornbos | D18: 0.02004178241 | F18: 13.18079706 | H18: 14 | I18: 10 | J18: RUN TEAM MARKNESSE | K18: 0.08594328704 | L18: 0.0185359375
A19: 15 | B19: 39 | C19: Jory Cornelis | D19: 0.02011481481 | F19: 13.13294053 | H19: 15 | I19: 20 | J19: Creil | K19: 0.08601884259 | L19: 0.01861149306
A20: 16 | B20: 54 | C20: Ryon Dijkstra | D20: 0.02015752315 | F20: 13.10511538 | H20: 16 | I20: 14 | J20: Vivan komt dr’an | K20: 0.0860775 | L20: 0.01867015046
A21: 17 | B21: 42 | C21: Jarno | D21: 0.02016400463 | F21: 13.1009029 | H21: 17 | I21: 39 | J21: Suplacon | K21: 0.08627320602 | L21: 0.01886585648
A22: 18 | B22: 47 | C22: Hassan Hajji | D22: 0.02021111111 | F22: 13.07036833 | H22: 18 | I22: 9 | J22: VAN BLOOIS SPORTADVIES | K22: 0.08638858796 | L22: 0.01898123843
A23: 19 | B23: 37 | C23: Jorn Goos | D23: 0.02029571759 | F23: 13.01588207 | H23: 19 | I23: 36 | J23: Schol op Urk | K23: 0.08656828704 | L23: 0.0191609375
A24: 20 | B24: 29 | C24: Albert Jan van Dokkum | D24: 0.02039872685 | F24: 12.95015461 | H24: 20 | I24: 34 | J24: Team 't Voorhuys | K24: 0.08676258102 | L24: 0.01935523148
A25: 21 | B25: 40 | C25: Vincent v/d Weerd | D25: 0.02042523148 | F25: 12.93334996 | H25: 21 | I25: 27 | J25: Running Team Espel | K25: 0.08726354167 | L25: 0.01985619213
A26: 22 | B26: 46 | C26: Louwe Kapitein | D26: 0.02045300926 | F26: 12.91578483 | H26: 22 | I26: 17 | J26: SAMEN ONDER WEG | K26: 0.08764155093 | L26: 0.02023420139
A27: 23 | B27: 7 | C27: Erik Groen | D27: 0.0205037037 | F27: 12.88385116 | H27: 23 | I27: 12 | J27: Hekwerkwebshop.nl | K27: 0.08770100694 | L27: 0.02029365741
A28: 24 | B28: 32 | C28: Gerrit Knoeff | D28: 0.02051203704 | F28: 12.87861689 | H28: 24 | I28: 33 | J28: woensdagavondlopers | K28: 0.08781521991 | L28: 0.02040787037
A29: 25 | B29: 31 | C29: Michiel Tensen | D29: 0.02052071759 | F29: 12.87316905 | H29: 25 | I29: 37 | J29: Van Staveren | K29: 0.08810416667 | L29: 0.02069681713
A30: 26 | B30: 21 | C30: Esther Rijkelijkhuizen | D30: 0.0205275463 | E30: v | F30: 12.86888666 | H30: 26 | I30: 52 | J30: Pool-der run4fun | K30: 0.08818365741 | L30: 0.02077630787
A31: 27 | B31: 44 | C31: Melvin Kok | D31: 0.02057199074 | F31: 12.84108427 | H31: 27 | I31: 51 | J31: Van Urk voeding | K31: 0.08819509259 | L31: 0.02078774306
A32: 28 | B32: 27 | C32: Pim de Wit | D32: 0.02063969907 | F32: 12.79895922 | H32: 28 | I32: 7 | J32: ASV Rutten | K32: 0.08923680556 | L32: 0.02182945602
A33: 29 | B33: 24 | C33: Niek ter Haar | D33: 0.02076840278 | F33: 12.71964289 | H33: 29 | I33: 22 | J33: Tollebeek in beweging | K33: 0.08956346065 | L33: 0.02215611111
A34: 30 | B34: 11 | C34: Jolien Scholtens | D34: 0.02083645833 | E34: v | F34: 12.67809829 | H34: 30 | I34: 47 | J34: CrossFit Urk | K34: 0.08995671296 | L34: 0.02254936343
A35: 31 | B35: 56 | C35: Berend Groen | D35: 0.02091238426 | F35: 12.63206832 | H35: 31 | I35: 46 | J35: Hoekstra Assurantie B.V. | K35: 0.08997804398 | L35: 0.02257069444
A36: 32 | B36: 50 | C36: Gerard van Etten | D36: 0.02095868056 | F36: 12.60416494 | H36: 32 | I36: 49 | J36: Flynth | K36: 0.09058819444 | L36: 0.02318084491
A37: 33 | B37: 22 | C37: Jannes de Vries | D37: 0.02111886574 | F37: 12.50856319 | H37: 33 | I37: 54 | J37: De Dijkies | K37: 0.09102215278 | L37: 0.02361480324
A38: 34 | B38: 13 | C38: Jamie Jongman | D38: 0.02116770833 | E38: v | F38: 12.4797008 | H38: 34 | I38: 30 | J38: Autofirst Minnaard | K38: 0.09108228009 | L38: 0.02367493056
A39: 35 | B39: 49 | C39: Rick Steller | D39: 0.02126539352 | F39: 12.42237377 | H39: 35 | I39: 42 | J39: Kinderopvang Pipo | K39: 0.09126984954 | L39: 0.0238625
A40: 36 | B40: 33 | C40: annette hazenberg | D40: 0.02161365741 | E40: v | F40: 12.22221032 | H40: 36 | I40: 29 | J40: Waterman Onions Pink Ladies | K40: 0.09131456019 | L40: 0.02390721065
A41: 37 | B41: 51 | C41: Jeannette | D41: 0.02163472222 | E41: v | F41: 12.21031007 | H41: 37 | I41: 44 | J41: Tafelronde Noordoostpolder | K41: 0.09286388889 | L41: 0.02545653935
A42: 38 | B42: 16 | C42: Erwin Bogaard | D42: 0.02166215278 | F42: 12.19484829 | H42: 38 | I42: 18 | J42: Fit Fun/ Anytime | K42: 0.09296585648 | L42: 0.02555850694
A43: 39 | B43: 28 | C43: Wilco Besuijen | D43: 0.02204085648 | F43: 11.98531767 | H43: 39 | I43: 56 | J43: De Broodlopers | K43: 0.09333649306 | L43: 0.02592914352
A44: 40 | B44: 38 | C44: Anne Vegterlo | D44: 0.02208576389 | E44: v | F44: 11.96094769 | H44: 40 | I44: 15 | J44: Aves | K44: 0.09361304398 | L44: 0.02620569444
A45: 41 | B45: 9 | C45: Annie van der Linde | D45: 0.02220289352 | E45: v | F45: 11.89784865 | H45: 41 | I45: 50 | J45: Nick & de rest | K45: 0.09423201389 | L45: 0.02682466435
A46: 42 | B46: 23 | C46: Hans van Eunen | D46: 0.02229583333 | F46: 11.84825266 | H46: 42 | I46: 38 | J46: Vegterlopers | K46: 0.09455334491 | L46: 0.02714599537
A47: 43 | B47: 30 | C47: Rocus de Bruijne | D47: 0.02230347222 | F47: 11.84419466 | H47: 43 | I47: 19 | J47: STC Rutten | K47: 0.09518684028 | L47: 0.02777949074
A48: 44 | B48: 52 | C48: Gabi | D48: 0.02248171296 | E48: v | F48: 11.75029087 | H48: 44 | I48: 28 | J48: Waterman Onions 1 | K48: 0.0952983912 | L48: 0.02789104167
A49: 45 | B49: 36 | C49: Geraldine Molenaar | D49: 0.02252372685 | E49: v | F49: 11.72837286 | H49: 45 | I49: 16 | J49: Team Nagele | K49: 0.09678100694 | L49: 0.02937365741
A50: 46 | B50: 20 | C50: Arjan Harkema | D50: 0.02259780093 | F50: 11.68992804 | H50: 46 | I50: 23 | J50: Seaconcept | K50: 0.09687280093 | L50: 0.02946545139
A51: 47 | B51: 15 | C51: Molle Stuiver | D51: 0.02354189815 | F51: 11.2211286 | H51: 47 | I51: 31 | J51: fam.Dekker Draaft Door | K51: 0.09711665509 | L51: 0.02970930556
A52: 48 | B52: 43 | C52: Ruben Geerts | D52: 0.02367569444 | F52: 11.15771566 | H52: 48 | I52: 40 | J52: Mercatus, lopen op z’n best | K52: 0.09718957176 | L52: 0.02978222222
A53: 49 | B53: 35 | C53: Henry Dam | D53: 0.0239400463 | F53: 11.03450943 | H53: 49 | I53: 45 | J53: Berechja College | K53: 0.09862820602 | L53: 0.03122085648
A54: 50 | B54: 34 | C54: Vera Ton | D54: 0.02417951389 | E54: v | F54: 10.92522653 | H54: 50 | I54: 24 | J54: Ter Haar Family & Friends | K54: 0.09903664352 | L54: 0.03162929398
A55: 51 | B55: 45 | C55: Trudie de Vries | D55: 0.02451701389 | E55: v | F55: 10.7748304 | H55: 51 | I55: 55 | J55: Fifty-Five | K55: 0.1001183681 | L55: 0.03271101852
A56: 52 | B56: 41 | C56: Anneke Keizer | D56: 0.02486678241 | E56: v | F56: 10.62327495 | H56: 52 | I56: 43 | J56: Lerøy Seafood NL | K56: 0.1001274306 | L56: 0.03272008102
A57: 53 | B57: 19 | C57: Ulrike Weerman | D57: 0.0256931713 | E57: v | F57: 10.28159053 | H57: 53 | I57: 35 | J57: Waterman Onions 2 | K57: 0.1012533681 | L57: 0.03384601852
A58: 54 | B58: 55 | C58: Yke van der Vegt | D58: 0.0280037037 | E58: v | F58: 9.433276022 | H58: 54 | I58: 41 | J58: Advies en Kies en Runners | K58: 0.1021575347 | L58: 0.03475018519

Sheet 5N
A1: Etappeuitslag Voorhuys 12-dorpenloop AV NOP 2 april 2022
A2: Uitslag van deze etappe. De tijd is de brutotijd | H2: Uitslag t/m deze etappe. De tijd is de som van de nettotijden.
A3: Ens - Nagele | D3: 7.78 | E3: km | H3: Ens - Nagele
A4: nr | B4: team | C4: Naam loper | D4: Tijd | F4: km/h | H4: nr | I4: team | J4: Teamnaam | K4: Tijd | L4: ∆
A5: 1 | B5: 2 | C5: Vincent Lankhaar | D5: 0.01811944444 | F5: 17.89054116 | H5: 1 | I5: 2 | J5: hardloopbegeleidingopmaat/klif 18 | K5: 0.08552679398 | L5: 0
A6: 2 | B6: 6 | C6: Robin Ruijter | D6: 0.01885763889 | F6: 17.19020438 | H6: 2 | I6: 4 | J6: Klif 18 | K6: 0.09086491898 | L6: 0.005338125
A7: 3 | B7: 1 | C7: Jacob Snoek | D7: 0.01900011574 | F7: 17.06129958 | H7: 3 | I7: 1 | J7: De Corner | K7: 0.09259479167 | L7: 0.007067997685
A8: 4 | B8: 4 | C8: Jan Sinke | D8: 0.01907106481 | F8: 16.99782733 | H8: 4 | I8: 6 | J8: Running Ruijters | K8: 0.09852280093 | L8: 0.01299600694
A9: 5 | B9: 3 | C9: Leon Brands | D9: 0.02135868056 | F9: 15.1772796 | H9: 5 | I9: 3 | J9: Quick Jewels | K9: 0.09881134259 | L9: 0.01328454861
A10: 6 | B10: 32 | C10: Gerwin Dibbits | D10: 0.02187916667 | F10: 14.81622548 | H10: 6 | I10: 5 | J10: Dujob | K10: 0.1039006944 | L10: 0.01837390046
A11: 7 | B11: 18 | C11: Tim | D11: 0.02199351852 | F11: 14.73919084 | H11: 7 | I11: 26 | J11: van Vilsteren Marknesse.nl | K11: 0.1054320139 | L11: 0.01990521991
A12: 8 | B12: 19 | C12: Sietse de Vries | D12: 0.02204664352 | F12: 14.70367434 | H12: 8 | I12: 8 | J12: Hardloopteam Bant | K12: 0.1056856481 | L12: 0.02015885417
A13: 9 | B13: 10 | C13: Peter Schwering | D13: 0.02209259259 | F13: 14.67309304 | H13: 9 | I13: 20 | J13: Creil | K13: 0.1070135301 | L13: 0.02148673611
A14: 10 | B14: 25 | C14: Joost Maaskant | D14: 0.02217465278 | F14: 14.61879335 | H14: 10 | I14: 32 | J14: Ber-di-do | K14: 0.1072935417 | L14: 0.02176674769
A15: 11 | B15: 22 | C15: Eric Pelleboer | D15: 0.02223726852 | F15: 14.57762973 | H15: 11 | I15: 25 | J15: Hardloop groep Ens | K15: 0.1074082755 | L15: 0.02188148148
A16: 12 | B16: 44 | C16: Hans Langedijk | D16: 0.02242141204 | F16: 14.45790596 | H16: 12 | I16: 13 | J16: KLIF18 ladies | K16: 0.1076229167 | L16: 0.02209612269
A17: 13 | B17: 34 | C17: Twan Hakvoort | D17: 0.02298923611 | F17: 14.10080201 | H17: 13 | I17: 21 | J17: 050media | K17: 0.1078089352 | L17: 0.0222821412
A18: 14 | B18: 5 | C18: Jan Bakker | D18: 0.02315914352 | F18: 13.99735126 | H18: 14 | I18: 10 | J18: RUN TEAM MARKNESSE | K18: 0.1080358796 | L18: 0.02250908565
A19: 15 | B19: 21 | C19: Sebastiaan Bakker | D19: 0.02330243056 | F19: 13.91128131 | H19: 15 | I19: 11 | J19: Kraggenburg 4 | K19: 0.1092954051 | L19: 0.02376861111
A20: 16 | B20: 20 | C20: Iris Bakker | D20: 0.02332743056 | E20: v | F20: 13.89637259 | H20: 16 | I20: 34 | J20: Team 't Voorhuys | K20: 0.1097518171 | L20: 0.02422502315
A21: 17 | B21: 45 | C21: Sjoert Visser | D21: 0.02350138889 | F21: 13.79351102 | H21: 17 | I21: 27 | J21: Running Team Espel | K21: 0.10981125 | L21: 0.02428445602
A22: 18 | B22: 52 | C22: Maciek | D22: 0.02358923611 | F22: 13.74214346 | H22: 18 | I22: 14 | J22: Vivan komt dr’an | K22: 0.1100555093 | L22: 0.02452871528
A23: 19 | B23: 8 | C23: Han van Wegen | D23: 0.02359722222 | F23: 13.73749264 | H23: 19 | I23: 7 | J23: ASV Rutten | K23: 0.1112558681 | L23: 0.02572907407
A24: 20 | B24: 40 | C24: Ben Wentink | D24: 0.02378668981 | F24: 13.6280697 | H24: 20 | I24: 52 | J24: Pool-der run4fun | K24: 0.1117728935 | L24: 0.02624609954
A25: 21 | B25: 11 | C25: Mike Temmink | D25: 0.02386990741 | F25: 13.5805582 | H25: 21 | I25: 22 | J25: Tollebeek in beweging | K25: 0.1118007292 | L25: 0.02627393519
A26: 22 | B26: 14 | C26: Erwin van Loo | D26: 0.02397800926 | F26: 13.51933195 | H26: 22 | I26: 17 | J26: SAMEN ONDER WEG | K26: 0.1127546296 | L26: 0.02722783565
A27: 23 | B27: 7 | C27: Gwendolien Flokstra | D27: 0.024465625 | E27: v | F27: 13.24988291 | H27: 23 | I27: 37 | J27: Van Staveren | K27: 0.1128887731 | L27: 0.02736197917
A28: 24 | B28: 29 | C28: Bonnette van den Berg | D28: 0.02460706019 | E28: v | F28: 13.17372592 | H28: 24 | I28: 9 | J28: VAN BLOOIS SPORTADVIES | K28: 0.1130832639 | L28: 0.02755646991
A29: 25 | B29: 37 | C29: Stefan Wisse | D29: 0.02478460648 | F29: 13.079355 | H29: 25 | I29: 29 | J29: Waterman Onions Pink Ladies | K29: 0.1134609144 | L29: 0.02793412037
A30: 26 | B30: 54 | C30: Peter Smid | D30: 0.024796875 | F30: 13.07288385 | H30: 26 | I30: 51 | J30: Van Urk voeding | K30: 0.1139624537 | L30: 0.02843565972
A31: 27 | B31: 27 | C31: Petra Kramer | D31: 0.02505300926 | E31: v | F31: 12.93923071 | H31: 27 | I31: 12 | J31: Hekwerkwebshop.nl | K31: 0.1139670949 | L31: 0.02844030093
A32: 28 | B32: 17 | C32: Raimond Lubbers | D32: 0.0251130787 | F32: 12.9082806 | H32: 28 | I32: 36 | J32: Schol op Urk | K32: 0.1143292824 | L32: 0.02880248843
A33: 29 | B33: 51 | C33: Rinke | D33: 0.02576736111 | F33: 12.58051476 | H33: 29 | I33: 39 | J33: Suplacon | K33: 0.1144277199 | L33: 0.02890092593
A34: 30 | B34: 42 | C34: Enrico | D34: 0.02605775463 | F34: 12.44031465 | H34: 30 | I34: 18 | J34: Fit Fun/ Anytime | K34: 0.114959375 | L34: 0.02943258102
A35: 31 | B35: 31 | C35: Luuk Vroegop | D35: 0.02618541667 | F35: 12.37966425 | H35: 31 | I35: 44 | J35: Tafelronde Noordoostpolder | K35: 0.1152853009 | L35: 0.02975850694
A36: 32 | B36: 12 | C36: Dubbele de Boer | D36: 0.02626608796 | F36: 12.34164247 | H36: 32 | I36: 33 | J36: woensdagavondlopers | K36: 0.115570081 | L36: 0.03004328704
A37: 33 | B37: 26 | C37: Addy Peters | D37: 0.02635358796 | F37: 12.30066536 | H37: 33 | I37: 54 | J37: De Dijkies | K37: 0.1158190278 | L37: 0.0302922338
A38: 34 | B38: 9 | C38: Egon Boerema | D38: 0.02669467593 | F38: 12.14349511 | H38: 34 | I38: 19 | J38: STC Rutten | K38: 0.1172334838 | L38: 0.03170668981
A39: 35 | B39: 30 | C39: Ryan Bennik | D39: 0.02674027778 | F39: 12.12278606 | H39: 35 | I39: 47 | J39: CrossFit Urk | K39: 0.117322338 | L39: 0.03179554398
A40: 36 | B40: 50 | C40: Jarno Steenbergen | D40: 0.0268119213 | F40: 12.09039304 | H40: 36 | I40: 42 | J40: Kinderopvang Pipo | K40: 0.1173276042 | L40: 0.03180081019
A41: 37 | B41: 49 | C41: Theo van Steeg | D41: 0.02686400463 | F41: 12.06695246 | H41: 37 | I41: 49 | J41: Flynth | K41: 0.1174521991 | L41: 0.03192540509
A42: 38 | B42: 24 | C42: Marc Bakker | D42: 0.02687233796 | F42: 12.0632104 | H42: 38 | I42: 46 | J42: Hoekstra Assurantie B.V. | K42: 0.1176857986 | L42: 0.03215900463
A43: 39 | B43: 41 | C43: Nico Keizer | D43: 0.0269443287 | F43: 12.03097951 | H43: 39 | I43: 30 | J43: Autofirst Minnaard | K43: 0.1178225579 | L43: 0.03229576389
A44: 40 | B44: 28 | C44: Pieter Kuyper | D44: 0.02703506944 | F44: 11.99059863 | H44: 40 | I44: 40 | J44: Mercatus, lopen op z’n best | K44: 0.1209762616 | L44: 0.03544946759
A45: 41 | B45: 47 | C45: Rinke Oost | D45: 0.027365625 | F45: 11.84576149 | H45: 41 | I45: 50 | J45: Nick & de rest | K45: 0.1210439352 | L45: 0.0355171412
A46: 42 | B46: 38 | C46: Pim van der Maden | D46: 0.02769664352 | F46: 11.70418598 | H46: 42 | I46: 15 | J46: Aves | K46: 0.1213631597 | L46: 0.03583636574
A47: 43 | B47: 46 | C47: Jelle de Boer | D47: 0.02770775463 | F47: 11.69949247 | H47: 43 | I47: 56 | J47: De Broodlopers | K47: 0.1220979514 | L47: 0.03657115741
A48: 44 | B48: 15 | C48: Chris de Boer | D48: 0.02775011574 | F48: 11.68163296 | H48: 44 | I48: 45 | J48: Berechja College | K48: 0.1221295949 | L48: 0.03660280093
A49: 45 | B49: 33 | C49: frens heijn | D49: 0.02775486111 | F49: 11.6796357 | H49: 45 | I49: 38 | J49: Vegterlopers | K49: 0.1222499884 | L49: 0.03672319444
A50: 46 | B50: 36 | C50: Jan Pieter Schaak | D50: 0.02776099537 | F50: 11.67705489 | H50: 46 | I50: 28 | J50: Waterman Onions 1 | K50: 0.1223334606 | L50: 0.03680666667
A51: 47 | B51: 35 | C51: Phensri Schouten | D51: 0.02779895833 | E51: v | F51: 11.6611084 | H51: 47 | I51: 16 | J51: Team Nagele | K51: 0.1230546528 | L51: 0.0375278588
A52: 48 | B52: 55 | C52: Siewert de Jong | D52: 0.02790706019 | F52: 11.61593749 | H52: 48 | I52: 31 | J52: fam.Dekker Draaft Door | K52: 0.1233020718 | L52: 0.03777527778
A53: 49 | B53: 13 | C53: Marja Kramer | D53: 0.02798773148 | E53: v | F53: 11.58245594 | H53: 49 | I53: 24 | J53: Ter Haar Family & Friends | K53: 0.1259089815 | L53: 0.0403821875
A54: 50 | B54: 39 | C54: Otis Robert | D54: 0.02815451389 | F54: 11.5138435 | H54: 50 | I54: 35 | J54: Waterman Onions 2 | K54: 0.1262724306 | L54: 0.04074563657
A55: 51 | B55: 56 | C55: Stefan de Goede | D55: 0.02876145833 | F55: 11.27087031 | H55: 51 | I55: 23 | J55: Seaconcept | K55: 0.1268162037 | L55: 0.04128940972
A56: 52 | B56: 16 | C56: Janine Bernard | D56: 0.02919293981 | E56: v | F56: 11.10428305 | H56: 52 | I56: 55 | J56: Fifty-Five | K56: 0.1280254282 | L56: 0.04249863426
A57: 53 | B57: 23 | C57: Lesley de Visser | D57: 0.02994340278 | F57: 10.82597957 | H57: 53 | I57: 41 | J57: Advies en Kies en Runners | K57: 0.1291018634 | L57: 0.04357506944
A58: 54 | B58: 43 | C58: Willem de Vries | D58: 0.03140428241 | F58: 10.3223714 | H58: 54 | I58: 43 | J58: Lerøy Seafood NL | K58: 0.131531713 | L58: 0.04600491898

Sheet 6T
A1: Etappeuitslag Voorhuys 12-dorpenloop AV NOP 2 april 2022
A2: Uitslag van deze etappe. De tijd is de brutotijd | H2: Uitslag t/m deze etappe. De tijd is de som van de nettotijden.
A3: Nagele - Tollebeek | D3: 5.31 | E3: km | H3: Nagele - Tollebeek
A4: nr | B4: team | C4: Naam loper | D4: Tijd | F4: km/h | H4: nr | I4: team | J4: Teamnaam | K4: Tijd | L4: ∆
A5: 1 | B5: 2 | C5: Leon Koch | D5: 0.01261851852 | F5: 17.53375404 | H5: 1 | I5: 2 | J5: hardloopbegeleidingopmaat/klif 18 | K5: 0.0981453125 | L5: 0
A6: 2 | B6: 7 | C6: Tom Loman | D6: 0.0139162037 | F6: 15.89873249 | H6: 2 | I6: 4 | J6: Klif 18 | K6: 0.1061396875 | L6: 0.007994375
A7: 3 | B7: 52 | C7: Sebastian | D7: 0.01467719907 | F7: 15.07440206 | H7: 3 | I7: 1 | J7: De Corner | K7: 0.1076311343 | L7: 0.009485821759
A8: 4 | B8: 3 | C8: Pieter Coenen | D8: 0.01477164352 | F8: 14.97802189 | H8: 4 | I8: 3 | J8: Quick Jewels | K8: 0.1135829861 | L8: 0.01543767361
A9: 5 | B9: 1 | C9: Maurice Mulder | D9: 0.01503634259 | F9: 14.71434949 | H9: 5 | I9: 6 | J9: Running Ruijters | K9: 0.1143596065 | L9: 0.01621429398
A10: 6 | B10: 47 | C10: Jeroen Sleurink | D10: 0.0152056713 | F10: 14.5504921 | H10: 6 | I10: 5 | J10: Dujob | K10: 0.1196810185 | L10: 0.02153570602
A11: 7 | B11: 20 | C11: Andrew Koziarski | D11: 0.01522337963 | F11: 14.53356649 | H11: 7 | I11: 8 | J11: Hardloopteam Bant | K11: 0.1217825231 | L11: 0.02363721065
A12: 8 | B12: 4 | C12: Jan Jongman | D12: 0.01527476852 | F12: 14.48467122 | H12: 8 | I12: 20 | J12: Creil | K12: 0.1222369097 | L12: 0.02409159722
A13: 9 | B13: 5 | C13: Kornelius Medendorp | D13: 0.01578032407 | F13: 14.02062461 | H13: 9 | I13: 26 | J13: van Vilsteren Marknesse.nl | K13: 0.1226475231 | L13: 0.02450221065
A14: 10 | B14: 30 | C14: Rémon Jansen | D14: 0.01578645833 | F14: 14.01517651 | H14: 10 | I14: 32 | J14: Ber-di-do | K14: 0.1239839352 | L14: 0.02583862269
A15: 11 | B15: 14 | C15: Rosalie Bakker | D15: 0.0158150463 | E15: v | F15: 13.98984207 | H15: 11 | I15: 14 | J15: Vivan komt dr’an | K15: 0.1242890509 | L15: 0.02614373843
A16: 12 | B16: 6 | C16: Anton Ruijter | D16: 0.01583680556 | F16: 13.97062048 | H16: 12 | I16: 21 | J16: 050media | K16: 0.1248190046 | L16: 0.02667369213
A17: 13 | B17: 15 | C17: Geert- Jan | D17: 0.0163525463 | F17: 13.53000297 | H17: 13 | I17: 13 | J17: KLIF18 ladies | K17: 0.1250629167 | L17: 0.02691760417
A18: 14 | B18: 19 | C18: Willem de Vries | D18: 0.01636342593 | F18: 13.52100721 | H18: 14 | I18: 7 | J18: ASV Rutten | K18: 0.1251720718 | L18: 0.02702675926
A19: 15 | B19: 18 | C19: Jan Willem de Boer | D19: 0.01645706019 | F19: 13.44407795 | H19: 15 | I19: 25 | J19: Hardloop groep Ens | K19: 0.1253056134 | L19: 0.02716030093
A20: 16 | B20: 44 | C20: Bart Loman | D20: 0.01651527778 | F20: 13.39668657 | H20: 16 | I20: 10 | J20: RUN TEAM MARKNESSE | K20: 0.1254351505 | L20: 0.02728983796
A21: 17 | B21: 51 | C21: Laurie Ras | D21: 0.01665960648 | E21: v | F21: 13.28062582 | H21: 17 | I21: 52 | J21: Pool-der run4fun | K21: 0.1264500926 | L21: 0.02830478009
A22: 18 | B22: 32 | C22: Martin de Jongh | D22: 0.01669039352 | F22: 13.25612843 | H22: 18 | I22: 11 | J22: Kraggenburg 4 | K22: 0.1265789699 | L22: 0.02843365741
A23: 19 | B23: 49 | C23: Chris van Otterloo | D23: 0.01688356481 | F23: 13.10446001 | H23: 19 | I23: 27 | J23: Running Team Espel | K23: 0.1271717708 | L23: 0.02902645833
A24: 20 | B24: 23 | C24: Jaap Post | D24: 0.01692650463 | F24: 13.07121611 | H24: 20 | I24: 34 | J24: Team 't Voorhuys | K24: 0.127400463 | L24: 0.02925515046
A25: 21 | B25: 21 | C25: Cor Dijkshoorn | D25: 0.01701006944 | F25: 13.00700157 | H25: 21 | I25: 51 | J25: Van Urk voeding | K25: 0.1289560995 | L25: 0.03081078704
A26: 22 | B26: 26 | C26: Youri van Vilsteren | D26: 0.01721550926 | F26: 12.85178363 | H26: 22 | I26: 9 | J26: VAN BLOOIS SPORTADVIES | K26: 0.1297892014 | L26: 0.03164388889
A27: 23 | B27: 17 | C27: Sjaco Wierda | D27: 0.01726365741 | F27: 12.81594014 | H27: 23 | I27: 17 | J27: SAMEN ONDER WEG | K27: 0.130018287 | L27: 0.03187297454
A28: 24 | B28: 11 | C28: Rens Hupkes | D28: 0.01728356481 | F28: 12.8011786 | H28: 24 | I28: 22 | J28: Tollebeek in beweging | K28: 0.1306796644 | L28: 0.03253435185
A29: 25 | B29: 16 | C29: Niels Poppe | D29: 0.01754826389 | F29: 12.60808485 | H29: 25 | I29: 29 | J29: Waterman Onions Pink Ladies | K29: 0.1309611227 | L29: 0.03281581019
A30: 26 | B30: 8 | C30: Annerieke Doornbos | D30: 0.01788541667 | E30: v | F30: 12.37041351 | H30: 26 | I30: 18 | J30: Fit Fun/ Anytime | K30: 0.1314164352 | L30: 0.03327112269
A31: 27 | B31: 25 | C31: Corne Doggen | D31: 0.01789733796 | F31: 12.36217366 | H31: 27 | I31: 44 | J31: Tafelronde Noordoostpolder | K31: 0.1318005787 | L31: 0.0336552662
A32: 28 | B32: 9 | C32: Heleen van Dijke | D32: 0.01856215278 | E32: v | F32: 11.91941488 | H32: 28 | I32: 47 | J32: CrossFit Urk | K32: 0.1325280093 | L32: 0.03438269676
A33: 29 | B33: 22 | C33: Corné Boons | D33: 0.01887893519 | F33: 11.71941096 | H33: 29 | I33: 12 | J33: Hekwerkwebshop.nl | K33: 0.1330164005 | L33: 0.03487108796
A34: 30 | B34: 54 | C34: Maarten Faber | D34: 0.01899143519 | F34: 11.64998842 | H34: 30 | I34: 37 | J34: Van Staveren | K34: 0.1330854167 | L34: 0.03494010417
A35: 31 | B35: 12 | C35: Steven Hoefnagel | D35: 0.01904930556 | F35: 11.61459662 | H35: 31 | I35: 36 | J35: Schol op Urk | K35: 0.1335721065 | L35: 0.03542679398
A36: 32 | B36: 42 | C36: Piet | D36: 0.01911550926 | F36: 11.57437121 | H36: 32 | I36: 19 | J36: STC Rutten | K36: 0.1335969097 | L36: 0.03545159722
A37: 33 | B37: 36 | C37: Julian van Bruggen | D37: 0.01924282407 | F37: 11.49779259 | H37: 33 | I37: 30 | J37: Autofirst Minnaard | K37: 0.1336090162 | L37: 0.0354637037
A38: 34 | B38: 27 | C38: Mariska van Strien | D38: 0.01928946759 | E38: v | F38: 11.46998998 | H38: 34 | I38: 39 | J38: Suplacon | K38: 0.1339178819 | L38: 0.03577256944
A39: 35 | B39: 10 | C39: Anke van Oorschot | D39: 0.01933252315 | E39: v | F39: 11.44444511 | H39: 35 | I39: 49 | J39: Flynth | K39: 0.1343357639 | L39: 0.03619045139
A40: 36 | B40: 31 | C40: Eelco Tulp | D40: 0.01933865741 | F40: 11.44081491 | H40: 36 | I40: 54 | J40: De Dijkies | K40: 0.134810463 | L40: 0.03666515046
A41: 37 | B41: 13 | C41: Babette Jongman | D41: 0.01937777778 | E41: v | F41: 11.41771789 | H41: 37 | I41: 46 | J41: Hoekstra Assurantie B.V. | K41: 0.1351628819 | L41: 0.03701756944
A42: 38 | B42: 46 | C42: Margriet de Boer | D42: 0.01941898148 | E42: v | F42: 11.39349148 | H42: 38 | I42: 33 | J42: woensdagavondlopers | K42: 0.1353883681 | L42: 0.03724305556
A43: 39 | B43: 29 | C43: Agnes Gnodde | D43: 0.01944467593 | E43: v | F43: 11.37843597 | H43: 39 | I43: 42 | J43: Kinderopvang Pipo | K43: 0.1364431134 | L43: 0.03829780093
A44: 40 | B44: 39 | C44: Ronyvan Almeida | D44: 0.01949016204 | F44: 11.35188099 | H44: 40 | I44: 15 | J44: Aves | K44: 0.137715706 | L44: 0.03957039352
A45: 41 | B45: 34 | C45: Renée Hellendoorn | D45: 0.01960960648 | E45: v | F45: 11.28273534 | H45: 41 | I45: 50 | J45: Nick & de rest | K45: 0.1387540394 | L45: 0.04060872685
A46: 42 | B46: 50 | C46: Jantien de Boer-Matthijsen | D46: 0.01967789352 | E46: v | F46: 11.24358152 | H46: 42 | I46: 38 | J46: Vegterlopers | K46: 0.1402781134 | L46: 0.04213280093
A47: 43 | B47: 41 | C47: Marien van Staalduine | D47: 0.01972210648 | F47: 11.21837569 | H47: 43 | I47: 45 | J47: Berechja College | K47: 0.1403569907 | L47: 0.04221167824
A48: 44 | B48: 33 | C48: theo willemsen | D48: 0.01981828704 | F48: 11.16393155 | H48: 44 | I48: 16 | J48: Team Nagele | K48: 0.1406029167 | L48: 0.04245760417
A49: 45 | B49: 56 | C49: Roland Kuper | D49: 0.01999988426 | F49: 11.06256402 | H49: 45 | I49: 56 | J49: De Broodlopers | K49: 0.1420978356 | L49: 0.04395252315
A50: 46 | B50: 38 | C50: Ingrid Schilstra | D50: 0.02003125 | E50: v | F50: 11.04524181 | H50: 46 | I50: 40 | J50: Mercatus, lopen op z’n best | K50: 0.1421830903 | L50: 0.04403777778
A51: 47 | B51: 37 | C51: Sander Wisse | D51: 0.02019664352 | F51: 10.95479057 | H51: 47 | I51: 31 | J51: fam.Dekker Draaft Door | K51: 0.1426407292 | L51: 0.04449541667
A52: 48 | B52: 45 | C52: Annelies Smaale | D52: 0.02025266204 | E52: v | F52: 10.92448981 | H52: 48 | I52: 23 | J52: Seaconcept | K52: 0.1437427083 | L52: 0.04559739583
A53: 49 | B53: 35 | C53: Ewout Wassink | D53: 0.02100532407 | F53: 10.53304387 | H53: 49 | I53: 28 | J53: Waterman Onions 1 | K53: 0.1442828356 | L53: 0.04613752315
A54: 50 | B54: 40 | C54: Julian van Buiten | D54: 0.0212068287 | F54: 10.43296021 | H54: 50 | I54: 35 | J54: Waterman Onions 2 | K54: 0.1472777546 | L54: 0.04913244213
A55: 51 | B55: 55 | C55: Rommy de Witte | D55: 0.02190162037 | E55: v | F55: 10.10199228 | H55: 51 | I55: 55 | J55: Fifty-Five | K55: 0.1477368866 | L55: 0.04959157407
A56: 52 | B56: 24 | C56: Jan Jonkman | D56: 0.02248460648 | F56: 9.840065477 | H56: 52 | I56: 24 | J56: Ter Haar Family & Friends | K56: 0.148393588 | L56: 0.05024827546
A57: 53 | B57: 43 | C57: Henk Brouwer | D57: 0.02350393519 | F57: 9.413317313 | H57: 53 | I57: 41 | J57: Advies en Kies en Runners | K57: 0.1488239699 | L57: 0.05067865741
A58: 54 | B58: 28 | C58: Gergana Koleva | D58: 0.02438819444 | E58: v | F58: 9.072012301 | H58: 54 | I58: 43 | J58: Lerøy Seafood NL | K58: 0.1550356481 | L58: 0.05689033565

Sheet 7U
A1: Etappeuitslag Voorhuys 12-dorpenloop AV NOP 2 april 2022
A2: Uitslag van deze etappe. De tijd is de brutotijd | H2: Uitslag t/m deze etappe. De tijd is de som van de nettotijden.
A3: Tollebeek - Urk | D3: 5 | E3: km | H3: Tollebeek - Urk
A4: nr | B4: team | C4: Naam loper | D4: Tijd | F4: km/h | H4: nr | I4: team | J4: Teamnaam | K4: Tijd | L4: ∆
A5: 1 | B5: 2 | C5: Jeroen Woltinge | D5: 0.01113333333 | F5: 18.71257485 | H5: 1 | I5: 2 | J5: hardloopbegeleidingopmaat/klif 18 | K5: 0.1092786458 | L5: 0
A6: 2 | B6: 1 | C6: Alie Snoek | D6: 0.01232048611 | E6: v | F6: 16.90950596 | H6: 2 | I6: 4 | J6: Klif 18 | K6: 0.1176948958 | L6: 0.00841625
A7: 3 | B7: 11 | C7: Kas van Egmond | D7: 0.01271030093 | F7: 16.39090487 | H7: 3 | I7: 1 | J7: De Corner | K7: 0.1187195718 | L7: 0.009440925926
A8: 4 | B8: 4 | C8: Tiny de Vries | D8: 0.01283912037 | E8: v | F8: 16.22644911 | H8: 4 | I8: 6 | J8: Running Ruijters | K8: 0.127940162 | L8: 0.0186615162
A9: 5 | B9: 7 | C9: Richard Schrijver | D9: 0.01292696759 | F9: 16.11617975 | H9: 5 | I9: 3 | J9: Quick Jewels | K9: 0.1284931713 | L9: 0.01921452546
A10: 6 | B10: 5 | C10: Johannes Berkhout | D10: 0.01294039352 | F10: 16.09945888 | H10: 6 | I10: 5 | J10: Dujob | K10: 0.132621412 | L10: 0.0233427662
A11: 7 | B11: 32 | C11: Mark de Jong | D11: 0.01299756944 | F11: 16.02863783 | H11: 7 | I11: 32 | J11: Ber-di-do | K11: 0.1369815046 | L11: 0.0277028588
A12: 8 | B12: 6 | C12: Richard Ruijter | D12: 0.01358055556 | F12: 15.34056044 | H12: 8 | I12: 8 | J12: Hardloopteam Bant | K12: 0.1372627315 | L12: 0.02798408565
A13: 9 | B13: 23 | C13: Jacob de Vries | D13: 0.01369016204 | F13: 15.2177405 | H13: 9 | I13: 7 | J13: ASV Rutten | K13: 0.1380990394 | L13: 0.02882039352
A14: 10 | B14: 30 | C14: Paul van de Kemp | D14: 0.01440092593 | F14: 14.46666238 | H14: 10 | I14: 20 | J14: Creil | K14: 0.1382178472 | L14: 0.02893920139
A15: 11 | B15: 21 | C15: Daan Hoving | D15: 0.01460127315 | F15: 14.26816218 | H15: 11 | I15: 26 | J15: van Vilsteren Marknesse.nl | K15: 0.138231088 | L15: 0.02895244213
A16: 12 | B16: 39 | C16: Kees Meun | D16: 0.01461064815 | F16: 14.25900694 | H16: 12 | I16: 14 | J16: Vivan komt dr’an | K16: 0.1387716551 | L16: 0.02949300926
A17: 13 | B17: 44 | C17: René van Meijel | D17: 0.01461967593 | F17: 14.25020188 | H17: 13 | I17: 10 | J17: RUN TEAM MARKNESSE | K17: 0.138867963 | L17: 0.02958931713
A18: 14 | B18: 3 | C18: Jakke Goosen | D18: 0.01491018519 | F18: 13.9725517 | H18: 14 | I18: 11 | J18: Kraggenburg 4 | K18: 0.1392892708 | L18: 0.030010625
A19: 15 | B19: 10 | C19: Maartje Masteling | D19: 0.01492534722 | E19: v | F19: 13.95835757 | H19: 15 | I19: 21 | J19: 050media | K19: 0.1394202778 | L19: 0.03014163194
A20: 16 | B20: 54 | C20: Annet Dijkstra | D20: 0.01501319444 | E20: v | F20: 13.87668255 | H20: 16 | I20: 25 | J20: Hardloop groep Ens | K20: 0.1396771759 | L20: 0.03039853009
A21: 17 | B21: 8 | C21: Tom Habers | D21: 0.01548020833 | F21: 13.45804455 | H21: 17 | I21: 13 | J21: KLIF18 ladies | K21: 0.1397098958 | L21: 0.03043125
A22: 18 | B22: 27 | C22: Peter van Strien | D22: 0.01555358796 | F22: 13.39455139 | H22: 18 | I22: 52 | J22: Pool-der run4fun | K22: 0.1425378009 | L22: 0.03325915509
A23: 19 | B23: 26 | C23: Arno Matthijssen | D23: 0.01558356481 | F23: 13.36878537 | H23: 19 | I23: 27 | J23: Running Team Espel | K23: 0.1427253588 | L23: 0.03344671296
A24: 20 | B24: 47 | C24: Albert Verhoeff | D24: 0.01561655093 | F24: 13.34054711 | H24: 20 | I24: 51 | J24: Van Urk voeding | K24: 0.143310787 | L24: 0.0340321412
A25: 21 | B25: 42 | C25: Anja | D25: 0.01580497685 | E25: v | F25: 13.18150196 | H25: 21 | I25: 34 | J25: Team 't Voorhuys | K25: 0.1435109954 | L25: 0.03423234954
A26: 22 | B26: 35 | C26: Erik Waterman | D26: 0.01583715278 | F26: 13.15472145 | H26: 22 | I26: 9 | J26: VAN BLOOIS SPORTADVIES | K26: 0.1445878472 | L26: 0.03530920139
A27: 23 | B27: 18 | C27: Johannes ( van Trientje) | D27: 0.01584872685 | F27: 13.14511476 | H27: 23 | I27: 17 | J27: SAMEN ONDER WEG | K27: 0.1454458912 | L27: 0.03616724537
A28: 24 | B28: 51 | C28: Liza Hoorn | D28: 0.01594965278 | E28: v | F28: 13.06193534 | H28: 24 | I28: 22 | J28: Tollebeek in beweging | K28: 0.1463485185 | L28: 0.03706987269
A29: 25 | B29: 41 | C29: Ingrid Timmer | D29: 0.01595972222 | E29: v | F29: 13.0536942 | H29: 25 | I29: 44 | J29: Tafelronde Noordoostpolder | K29: 0.1464202546 | L29: 0.0371416088
A30: 26 | B30: 25 | C30: Bianca de Olde | D30: 0.01596840278 | E30: v | F30: 13.0465981 | H30: 26 | I30: 29 | J30: Waterman Onions Pink Ladies | K30: 0.1469570602 | L30: 0.03767841435
A31: 27 | B31: 37 | C31: Hans Harleman | D31: 0.01598541667 | F31: 13.03271211 | H31: 27 | I31: 18 | J31: Fit Fun/ Anytime | K31: 0.147265162 | L31: 0.0379865162
A32: 28 | B32: 14 | C32: Josephina de Boer | D32: 0.01609178241 | E32: v | F32: 12.94656664 | H32: 28 | I32: 30 | J32: Autofirst Minnaard | K32: 0.1480099421 | L32: 0.0387312963
A33: 29 | B33: 24 | C33: Eva ter Haar | D33: 0.01610115741 | E33: v | F33: 12.93902842 | H33: 29 | I33: 47 | J33: CrossFit Urk | K33: 0.1481445602 | L33: 0.03886591435
A34: 30 | B34: 34 | C34: Jarno Spijker | D34: 0.01611053241 | F34: 12.93149898 | H34: 30 | I34: 19 | J34: STC Rutten | K34: 0.1481869097 | L34: 0.03890826389
A35: 31 | B35: 19 | C35: Maaike de Kroon | D35: 0.01621111111 | E35: v | F35: 12.85126799 | H35: 31 | I35: 12 | J35: Hekwerkwebshop.nl | K35: 0.148206088 | L35: 0.03892744213
A36: 32 | B36: 49 | C36: Ynze Scheffer | D36: 0.01622777778 | F36: 12.83806915 | H36: 32 | I36: 54 | J36: De Dijkies | K36: 0.148322338 | L36: 0.03904369213
A37: 33 | B37: 13 | C37: Tineke Schenk | D37: 0.0162744213 | E37: v | F37: 12.80127444 | H37: 33 | I37: 39 | J37: Suplacon | K37: 0.1485285301 | L37: 0.03924988426
A38: 34 | B38: 9 | C38: Grietje Romkes | D38: 0.01644293981 | E38: v | F38: 12.6700782 | H38: 34 | I38: 37 | J38: Van Staveren | K38: 0.1490708333 | L38: 0.0397921875
A39: 35 | B39: 12 | C39: Helena Bakker | D39: 0.01687743056 | E39: v | F39: 12.34390108 | H39: 35 | I39: 49 | J39: Flynth | K39: 0.1505635417 | L39: 0.04128489583
A40: 36 | B40: 31 | C40: Janneke Dekker | D40: 0.01695844907 | E40: v | F40: 12.28492844 | H40: 36 | I40: 42 | J40: Kinderopvang Pipo | K40: 0.1506675926 | L40: 0.04138894676
A41: 37 | B41: 17 | C41: Kirsten Wierda | D41: 0.01714178241 | E41: v | F41: 12.15353972 | H41: 37 | I41: 46 | J41: Hoekstra Assurantie B.V. | K41: 0.1519696528 | L41: 0.04269100694
A42: 38 | B42: 16 | C42: Marije Bogaard | D42: 0.01723831019 | E42: v | F42: 12.08548466 | H42: 38 | I42: 33 | J42: woensdagavondlopers | K42: 0.1531023727 | L42: 0.04382372685
A43: 39 | B43: 22 | C43: Hilde Roskam | D43: 0.01740983796 | E43: v | F43: 11.96641426 | H43: 39 | I43: 36 | J43: Schol op Urk | K43: 0.1536298611 | L43: 0.04435121528
A44: 40 | B44: 33 | C44: arie v tilburg | D44: 0.01771400463 | F44: 11.76093931 | H44: 40 | I44: 15 | J44: Aves | K44: 0.1538324769 | L44: 0.04455383102
A45: 41 | B45: 20 | C45: Tessa Koeman | D45: 0.01775659722 | E45: v | F45: 11.73272845 | H45: 41 | I45: 50 | J45: Nick & de rest | K45: 0.1553912269 | L45: 0.04611258102
A46: 42 | B46: 29 | C46: Loura Visser | D46: 0.01777326389 | E46: v | F46: 11.72172622 | H46: 42 | I46: 16 | J46: Team Nagele | K46: 0.1561173958 | L46: 0.04683875
A47: 43 | B47: 52 | C47: Karolina | D47: 0.01787523148 | E47: v | F47: 11.65486072 | H47: 43 | I47: 23 | J47: Seaconcept | K47: 0.1574328704 | L47: 0.04815422454
A48: 44 | B48: 15 | C48: Inge Scheper | D48: 0.01790752315 | E48: v | F48: 11.63384415 | H48: 44 | I48: 38 | J48: Vegterlopers | K48: 0.1576750926 | L48: 0.04839644676
A49: 45 | B49: 50 | C49: Hayley Faber | D49: 0.01848576389 | E49: v | F49: 11.2699337 | H49: 45 | I49: 31 | J49: fam.Dekker Draaft Door | K49: 0.1579033333 | L49: 0.0486246875
A50: 46 | B50: 28 | C50: Bep Dunnink | D50: 0.01849594907 | E50: v | F50: 11.26372767 | H50: 46 | I50: 45 | J50: Berechja College | K50: 0.1585053241 | L50: 0.04922667824
A51: 47 | B51: 46 | C51: Emma Snoek | D51: 0.01867418981 | E51: v | F51: 11.15621804 | H51: 47 | I51: 28 | J51: Waterman Onions 1 | K51: 0.1609291898 | L51: 0.05165054398
A52: 48 | B52: 40 | C52: Jan Zuidema | D52: 0.01894618056 | F52: 10.99605975 | H52: 48 | I52: 40 | J52: Mercatus, lopen op z’n best | K52: 0.1611292708 | L52: 0.051850625
A53: 49 | B53: 43 | C53: Sanne Rook | D53: 0.01910138889 | E53: v | F53: 10.90671126 | H53: 49 | I53: 56 | J53: De Broodlopers | K53: 0.1612089815 | L53: 0.05193033565
A54: 50 | B54: 38 | C54: José Schilstra | D54: 0.01932997685 | E54: v | F54: 10.7777332 | H54: 50 | I54: 24 | J54: Ter Haar Family & Friends | K54: 0.1628846296 | L54: 0.0536059838
A55: 51 | B55: 55 | C55: Jopie van Benthem | D55: 0.01947824074 | E55: v | F55: 10.69569558 | H55: 51 | I55: 35 | J55: Waterman Onions 2 | K55: 0.1631149074 | L55: 0.05383626157
A56: 52 | B56: 36 | C56: Hein Slump | D56: 0.02005775463 | F56: 10.38667274 | H56: 52 | I56: 41 | J56: Advies en Kies en Runners | K56: 0.1631877199 | L56: 0.05390907407
A57: 53 | B57: 45 | C57: Willie Kiefte | D57: 0.02016481481 | E57: v | F57: 10.33152723 | H57: 53 | I57: 55 | J57: Fifty-Five | K57: 0.1652673032 | L57: 0.05598865741
A58: 54 | B58: 56 | C58: Linda Hoek | D58: 0.02123460648 | E58: v | F58: 9.811028686 | H58: 54 | I58: 43 | J58: Lerøy Seafood NL | K58: 0.1722268981 | L58: 0.06294825231

Sheet 8E
A1: Etappeuitslag Voorhuys 12-dorpenloop AV NOP 2 april 2022
A2: Uitslag van deze etappe. De tijd is de brutotijd | H2: Uitslag t/m deze etappe. De tijd is de som van de nettotijden.
A3: Urk - Espel | D3: 7.8 | E3: km | H3: Urk - Espel
A4: nr | B4: team | C4: Naam loper | D4: Tijd | F4: km/h | H4: nr | I4: team | J4: Teamnaam | K4: Tijd | L4: ∆
A5: 1 | B5: 7 | C5: Izak Hanse | D5: 0.01852523148 | F5: 17.54364043 | H5: 1 | I5: 2 | J5: hardloopbegeleidingopmaat/klif 18 | K5: 0.1283546875 | L5: 0
A6: 2 | B6: 2 | C6: Freek Koffeman | D6: 0.01907604167 | F6: 17.03707749 | H6: 2 | I6: 4 | J6: Klif 18 | K6: 0.1370120833 | L6: 0.008657395833
A7: 3 | B7: 1 | C7: Jan Loosman | D7: 0.02053981481 | F7: 15.82292747 | H7: 3 | I7: 1 | J7: De Corner | K7: 0.1392593866 | L7: 0.01090469907
A8: 4 | B8: 27 | C8: Roger Fahner | D8: 0.02140856481 | F8: 15.18084014 | H8: 4 | I8: 6 | J8: Running Ruijters | K8: 0.1504671296 | L8: 0.02211244213
A9: 5 | B9: 4 | C9: Dinie Ras | D9: 0.02146354167 | E9: v | F9: 15.14195584 | H9: 5 | I9: 3 | J9: Quick Jewels | K9: 0.1506179398 | L9: 0.02226325231
A10: 6 | B10: 18 | C10: Teun de Boer | D10: 0.02210740741 | F10: 14.70095493 | H10: 6 | I10: 5 | J10: Dujob | K10: 0.1552420139 | L10: 0.02688732639
A11: 7 | B11: 3 | C11: Jurian Molenaar | D11: 0.02212476852 | F11: 14.68941922 | H11: 7 | I11: 7 | J11: ASV Rutten | K11: 0.1566242708 | L11: 0.02826958333
A12: 8 | B12: 6 | C12: Dion Ruijter | D12: 0.02252696759 | F12: 14.42715264 | H12: 8 | I12: 8 | J12: Hardloopteam Bant | K12: 0.1598424769 | L12: 0.03148778935
A13: 9 | B13: 17 | C13: Berend Schotanus | D13: 0.02256423611 | F13: 14.40332384 | H13: 9 | I13: 32 | J13: Ber-di-do | K13: 0.1615361343 | L13: 0.03318144676
A14: 10 | B14: 8 | C14: Richard de Nijs | D14: 0.02257974537 | F14: 14.39343069 | H14: 10 | I14: 21 | J14: 050media | K14: 0.1620966667 | L14: 0.03374197917
A15: 11 | B15: 5 | C15: Jacob Baak | D15: 0.02262060185 | F15: 14.36743382 | H15: 11 | I15: 10 | J15: RUN TEAM MARKNESSE | K15: 0.1625089352 | L15: 0.03415424769
A16: 12 | B16: 19 | C16: Stefan de Wilde | D16: 0.02264849537 | F16: 14.34973912 | H16: 12 | I16: 26 | J16: van Vilsteren Marknesse.nl | K16: 0.1631950926 | L16: 0.03484040509
A17: 13 | B17: 21 | C17: Rory Bob de Haan | D17: 0.02267638889 | F17: 14.33208795 | H17: 13 | I17: 13 | J17: KLIF18 ladies | K17: 0.1637351042 | L17: 0.03538041667
A18: 14 | B18: 12 | C18: Remco Visser | D18: 0.02274502315 | F18: 14.28884015 | H18: 14 | I18: 27 | J18: Running Team Espel | K18: 0.1641339236 | L18: 0.03577923611
A19: 15 | B19: 10 | C19: Matijs Beers | D19: 0.02364097222 | F19: 13.74731957 | H19: 15 | I19: 25 | J19: Hardloop groep Ens | K19: 0.1641478935 | L19: 0.03579320602
A20: 16 | B20: 40 | C20: Jasper de Jong | D20: 0.0236962963 | F20: 13.71522351 | H20: 16 | I20: 14 | J20: Vivan komt dr’an | K20: 0.1647432986 | L20: 0.03638861111
A21: 17 | B21: 49 | C21: Thom Brands | D21: 0.02395347222 | F21: 13.56797031 | H21: 17 | I21: 11 | J21: Kraggenburg 4 | K21: 0.1651097569 | L21: 0.03675506944
A22: 18 | B22: 9 | C22: Pieter Roskam | D22: 0.02404537037 | F22: 13.51611537 | H22: 18 | I22: 20 | J22: Creil | K22: 0.1663864815 | L22: 0.03803179398
A23: 19 | B23: 50 | C23: Rick Sijtsma | D23: 0.02412314815 | F23: 13.47253675 | H23: 19 | I23: 17 | J23: SAMEN ONDER WEG | K23: 0.1680101273 | L23: 0.03965543981
A24: 20 | B24: 15 | C24: Gert Koets | D24: 0.02440451389 | F24: 13.31720851 | H24: 20 | I24: 9 | J24: VAN BLOOIS SPORTADVIES | K24: 0.1686332176 | L24: 0.04027853009
A25: 21 | B25: 46 | C25: Hessel Koster | D25: 0.02445763889 | F25: 13.28828189 | H25: 21 | I25: 18 | J25: Fit Fun/ Anytime | K25: 0.1693725694 | L25: 0.04101788194
A26: 22 | B26: 25 | C26: Edwin Spekschate | D26: 0.02447071759 | F26: 13.28117979 | H26: 22 | I26: 51 | J26: Van Urk voeding | K26: 0.1704568519 | L26: 0.04210216435
A27: 23 | B27: 32 | C27: Marko de Vos | D27: 0.02455462963 | F27: 13.2357932 | H27: 23 | I27: 19 | J27: STC Rutten | K27: 0.1708354051 | L27: 0.04248071759
A28: 24 | B28: 31 | C28: Matthijs Dekker | D28: 0.02472743056 | F28: 13.14329846 | H28: 24 | I28: 12 | J28: Hekwerkwebshop.nl | K28: 0.1709511111 | L28: 0.04259642361
A29: 25 | B29: 56 | C29: Marita van Overbeeke | D29: 0.02481481481 | E29: v | F29: 13.09701493 | H29: 25 | I29: 30 | J29: Autofirst Minnaard | K29: 0.1727359838 | L29: 0.0443812963
A30: 26 | B30: 37 | C30: Erwin van der Kamp | D30: 0.0249130787 | F30: 13.04535677 | H30: 26 | I30: 47 | J30: CrossFit Urk | K30: 0.1735668981 | L30: 0.04521221065
A31: 27 | B31: 26 | C31: Tim | D31: 0.02496400463 | F31: 13.01874458 | H31: 27 | I31: 29 | J31: Waterman Onions Pink Ladies | K31: 0.1738016435 | L31: 0.04544695602
A32: 28 | B32: 33 | C32: gerdi wicherson | D32: 0.02501608796 | E32: v | F32: 12.99163964 | H32: 28 | I32: 37 | J32: Van Staveren | K32: 0.173983912 | L32: 0.04562922454
A33: 29 | B33: 23 | C33: Willem Hoekstra | D33: 0.02536331019 | F33: 12.81378486 | H33: 29 | I33: 52 | J33: Pool-der run4fun | K33: 0.1740693981 | L33: 0.04571471065
A34: 30 | B34: 47 | C34: Abbe Brouwer | D34: 0.02542233796 | F34: 12.78403271 | H34: 30 | I34: 49 | J34: Flynth | K34: 0.1745170139 | L34: 0.04616232639
A35: 31 | B35: 16 | C35: Michiel Eilander | D35: 0.02567152778 | F35: 12.65993995 | H35: 31 | I35: 22 | J35: Tollebeek in beweging | K35: 0.1748021065 | L35: 0.04644741898
A36: 32 | B36: 11 | C36: Joury Spelde | D36: 0.02582048611 | F36: 12.58690478 | H36: 32 | I36: 34 | J36: Team 't Voorhuys | K36: 0.1749130787 | L36: 0.0465583912
A37: 33 | B37: 14 | C37: Jan Lourens Posthumus | D37: 0.02597164352 | F37: 12.51364781 | H37: 33 | I37: 54 | J37: De Dijkies | K37: 0.1754033565 | L37: 0.04704866898
A38: 34 | B38: 45 | C38: Angelique vd Kleef | D38: 0.02633993056 | E38: v | F38: 12.33868097 | H38: 34 | I38: 33 | J38: woensdagavondlopers | K38: 0.1756168519 | L38: 0.04726216435
A39: 35 | B39: 28 | C39: Quinten | D39: 0.02655439815 | F39: 12.23902715 | H39: 35 | I39: 46 | J39: Hoekstra Assurantie B.V. | K39: 0.1764272917 | L39: 0.04807260417
A40: 36 | B40: 13 | C40: Carolien de Vries | D40: 0.02669467593 | E40: v | F40: 12.17471232 | H40: 36 | I40: 39 | J40: Suplacon | K40: 0.176448669 | L40: 0.04809398148
A41: 37 | B41: 24 | C41: Jeroen Moolenaar | D41: 0.02685532407 | F41: 12.10188338 | H41: 37 | I41: 15 | J41: Aves | K41: 0.1782369907 | L41: 0.04988230324
A42: 38 | B42: 54 | C42: Koen van Raalten | D42: 0.02708101852 | F42: 12.00102573 | H42: 38 | I42: 42 | J42: Kinderopvang Pipo | K42: 0.1794539352 | L42: 0.05109924769
A43: 39 | B43: 51 | C43: Riekelt van Urk | D43: 0.02714606481 | F43: 11.97226936 | H43: 39 | I43: 50 | J43: Nick & de rest | K43: 0.179514375 | L43: 0.0511596875
A44: 40 | B44: 38 | C44: Dennis Gommers | D44: 0.02735115741 | F44: 11.88249532 | H44: 40 | I44: 16 | J44: Team Nagele | K44: 0.1817889236 | L44: 0.05343423611
A45: 41 | B45: 30 | C45: Moniek Buur | D45: 0.02747337963 | E45: v | F45: 11.82963306 | H45: 41 | I45: 45 | J45: Berechja College | K45: 0.1822112616 | L45: 0.05385657407
A46: 42 | B46: 39 | C46: Jelle Hakvoort | D46: 0.02792013889 | F46: 11.64034324 | H46: 42 | I46: 36 | J46: Schol op Urk | K46: 0.1825091435 | L46: 0.05415445602
A47: 43 | B47: 41 | C47: Ronald Graver | D47: 0.02803263889 | F47: 11.59362846 | H47: 43 | I47: 31 | J47: fam.Dekker Draaft Door | K47: 0.1826307639 | L47: 0.05427607639
A48: 44 | B48: 20 | C48: Jacob Kroon | D48: 0.02816863426 | F48: 11.53765557 | H48: 44 | I48: 23 | J48: Seaconcept | K48: 0.1827961806 | L48: 0.05444149306
A49: 45 | B49: 55 | C49: Hans Jansen | D49: 0.02825798611 | F49: 11.50117346 | H49: 45 | I49: 56 | J49: De Broodlopers | K49: 0.1835423148 | L49: 0.05518762731
A50: 46 | B50: 22 | C50: Leonard Naaktgeboren | D50: 0.02845358796 | F50: 11.42210959 | H50: 46 | I50: 40 | J50: Mercatus, lopen op z’n best | K50: 0.1848255671 | L50: 0.05647087963
A51: 47 | B51: 42 | C51: Teun | D51: 0.02878634259 | F51: 11.29007615 | H51: 47 | I51: 38 | J51: Vegterlopers | K51: 0.18502625 | L51: 0.0566715625
A52: 48 | B52: 36 | C52: Albert Schreuder | D52: 0.02887928241 | F52: 11.25374223 | H52: 48 | I52: 44 | J52: Tafelronde Noordoostpolder | K52: 0.1866980324 | L52: 0.05834334491
A53: 49 | B53: 43 | C53: Jannie Romkes | D53: 0.02892488426 | E53: v | F53: 11.23600002 | H53: 49 | I53: 28 | J53: Waterman Onions 1 | K53: 0.187483588 | L53: 0.05912890046
A54: 50 | B54: 35 | C54: Marianne Kuyper | D54: 0.02961284722 | E54: v | F54: 10.97496629 | H54: 50 | I54: 24 | J54: Ter Haar Family & Friends | K54: 0.1897399537 | L54: 0.0613852662
A55: 51 | B55: 29 | C55: Geja Stoutjesdijk | D55: 0.02982731481 | E55: v | F55: 10.8960529 | H55: 51 | I55: 35 | J55: Waterman Onions 2 | K55: 0.1897664699 | L55: 0.06141178241
A56: 52 | B56: 34 | C56: Kevin Stielstra | D56: 0.03140208333 | F56: 10.34963179 | H56: 52 | I56: 41 | J56: Advies en Kies en Runners | K56: 0.1912203588 | L56: 0.0628656713
A57: 53 | B57: 52 | C57: Konrad | D57: 0.03153159722 | F57: 10.30712138 | H57: 53 | I57: 55 | J57: Fifty-Five | K57: 0.1935252894 | L57: 0.06517060185
A58: 54 | B58: 44 | C58: Jelmer Schotanus | D58: 0.04027777778 | F58: 8.068965517 | H58: 54 | I58: 43 | J58: Lerøy Seafood NL | K58: 0.198259294 | L58: 0.06990460648

Sheet 9C
A1: Etappeuitslag Voorhuys 12-dorpenloop AV NOP 2 april 2022
A2: Uitslag van deze etappe. De tijd is de brutotijd | H2: Uitslag t/m deze etappe. De tijd is de som van de nettotijden.
A3: Espel - Creil | D3: 4.63 | E3: km | H3: Espel - Creil
A4: nr | B4: team | C4: Naam loper | D4: Tijd | F4: km/h | H4: nr | I4: team | J4: Teamnaam | K4: Tijd | L4: ∆
A5: 1 | B5: 56 | C5: Anjo Geluk | D5: 0.01238229167 | F5: 15.58004543 | H5: 1 | I5: 2 | J5: hardloopbegeleidingopmaat/klif 18 | K5: 0.1411706597 | L5: 0
A6: 2 | B6: 4 | C6: Peter Gnodde | D6: 0.01261597222 | F6: 15.29146254 | H6: 2 | I6: 4 | J6: Klif 18 | K6: 0.1496280556 | L6: 0.008457395833
A7: 3 | B7: 22 | C7: Max Maarsen | D7: 0.01273055556 | F7: 15.15382937 | H7: 3 | I7: 1 | J7: De Corner | K7: 0.1517999074 | L7: 0.01062924769
A8: 4 | B8: 2 | C8: Hugo Jongejan | D8: 0.01281597222 | F8: 15.05283121 | H8: 4 | I8: 3 | J8: Quick Jewels | K8: 0.1651996528 | L8: 0.02402899306
A9: 5 | B9: 5 | C9: Klaas Kramer | D9: 0.01321053241 | F9: 14.60324692 | H9: 5 | I9: 6 | J9: Running Ruijters | K9: 0.1661270833 | L9: 0.02495642361
A10: 6 | B10: 51 | C10: Klaas Willem | D10: 0.01356967593 | F10: 14.21674826 | H10: 6 | I10: 5 | J10: Dujob | K10: 0.1684525463 | L10: 0.02728188657
A11: 7 | B11: 1 | C11: Annemiek Dekkert | D11: 0.01393391204 | E11: v | F11: 13.84511874 | H11: 7 | I11: 7 | J11: ASV Rutten | K11: 0.1713711458 | L11: 0.03020048611
A12: 8 | B12: 42 | C12: Oskar | D12: 0.01428587963 | F12: 13.50401037 | H12: 8 | I12: 8 | J12: Hardloopteam Bant | K12: 0.1743302083 | L12: 0.03315954861
A13: 9 | B13: 10 | C13: Bert de Vries | D13: 0.01442222222 | F13: 13.37634823 | H13: 9 | I13: 10 | J13: RUN TEAM MARKNESSE | K13: 0.1769311574 | L13: 0.03576049769
A14: 10 | B14: 8 | C14: Rudy van Steenbergen | D14: 0.01448773148 | F14: 13.31586432 | H14: 10 | I14: 32 | J14: Ber-di-do | K14: 0.1769624074 | L14: 0.03579174769
A15: 11 | B15: 18 | C15: Wieger Vreeke | D15: 0.0145068287 | F15: 13.29833492 | H15: 11 | I15: 25 | J15: Hardloop groep Ens | K15: 0.1789033102 | L15: 0.03773265046
A16: 12 | B16: 3 | C16: Roelof van der Meulen | D16: 0.01458171296 | F16: 13.23004143 | H16: 12 | I16: 11 | J16: Kraggenburg 4 | K16: 0.1790009028 | L16: 0.03783024306
A17: 13 | B17: 43 | C17: Jaap van de Berg | D17: 0.01519699074 | F17: 12.69439917 | H17: 13 | I17: 13 | J17: KLIF18 ladies | K17: 0.179195625 | L17: 0.03802496528
A18: 14 | B18: 24 | C18: Eline van Toledo | D18: 0.01520775463 | E18: v | F18: 12.68541421 | H18: 14 | I18: 26 | J18: van Vilsteren Marknesse.nl | K18: 0.1792775926 | L18: 0.03810693287
A19: 15 | B19: 44 | C19: Michel Becker | D19: 0.01534166667 | F19: 12.57468767 | H19: 15 | I19: 14 | J19: Vivan komt dr’an | K19: 0.1803797569 | L19: 0.03920909722
A20: 16 | B20: 17 | C20: Edwin Schrotenboer | D20: 0.0153755787 | F20: 12.54695322 | H20: 16 | I20: 21 | J20: 050media | K20: 0.1810867708 | L20: 0.03991611111
A21: 17 | B21: 32 | C21: Jetze Kempenaar | D21: 0.01542627315 | F21: 12.50572091 | H21: 17 | I21: 27 | J21: Running Team Espel | K21: 0.1811542361 | L21: 0.03998357639
A22: 18 | B22: 11 | C22: Manon Snellink | D22: 0.01543460648 | E22: v | F22: 12.49896892 | H22: 18 | I22: 9 | J22: VAN BLOOIS SPORTADVIES | K22: 0.1825628009 | L22: 0.0413921412
A23: 19 | B23: 9 | C23: Femmy Gnodde | D23: 0.01547731481 | E23: v | F23: 12.46447908 | H23: 19 | I23: 17 | J23: SAMEN ONDER WEG | K23: 0.183385706 | L23: 0.0422150463
A24: 20 | B24: 31 | C24: Sofia Dekker | D24: 0.01553078704 | E24: v | F24: 12.4215641 | H24: 20 | I24: 20 | J24: Creil | K24: 0.1834280324 | L24: 0.04225737269
A25: 21 | B25: 16 | C25: Taco van der Sar | D25: 0.0155619213 | F25: 12.39671265 | H25: 21 | I25: 18 | J25: Fit Fun/ Anytime | K25: 0.1838793981 | L25: 0.04270873843
A26: 22 | B26: 14 | C26: Albert Bakker | D26: 0.01563645833 | F26: 12.33761908 | H26: 22 | I26: 51 | J26: Van Urk voeding | K26: 0.1840265278 | L26: 0.04285586806
A27: 23 | B27: 6 | C27: Finn van Ginkel | D27: 0.0156599537 | F27: 12.31910836 | H27: 23 | I27: 19 | J27: STC Rutten | K27: 0.1862398843 | L27: 0.04506922454
A28: 24 | B28: 30 | C28: Menno Hiemstra | D28: 0.01586423611 | F28: 12.16047626 | H28: 24 | I28: 12 | J28: Hekwerkwebshop.nl | K28: 0.1870655903 | L28: 0.04589493056
A29: 25 | B29: 34 | C29: Tim van Gunst | D29: 0.01607916667 | F29: 11.99792692 | H29: 25 | I29: 22 | J29: Tollebeek in beweging | K29: 0.187532662 | L29: 0.04636200231
A30: 26 | B30: 40 | C30: Engelbert Nikkels | D30: 0.01625347222 | F30: 11.86925871 | H30: 26 | I30: 30 | J30: Autofirst Minnaard | K30: 0.1886002199 | L30: 0.04742956019
A31: 27 | B31: 33 | C31: chris-marije | D31: 0.0162744213 | E31: v | F31: 11.85398013 | H31: 27 | I31: 47 | J31: CrossFit Urk | K31: 0.1895358565 | L31: 0.04836519676
A32: 28 | B32: 37 | C32: Wijnand Bok | D32: 0.01634351852 | F32: 11.8038638 | H32: 28 | I32: 52 | J32: Pool-der run4fun | K32: 0.189977419 | L32: 0.04880675926
A33: 29 | B33: 50 | C33: Peter van Hulzen | D33: 0.01636342593 | F33: 11.78950347 | H33: 29 | I33: 33 | J33: woensdagavondlopers | K33: 0.190263831 | L33: 0.0490931713
A34: 30 | B34: 7 | C34: Milotte Maas | D34: 0.01638541667 | E34: v | F34: 11.77368086 | H34: 30 | I34: 37 | J34: Van Staveren | K34: 0.1903274306 | L34: 0.04915677083
A35: 31 | B35: 25 | C35: Tialda van Ginkel | D35: 0.01639490741 | E35: v | F35: 11.76686528 | H35: 31 | I35: 34 | J35: Team 't Voorhuys | K35: 0.1909922454 | L35: 0.04982158565
A36: 32 | B36: 20 | C36: Tycho Krone | D36: 0.01704155093 | F36: 11.32037028 | H36: 32 | I36: 54 | J36: De Dijkies | K36: 0.1910135648 | L36: 0.04984290509
A37: 33 | B37: 19 | C37: Maureen Roose | D37: 0.01711608796 | E37: v | F37: 11.2710724 | H37: 33 | I37: 29 | J37: Waterman Onions Pink Ladies | K37: 0.1910166435 | L37: 0.0498459838
A38: 34 | B38: 13 | C38: Wille-Marie Brouwer | D38: 0.01717835648 | E38: v | F38: 11.23021675 | H38: 34 | I38: 49 | J38: Flynth | K38: 0.1921810185 | L38: 0.0510103588
A39: 35 | B39: 54 | C39: Maren Striker | D39: 0.01734467593 | E39: v | F39: 11.12252933 | H39: 35 | I39: 46 | J39: Hoekstra Assurantie B.V. | K39: 0.19255375 | L39: 0.05138309028
A40: 36 | B40: 49 | C40: René Offenberg | D40: 0.01766400463 | F40: 10.92145698 | H40: 36 | I40: 42 | J40: Kinderopvang Pipo | K40: 0.1937398148 | L40: 0.05256915509
A41: 37 | B41: 52 | C41: Luca | D41: 0.0176755787 | E41: v | F41: 10.91430555 | H41: 37 | I41: 15 | J41: Aves | K41: 0.1943850116 | L41: 0.05321435185
A42: 38 | B42: 47 | C42: Klasina Heijns | D42: 0.01774328704 | E42: v | F42: 10.87265659 | H42: 38 | I42: 39 | J42: Suplacon | K42: 0.1954896412 | L42: 0.05431898148
A43: 39 | B43: 26 | C43: Lisanne | D43: 0.01786944444 | E43: v | F43: 10.79589616 | H43: 39 | I43: 50 | J43: Nick & de rest | K43: 0.1958778009 | L43: 0.0547071412
A44: 40 | B44: 23 | C44: Willem Schraal | D44: 0.01788761574 | F44: 10.78492905 | H44: 40 | I44: 56 | J44: De Broodlopers | K44: 0.1959246065 | L44: 0.05475394676
A45: 41 | B45: 12 | C45: Ida de Boer | D45: 0.01790497685 | E45: v | F45: 10.77447172 | H45: 41 | I45: 31 | J45: fam.Dekker Draaft Door | K45: 0.1966084722 | L45: 0.0554378125
A46: 42 | B46: 46 | C46: Corina Oost | D46: 0.01791828704 | E46: v | F46: 10.76646815 | H46: 42 | I46: 16 | J46: Team Nagele | K46: 0.1973508449 | L46: 0.05618018519
A47: 43 | B47: 15 | C47: Cathy van den Berg | D47: 0.01794224537 | E47: v | F47: 10.75209165 | H47: 43 | I47: 45 | J47: Berechja College | K47: 0.1983826157 | L47: 0.05721195602
A48: 44 | B48: 45 | C48: Vera Brouwer | D48: 0.0179681713 | E48: v | F48: 10.73657767 | H48: 44 | I48: 23 | J48: Seaconcept | K48: 0.2006837963 | L48: 0.05951313657
A49: 45 | B49: 41 | C49: Kees Degenhart | D49: 0.01826331019 | F49: 10.56307234 | H49: 45 | I49: 40 | J49: Mercatus, lopen op z’n best | K49: 0.2010790394 | L49: 0.05990837963
A50: 46 | B50: 27 | C50: Carlien Hendrickx | D50: 0.01891145833 | E50: v | F50: 10.20104654 | H50: 46 | I50: 44 | J50: Tafelronde Noordoostpolder | K50: 0.2020396991 | L50: 0.06086903935
A51: 47 | B51: 35 | C51: Pieter Jaarsma | D51: 0.01902395833 | F51: 10.14072168 | H51: 47 | I51: 36 | J51: Schol op Urk | K51: 0.2022457176 | L51: 0.06107505787
A52: 48 | B52: 39 | C52: Michel Stoelwinder | D52: 0.01904097222 | F52: 10.13166053 | H52: 48 | I52: 38 | J52: Vegterlopers | K52: 0.2027819792 | L52: 0.06161131944
A53: 49 | B53: 29 | C53: Jannie van den Berg | D53: 0.01912777778 | E53: v | F53: 10.08568109 | H53: 49 | I53: 24 | J53: Ter Haar Family & Friends | K53: 0.2034269329 | L53: 0.06225627315
A54: 50 | B54: 28 | C54: Jolien van den Berg | D54: 0.01923923611 | E54: v | F54: 10.02725189 | H54: 50 | I54: 28 | J54: Waterman Onions 1 | K54: 0.2047989005 | L54: 0.06362824074
A55: 51 | B55: 55 | C55: Janette Schultink | D55: 0.01961284722 | E55: v | F55: 9.83623971 | H55: 51 | I55: 35 | J55: Waterman Onions 2 | K55: 0.2087904282 | L55: 0.06761976852
A56: 52 | B56: 38 | C56: Mirjam Crève | D56: 0.01972858796 | E56: v | F56: 9.778533924 | H56: 52 | I56: 41 | J56: Advies en Kies en Runners | K56: 0.209483669 | L56: 0.06831300926
A57: 53 | B57: 36 | C57: Arie van Urk | D57: 0.01973657407 | F57: 9.774577186 | H57: 53 | I57: 55 | J57: Fifty-Five | K57: 0.2111768519 | L57: 0.07000619213
A58: 54 | B58: 21 | C58: Adrienne Moret | D58: 0.02110011574 | E58: v | F58: 9.142919832 | H58: 54 | I58: 43 | J58: Lerøy Seafood NL | K58: 0.2134562847 | L58: 0.072285625

Sheet 10R
A1: Etappeuitslag Voorhuys 12-dorpenloop AV NOP 2 april 2022
A2: Uitslag van deze etappe. De tijd is de brutotijd | H2: Uitslag t/m deze etappe. De tijd is de som van de nettotijden.
A3: Creil - Rutten | D3: 5.44 | E3: km | H3: Creil - Rutten
A4: nr | B4: team | C4: Naam loper | D4: Tijd | F4: km/h | H4: nr | I4: team | J4: Teamnaam | K4: Tijd | L4: ∆
A5: 1 | B5: 4 | C5: Bart Maljaars | D5: 0.01459398148 | F5: 15.53151667 | H5: 1 | I5: 2 | J5: hardloopbegeleidingopmaat/klif 18 | K5: 0.1559173032 | L5: 0
A6: 2 | B6: 2 | C6: Jorn Hofstra | D6: 0.01474664352 | F6: 15.37072937 | H6: 2 | I6: 4 | J6: Klif 18 | K6: 0.164222037 | L6: 0.008304733796
A7: 3 | B7: 6 | C7: Marcel Ruijter | D7: 0.01577708333 | F7: 14.36682953 | H7: 3 | I7: 1 | J7: De Corner | K7: 0.1679007176 | L7: 0.01198341435
A8: 4 | B8: 31 | C8: Erwin Bosma | D8: 0.01595185185 | F8: 14.20942651 | H8: 4 | I8: 3 | J8: Quick Jewels | K8: 0.1816412037 | L8: 0.02572390046
A9: 5 | B9: 9 | C9: Hessel de Vries | D9: 0.01604907407 | F9: 14.12334853 | H9: 5 | I9: 6 | J9: Running Ruijters | K9: 0.1819041667 | L9: 0.02598686343
A10: 6 | B10: 1 | C10: Doede Terluin | D10: 0.01610081019 | F10: 14.07796652 | H10: 6 | I10: 5 | J10: Dujob | K10: 0.1850228009 | L10: 0.02910549769
A11: 7 | B11: 10 | C11: Stef Masteling | D11: 0.01634641204 | F11: 13.86644764 | H11: 7 | I11: 8 | J11: Hardloopteam Bant | K11: 0.1907207176 | L11: 0.03480341435
A12: 8 | B12: 11 | C12: Rinke Biesheuvel | D12: 0.01636342593 | F12: 13.85202999 | H12: 8 | I12: 7 | J12: ASV Rutten | K12: 0.1914978819 | L12: 0.0355805787
A13: 9 | B13: 8 | C13: Dirk Jan Doornbos | D13: 0.01639050926 | F13: 13.82914119 | H13: 9 | I13: 10 | J13: RUN TEAM MARKNESSE | K13: 0.1932775694 | L13: 0.0373602662
A14: 10 | B14: 3 | C14: Riekelt Romkes | D14: 0.01644155093 | F14: 13.78620957 | H14: 10 | I14: 25 | J14: Hardloop groep Ens | K14: 0.1950698727 | L14: 0.03915256944
A15: 11 | B15: 5 | C15: Jacob Hoekstra | D15: 0.01657025463 | F15: 13.67912997 | H15: 11 | I15: 11 | J15: Kraggenburg 4 | K15: 0.1953643287 | L15: 0.03944702546
A16: 12 | B16: 21 | C16: Thierry Kienart | D16: 0.01685601852 | F16: 13.44722459 | H16: 12 | I16: 13 | J16: KLIF18 ladies | K16: 0.1959875 | L16: 0.04007019676
A17: 13 | B17: 16 | C17: Paul Bovée | D17: 0.01764988426 | F17: 12.84238828 | H17: 13 | I17: 32 | J17: Ber-di-do | K17: 0.1963676157 | L17: 0.0404503125
A18: 14 | B18: 25 | C18: Manon van Schie | D18: 0.01796284722 | E18: v | F18: 12.61863801 | H18: 14 | I18: 26 | J18: van Vilsteren Marknesse.nl | K18: 0.1976993519 | L18: 0.04178204861
A19: 15 | B19: 15 | C19: Simone Schuitemaker | D19: 0.01821377315 | E19: v | F19: 12.44479465 | H19: 15 | I19: 21 | J19: 050media | K19: 0.1979427894 | L19: 0.04202548611
A20: 16 | B20: 18 | C20: Jos Netten | D20: 0.01838738426 | F20: 12.32729264 | H20: 16 | I20: 9 | J20: VAN BLOOIS SPORTADVIES | K20: 0.198611875 | L20: 0.04269457176
A21: 17 | B21: 26 | C21: Jesse | D21: 0.01842175926 | F21: 12.30428991 | H21: 17 | I21: 27 | J21: Running Team Espel | K21: 0.2006098611 | L21: 0.04469255787
A22: 18 | B22: 54 | C22: Jaap-Jan Tichelaar | D22: 0.0184912037 | F22: 12.25808067 | H22: 18 | I22: 14 | J22: Vivan komt dr’an | K22: 0.2007463079 | L22: 0.04482900463
A23: 19 | B23: 13 | C23: Jara de Boer | D23: 0.01865763889 | E23: v | F23: 12.14873265 | H23: 19 | I23: 18 | J23: Fit Fun/ Anytime | K23: 0.2022667824 | L23: 0.04634947917
A24: 20 | B24: 22 | C24: Bram Roskam | D24: 0.01870428241 | F24: 12.11843693 | H24: 20 | I24: 17 | J24: SAMEN ONDER WEG | K24: 0.2024314236 | L24: 0.04651412037
A25: 21 | B25: 33 | C25: Johan Kommerij | D25: 0.01886412037 | F25: 12.01575595 | H25: 21 | I25: 20 | J25: Creil | K25: 0.2029927199 | L25: 0.04707541667
A26: 22 | B26: 52 | C26: Robert | D26: 0.01889594907 | F26: 11.99551638 | H26: 22 | I26: 51 | J26: Van Urk voeding | K26: 0.2030599769 | L26: 0.04714267361
A27: 23 | B27: 19 | C27: Nyka van der Veen | D27: 0.01891909722 | E27: v | F27: 11.98083947 | H27: 23 | I27: 19 | J27: STC Rutten | K27: 0.2032670718 | L27: 0.04734976852
A28: 24 | B28: 35 | C28: Jannes Dokter | D28: 0.01896539352 | F28: 11.95159312 | H28: 24 | I28: 22 | J28: Tollebeek in beweging | K28: 0.2062369444 | L28: 0.0503196412
A29: 25 | B29: 51 | C29: William Visser | D29: 0.01903344907 | F29: 11.90885928 | H29: 25 | I29: 12 | J29: Hekwerkwebshop.nl | K29: 0.2065514699 | L29: 0.05063416667
A30: 26 | B30: 17 | C30: Jacco Verpoorte | D30: 0.01904571759 | F30: 11.90118805 | H30: 26 | I30: 30 | J30: Autofirst Minnaard | K30: 0.2080159606 | L30: 0.05209865741
A31: 27 | B31: 46 | C31: Steven Post | D31: 0.01913796296 | F31: 11.84382408 | H31: 27 | I31: 47 | J31: CrossFit Urk | K31: 0.2081626273 | L31: 0.05224532407
A32: 28 | B32: 28 | C32: Henri Hendrikse | D32: 0.0191744213 | F32: 11.82130418 | H32: 28 | I32: 29 | J32: Waterman Onions Pink Ladies | K32: 0.2083397685 | L32: 0.05242246528
A33: 29 | B33: 29 | C33: Annelies Pasterkamp | D33: 0.01924791667 | E33: v | F33: 11.77616625 | H33: 29 | I33: 52 | J33: Pool-der run4fun | K33: 0.2088733681 | L33: 0.05295606481
A34: 30 | B34: 34 | C34: Jeroen Ansink | D34: 0.01938101852 | F34: 11.69529179 | H34: 30 | I34: 33 | J34: woensdagavondlopers | K34: 0.2091279514 | L34: 0.05321064815
A35: 31 | B35: 32 | C35: Henk Bremer | D35: 0.01940520833 | F35: 11.68071287 | H35: 31 | I35: 54 | J35: De Dijkies | K35: 0.2095047685 | L35: 0.05358746528
A36: 32 | B36: 30 | C36: Christiaan Schaart | D36: 0.01941574074 | F36: 11.67437646 | H36: 32 | I36: 37 | J36: Van Staveren | K36: 0.2103608796 | L36: 0.05444357639
A37: 33 | B37: 56 | C37: Abdi Hamidan Mohamed | D37: 0.01947175926 | F37: 11.64079032 | H37: 33 | I37: 34 | J37: Team 't Voorhuys | K37: 0.2103732639 | L37: 0.05445596065
A38: 34 | B38: 12 | C38: Hendrik Pasterkamp | D38: 0.01948587963 | F38: 11.63235486 | H38: 34 | I38: 15 | J38: Aves | K38: 0.2107774074 | L38: 0.05486010417
A39: 35 | B39: 42 | C39: Rob | D39: 0.01983888889 | F39: 11.42537104 | H39: 35 | I39: 46 | J39: Hoekstra Assurantie B.V. | K39: 0.211691713 | L39: 0.05577440972
A40: 36 | B40: 45 | C40: Sybren Zandstra | D40: 0.01991018519 | F40: 11.38445798 | H40: 36 | I40: 31 | J40: fam.Dekker Draaft Door | K40: 0.2125603241 | L40: 0.05664302083
A41: 37 | B41: 37 | C41: Vinus Bok | D41: 0.02003344907 | F41: 11.31441051 | H41: 37 | I41: 49 | J41: Flynth | K41: 0.2131396991 | L41: 0.05722239583
A42: 38 | B42: 7 | C42: Dik Nieuwenhuizen | D42: 0.02012673611 | F42: 11.26196843 | H42: 38 | I42: 42 | J42: Kinderopvang Pipo | K42: 0.2135787037 | L42: 0.05766140046
A43: 39 | B43: 38 | C43: Bas de Jong | D43: 0.02031886574 | F43: 11.15547834 | H43: 39 | I43: 16 | J43: Team Nagele | K43: 0.2150007292 | L43: 0.05908342593
A44: 40 | B44: 14 | C44: Riekelt Brouwer | D44: 0.02036655093 | F44: 11.12935948 | H44: 40 | I44: 50 | J44: Nick & de rest | K44: 0.2153031134 | L44: 0.05938581019
A45: 41 | B45: 24 | C45: Jur Bos | D45: 0.02041111111 | F45: 11.1050626 | H45: 41 | I45: 56 | J45: De Broodlopers | K45: 0.2153963657 | L45: 0.0594790625
A46: 42 | B46: 47 | C46: Antje Brouwer | D46: 0.02069641204 | E46: v | F46: 10.95197884 | H46: 42 | I46: 45 | J46: Berechja College | K46: 0.2182928009 | L46: 0.06237549769
A47: 43 | B47: 49 | C47: Quinten Offenberg | D47: 0.02095868056 | F47: 10.81493017 | H47: 43 | I47: 39 | J47: Suplacon | K47: 0.2190781829 | L47: 0.06316087963
A48: 44 | B48: 40 | C48: Dirk Bolle | D48: 0.02119988426 | F48: 10.69188227 | H48: 44 | I48: 23 | J48: Seaconcept | K48: 0.2218894676 | L48: 0.06597216435
A49: 45 | B49: 23 | C49: Frederik Kramer | D49: 0.0212056713 | F49: 10.68896445 | H49: 45 | I49: 36 | J49: Schol op Urk | K49: 0.2221661343 | L49: 0.06624883102
A50: 46 | B50: 43 | C50: Ben Bakker | D50: 0.0215724537 | F50: 10.50722694 | H50: 46 | I50: 40 | J50: Mercatus, lopen op z’n best | K50: 0.2222789236 | L50: 0.06636162037
A51: 47 | B51: 50 | C51: Evelien Steenbergen | D51: 0.02158368056 | E51: v | F51: 10.50176155 | H51: 47 | I51: 38 | J51: Vegterlopers | K51: 0.2231008449 | L51: 0.06718354167
A52: 48 | B52: 27 | C52: Suzanne Blok | D52: 0.02161736111 | E52: v | F52: 10.48539947 | H52: 48 | I52: 24 | J52: Ter Haar Family & Friends | K52: 0.223838044 | L52: 0.06792074074
A53: 49 | B53: 41 | C53: Anne Kooij | D53: 0.02167986111 | E53: v | F53: 10.45517153 | H53: 49 | I53: 28 | J53: Waterman Onions 1 | K53: 0.2239733218 | L53: 0.06805601852
A54: 50 | B54: 20 | C54: Mariska Schutte | D54: 0.02173854167 | E54: v | F54: 10.42694906 | H54: 50 | I54: 44 | J54: Tafelronde Noordoostpolder | K54: 0.2249174769 | L54: 0.06900017361
A55: 51 | B55: 55 | C55: Ada de Munnik | D55: 0.02184479167 | E55: v | F55: 10.37623385 | H55: 51 | I55: 35 | J55: Waterman Onions 2 | K55: 0.2277558218 | L55: 0.07183851852
A56: 52 | B56: 36 | C56: Marloes Slump | D56: 0.0221337963 | E56: v | F56: 10.24074965 | H56: 52 | I56: 41 | J56: Advies en Kies en Runners | K56: 0.228995544 | L56: 0.07307824074
A57: 53 | B57: 44 | C57: Leo Joosten | D57: 0.02287777778 | F57: 9.907722195 | H57: 53 | I57: 55 | J57: Fifty-Five | K57: 0.2308371644 | L57: 0.07491986111
A58: 54 | B58: 39 | C58: Radboud Sanders | D58: 0.02358854167 | F58: 9.609185251 | H58: 54 | I58: 43 | J58: Lerøy Seafood NL | K58: 0.2350287384 | L58: 0.07911143519

Sheet 11B
A1: Etappeuitslag Voorhuys 12-dorpenloop AV NOP 2 april 2022
A2: Uitslag van deze etappe. De tijd is de brutotijd | H2: Uitslag t/m deze etappe. De tijd is de som van de nettotijden.
A3: Rutten - Bant | D3: 7.05 | E3: km | H3: Rutten - Bant
A4: nr | B4: team | C4: Naam loper | D4: Tijd | F4: km/h | H4: nr | I4: team | J4: Teamnaam | K4: Tijd | L4: ∆
A5: 1 | B5: 2 | C5: Jasper Meijer | D5: 0.01735810185 | F5: 16.92293331 | H5: 1 | I5: 2 | J5: hardloopbegeleidingopmaat/klif 18 | K5: 0.1732754051 | L5: 0
A6: 2 | B6: 8 | C6: Gerben Franssen | D6: 0.01815266204 | F6: 16.18219958 | H6: 2 | I6: 4 | J6: Klif 18 | K6: 0.1815180787 | L6: 0.008242673611
A7: 3 | B7: 44 | C7: Bas Stevens | D7: 0.01875196759 | F7: 15.66502281 | H7: 3 | I7: 1 | J7: De Corner | K7: 0.1870238657 | L7: 0.01374846065
A8: 4 | B8: 10 | C8: Peter Iepsma | D8: 0.01902106481 | F8: 15.44340461 | H8: 4 | I8: 3 | J8: Quick Jewels | K8: 0.2007165509 | L8: 0.02744114583
A9: 5 | B9: 3 | C9: Jan Post | D9: 0.01907534722 | F9: 15.39945756 | H9: 5 | I9: 6 | J9: Running Ruijters | K9: 0.2023340278 | L9: 0.02905862269
A10: 6 | B10: 1 | C10: Eugene Olgers | D10: 0.01912314815 | F10: 15.36096451 | H10: 6 | I10: 5 | J10: Dujob | K10: 0.2059622685 | L10: 0.03268686343
A11: 7 | B11: 12 | C11: Luut de Boer | D11: 0.01914837963 | F11: 15.34072364 | H11: 7 | I11: 8 | J11: Hardloopteam Bant | K11: 0.2088733796 | L11: 0.03559797454
A12: 8 | B12: 4 | C12: Jantina Loosman | D12: 0.01921782407 | E12: v | F12: 15.28528926 | H12: 8 | I12: 7 | J12: ASV Rutten | K12: 0.2122890856 | L12: 0.03901368056
A13: 9 | B13: 9 | C13: Johannes Schenk | D13: 0.01944756944 | F13: 15.10471531 | H13: 9 | I13: 10 | J13: RUN TEAM MARKNESSE | K13: 0.2122986343 | L13: 0.03902322917
A14: 10 | B14: 17 | C14: Rik de Graaf | D14: 0.01982951389 | F14: 14.81377716 | H14: 10 | I14: 11 | J14: Kraggenburg 4 | K14: 0.2169306481 | L14: 0.04365524306
A15: 11 | B15: 15 | C15: Sander de Wit | D15: 0.01986712963 | F15: 14.78572927 | H15: 11 | I15: 25 | J15: Hardloop groep Ens | K15: 0.2172518171 | L15: 0.04397641204
A16: 12 | B16: 31 | C16: Harry Terluin | D16: 0.02036875 | F16: 14.42160172 | H16: 12 | I16: 13 | J16: KLIF18 ladies | K16: 0.2176478125 | L16: 0.04437240741
A17: 13 | B17: 6 | C17: Fabian Ruijter | D17: 0.02042986111 | F17: 14.3784629 | H17: 13 | I17: 9 | J17: VAN BLOOIS SPORTADVIES | K17: 0.2180594444 | L17: 0.04478403935
A18: 14 | B18: 7 | C18: Rutger Mutsaers | D18: 0.0207912037 | F18: 14.12857111 | H18: 14 | I18: 32 | J18: Ber-di-do | K18: 0.2185654167 | L18: 0.04529001157
A19: 15 | B19: 5 | C19: Kees de Vries | D19: 0.02093946759 | F19: 14.02853242 | H19: 15 | I19: 26 | J19: van Vilsteren Marknesse.nl | K19: 0.2188401852 | L19: 0.04556478009
A20: 16 | B20: 21 | C20: Jordi den Hollander | D20: 0.02113668981 | F20: 13.89763499 | H20: 16 | I20: 21 | J20: 050media | K20: 0.2190794792 | L20: 0.04580407407
A21: 17 | B21: 19 | C21: Bauke van der Valk | D21: 0.02142488426 | F21: 13.7106925 | H21: 17 | I21: 17 | J21: SAMEN ONDER WEG | K21: 0.2222609375 | L21: 0.04898553241
A22: 18 | B22: 11 | C22: Wout van Keulen | D22: 0.02156631944 | F22: 13.62077571 | H22: 18 | I22: 27 | J22: Running Team Espel | K22: 0.2225855556 | L22: 0.04931015046
A23: 19 | B23: 54 | C23: Martijn Stiekema | D23: 0.02170659722 | F23: 13.53275214 | H23: 19 | I23: 19 | J23: STC Rutten | K23: 0.224691956 | L23: 0.05141655093
A24: 20 | B24: 34 | C24: Dik van der Linde | D24: 0.02182418981 | F24: 13.45983528 | H24: 20 | I24: 14 | J24: Vivan komt dr’an | K24: 0.2251836921 | L24: 0.05190828704
A25: 21 | B25: 27 | C25: Jeroen Snippe | D25: 0.02197569444 | F25: 13.36704061 | H25: 21 | I25: 20 | J25: Creil | K25: 0.2251875116 | L25: 0.05191210648
A26: 22 | B26: 23 | C26: Pieter Sinke | D26: 0.02211863426 | F26: 13.28065723 | H26: 22 | I26: 18 | J26: Fit Fun/ Anytime | K26: 0.2251898148 | L26: 0.05191440972
A27: 23 | B27: 30 | C27: Robbin Willemsen | D27: 0.02213993056 | F27: 13.26788263 | H27: 23 | I27: 12 | J27: Hekwerkwebshop.nl | K27: 0.2256998495 | L27: 0.05242444444
A28: 24 | B28: 25 | C28: Bas Wouters | D28: 0.02218194444 | F28: 13.24275249 | H28: 24 | I28: 51 | J28: Van Urk voeding | K28: 0.2259006019 | L28: 0.05262519676
A29: 25 | B29: 32 | C29: Sjirk Dottinga | D29: 0.02219780093 | F29: 13.23329284 | H29: 25 | I29: 22 | J29: Tollebeek in beweging | K29: 0.2288221296 | L29: 0.05554672454
A30: 26 | B30: 41 | C30: Wim Kok | D30: 0.02221122685 | F30: 13.22529377 | H30: 26 | I30: 30 | J30: Autofirst Minnaard | K30: 0.2301558912 | L30: 0.05688048611
A31: 27 | B31: 52 | C31: Lukasz | D31: 0.02223472222 | F31: 13.21131863 | H31: 27 | I31: 29 | J31: Waterman Onions Pink Ladies | K31: 0.2302748727 | L31: 0.05699946759
A32: 28 | B32: 47 | C32: Mark Oost | D32: 0.02240983796 | F32: 13.10808228 | H32: 28 | I32: 47 | J32: CrossFit Urk | K32: 0.2305724653 | L32: 0.05729706019
A33: 29 | B33: 22 | C33: Jack Tabak | D33: 0.02258518519 | F33: 13.00631355 | H33: 29 | I33: 15 | J33: Aves | K33: 0.230644537 | L33: 0.05736913194
A34: 30 | B34: 46 | C34: Auke Brouwer | D34: 0.02283506944 | F34: 12.8639854 | H34: 30 | I34: 52 | J34: Pool-der run4fun | K34: 0.2311080903 | L34: 0.05783268519
A35: 31 | B35: 18 | C35: Kees Boot | D35: 0.02292303241 | F35: 12.8146222 | H35: 31 | I35: 54 | J35: De Dijkies | K35: 0.2312113657 | L35: 0.05793596065
A36: 32 | B36: 28 | C36: Niels Ensing | D36: 0.02299791667 | F36: 12.7728961 | H36: 32 | I36: 34 | J36: Team 't Voorhuys | K36: 0.2321974537 | L36: 0.05892204861
A37: 33 | B37: 36 | C37: Albert Hoekman | D37: 0.02333611111 | F37: 12.58778717 | H37: 33 | I37: 31 | J37: fam.Dekker Draaft Door | K37: 0.2329290741 | L37: 0.05965366898
A38: 34 | B38: 50 | C38: Reinier van der Linde | D38: 0.02338449074 | F38: 12.56174459 | H38: 34 | I38: 33 | J38: woensdagavondlopers | K38: 0.2330369792 | L38: 0.05976157407
A39: 35 | B39: 56 | C39: Richard ter Wijlen | D39: 0.02346921296 | F39: 12.51639757 | H39: 35 | I39: 37 | J39: Van Staveren | K39: 0.233439213 | L39: 0.06016380787
A40: 36 | B40: 26 | C40: Tessa Peters | D40: 0.02348981481 | E40: v | F40: 12.50542 | H40: 36 | I40: 46 | J40: Hoekstra Assurantie B.V. | K40: 0.2345267824 | L40: 0.06125137731
A41: 37 | B41: 38 | C41: Jesper Kooijman | D41: 0.02358055556 | F41: 12.45729768 | H41: 37 | I41: 49 | J41: Flynth | K41: 0.2367321759 | L41: 0.06345677083
A42: 38 | B42: 49 | C42: Auke Johannes van Slooten | D42: 0.02359247685 | F42: 12.451003 | H42: 38 | I42: 42 | J42: Kinderopvang Pipo | K42: 0.2378819444 | L42: 0.06460653935
A43: 39 | B43: 16 | C43: Nolke van der Meer | D43: 0.02363043981 | F43: 12.43100011 | H43: 39 | I43: 16 | J43: Team Nagele | K43: 0.238631169 | L43: 0.06535576389
A44: 40 | B44: 33 | C44: ivo de wit | D44: 0.02390902778 | F44: 12.28615411 | H44: 40 | I44: 50 | J44: Nick & de rest | K44: 0.2386876042 | L44: 0.06541219907
A45: 41 | B45: 24 | C45: Tom ter Haar | D45: 0.02398206019 | F45: 12.24873917 | H45: 41 | I45: 56 | J45: De Broodlopers | K45: 0.2388655787 | L45: 0.06559017361
A46: 42 | B46: 13 | C46: Henny van Lu | D46: 0.02406701389 | E46: v | F46: 12.20550258 | H46: 42 | I46: 39 | J46: Suplacon | K46: 0.2411675579 | L46: 0.06789215278
A47: 43 | B47: 42 | C47: Johan | D47: 0.02430324074 | F47: 12.08686542 | H47: 43 | I47: 44 | J47: Tafelronde Noordoostpolder | K47: 0.2436694444 | L47: 0.07039403935
A48: 44 | B48: 29 | C48: Willy Sinke | D48: 0.02437233796 | E48: v | F48: 12.05259834 | H48: 44 | I48: 23 | J48: Seaconcept | K48: 0.2440081019 | L48: 0.07073269676
A49: 45 | B49: 14 | C49: Wim Vader | D49: 0.02443738426 | F49: 12.02051729 | H49: 45 | I49: 45 | J49: Berechja College | K49: 0.2441491667 | L49: 0.07087376157
A50: 46 | B50: 39 | C50: Evelina Kupryte | D50: 0.02454375 | E50: v | F50: 11.96842373 | H50: 46 | I50: 36 | J50: Schol op Urk | K50: 0.2455022454 | L50: 0.07222684028
A51: 47 | B51: 20 | C51: Martine Schenk | D51: 0.02466087963 | E51: v | F51: 11.91157835 | H51: 47 | I51: 40 | J51: Mercatus, lopen op z’n best | K51: 0.2460359028 | L51: 0.07276049769
A52: 48 | B52: 35 | C52: Naomi Tramper | D52: 0.0251224537 | E52: v | F52: 11.69272729 | H52: 48 | I52: 38 | J52: Vegterlopers | K52: 0.2466814005 | L52: 0.07340599537
A53: 49 | B53: 51 | C53: Sanne | D53: 0.02537847222 | E53: v | F53: 11.57477083 | H53: 49 | I53: 28 | J53: Waterman Onions 1 | K53: 0.2469712384 | L53: 0.07369583333
A54: 50 | B54: 37 | C54: Janneke van der Kamp | D54: 0.02564259259 | E54: v | F54: 11.45554994 | H54: 50 | I54: 24 | J54: Ter Haar Family & Friends | K54: 0.2478201042 | L54: 0.07454469907
A55: 51 | B55: 45 | C55: Albert Romkes | D55: 0.02585636574 | F55: 11.36083868 | H55: 51 | I55: 35 | J55: Waterman Onions 2 | K55: 0.2503660301 | L55: 0.077090625
A56: 52 | B56: 40 | C56: Brenda Bouma | D56: 0.02639664352 | E56: v | F56: 11.12830879 | H56: 52 | I56: 41 | J56: Advies en Kies en Runners | K56: 0.2512067708 | L56: 0.07793136574
A57: 53 | B57: 55 | C57: Grietje Overmars | D57: 0.02708680556 | E57: v | F57: 10.84476349 | H57: 53 | I57: 55 | J57: Fifty-Five | K57: 0.2552152894 | L57: 0.08193988426
A58: 54 | B58: 43 | C58: Dirkje van de Berg | D58: 0.02713310185 | E58: v | F58: 10.82625944 | H58: 54 | I58: 43 | J58: Lerøy Seafood NL | K58: 0.2594485301 | L58: 0.086173125

Sheet 12E
A1: Etappeuitslag Voorhuys 12-dorpenloop AV NOP 2 april 2022
A2: Uitslag van deze etappe. De tijd is de brutotijd | H2: Uitslag t/m deze etappe. De tijd is de som van de nettotijden.
A3: Bant - Emmeloord | D3: 5.93 | E3: km | H3: Bant - Emmeloord
A4: nr | B4: team | C4: Naam loper | D4: Tijd | F4: km/h | H4: nr | I4: team | J4: Teamnaam | K4: Tijd | L4: ∆
A5: 1 | B5: 2 | C5: Daniël Klappe | D5: 0.01383958333 | F5: 17.8533795 | H5: 1 | I5: 2 | J5: hardloopbegeleidingopmaat/klif 18 | K5: 0.1871149884 | L5: 0
A6: 2 | B6: 1 | C6: Fokke Snoek | D6: 0.01399178241 | F6: 17.65917495 | H6: 2 | I6: 4 | J6: Klif 18 | K6: 0.1957142593 | L6: 0.008599270833
A7: 3 | B7: 4 | C7: Geert de Wit | D7: 0.01419618056 | F7: 17.40491623 | H7: 3 | I7: 1 | J7: De Corner | K7: 0.2010156481 | L7: 0.01390065972
A8: 4 | B8: 31 | C8: Jarno Dekker | D8: 0.01491446759 | F8: 16.56668814 | H8: 4 | I8: 3 | J8: Quick Jewels | K8: 0.2159210648 | L8: 0.02880607639
A9: 5 | B9: 9 | C9: Mark Versluis | D9: 0.01510659722 | F9: 16.35598869 | H9: 5 | I9: 6 | J9: Running Ruijters | K9: 0.2199622685 | L9: 0.03284728009
A10: 6 | B10: 24 | C10: Quirijn van Toledo | D10: 0.01516261574 | F10: 16.29556124 | H10: 6 | I10: 5 | J10: Dujob | K10: 0.2238523148 | L10: 0.03673732639
A11: 7 | B11: 3 | C11: Barend Baarsen | D11: 0.01520451389 | F11: 16.25065656 | H11: 7 | I11: 8 | J11: Hardloopteam Bant | K11: 0.2248787037 | L11: 0.03776371528
A12: 8 | B12: 26 | C12: Theo Knook | D12: 0.01557638889 | F12: 15.86268391 | H12: 8 | I12: 10 | J12: RUN TEAM MARKNESSE | K12: 0.2320040741 | L12: 0.04488908565
A13: 9 | B13: 8 | C13: Wietze van Wegen | D13: 0.01600532407 | F13: 15.43757141 | H13: 9 | I13: 7 | J13: ASV Rutten | K13: 0.2323044792 | L13: 0.04518949074
A14: 10 | B14: 32 | C14: Robert van Loenen | D14: 0.01607476852 | F14: 15.37087971 | H14: 10 | I14: 9 | J14: VAN BLOOIS SPORTADVIES | K14: 0.2331660417 | L14: 0.04605105324
A15: 11 | B15: 44 | C15: Jasper Stege | D15: 0.01702962963 | F15: 14.50902566 | H15: 11 | I15: 25 | J15: Hardloop groep Ens | K15: 0.233830463 | L15: 0.04671547454
A16: 12 | B16: 47 | C16: Gerrit Visser | D16: 0.01724270833 | F16: 14.32972875 | H16: 12 | I16: 11 | J16: Kraggenburg 4 | K16: 0.2342666435 | L16: 0.04715165509
A17: 13 | B17: 11 | C17: Lars van Diepen | D17: 0.01733599537 | F17: 14.25261879 | H17: 13 | I17: 26 | J17: van Vilsteren Marknesse.nl | K17: 0.2344165741 | L17: 0.04730158565
A18: 14 | B18: 17 | C18: Harry Feenstra | D18: 0.0175537037 | F18: 14.07585188 | H18: 14 | I18: 32 | J18: Ber-di-do | K18: 0.2346401852 | L18: 0.04752519676
A19: 15 | B19: 6 | C19: Jan Ruijter | D19: 0.01762824074 | F19: 14.01633532 | H19: 15 | I19: 13 | J19: KLIF18 ladies | K19: 0.235284375 | L19: 0.04816938657
A20: 16 | B20: 5 | C20: Arie Baak | D20: 0.0178900463 | F20: 13.81121822 | H20: 16 | I20: 21 | J20: 050media | K20: 0.2383931366 | L20: 0.05127814815
A21: 17 | B21: 50 | C21: Jack Gros | D21: 0.01798923611 | F21: 13.73506534 | H21: 17 | I21: 17 | J21: SAMEN ONDER WEG | K21: 0.2398146412 | L21: 0.05269965278
A22: 18 | B22: 15 | C22: Carolien Breimer | D22: 0.01807418981 | E22: v | F22: 13.67050672 | H22: 18 | I22: 27 | J22: Running Team Espel | K22: 0.2419350926 | L22: 0.05482010417
A23: 19 | B23: 16 | C23: Peter van der Kooi | D23: 0.01832453704 | F23: 13.4837422 | H23: 19 | I23: 18 | J23: Fit Fun/ Anytime | K23: 0.242546794 | L23: 0.05543180556
A24: 20 | B24: 25 | C24: Larissa Wouters | D24: 0.01842071759 | E24: v | F24: 13.4133392 | H24: 20 | I24: 20 | J24: Creil | K24: 0.2436133218 | L24: 0.05649833333
A25: 21 | B25: 20 | C25: Leo Tubben | D25: 0.01842581019 | F25: 13.40963197 | H25: 21 | I25: 19 | J25: STC Rutten | K25: 0.2439115394 | L25: 0.05679655093
A26: 22 | B26: 22 | C26: Cees Leijten | D26: 0.01843113426 | F26: 13.40575842 | H26: 22 | I26: 14 | J26: Vivan komt dr’an | K26: 0.2441140162 | L26: 0.05699902778
A27: 23 | B27: 14 | C27: André Bakker | D27: 0.01893032407 | F27: 13.05225058 | H27: 23 | I27: 12 | J27: Hekwerkwebshop.nl | K27: 0.2466646644 | L27: 0.05954967593
A28: 24 | B28: 18 | C28: Jose Stuivenvolt | D28: 0.01928553241 | E28: v | F28: 12.81184922 | H28: 24 | I28: 15 | J28: Aves | K28: 0.2469113079 | L28: 0.05979631944
A29: 25 | B29: 41 | C29: Ankie Kooij | D29: 0.01929386574 | E29: v | F29: 12.80631557 | H29: 25 | I29: 51 | J29: Van Urk voeding | K29: 0.247083125 | L29: 0.05996813657
A30: 26 | B30: 21 | C30: Onur Aksoy | D30: 0.01931365741 | F30: 12.79319231 | H30: 26 | I30: 22 | J30: Tollebeek in beweging | K30: 0.2472532639 | L30: 0.06013827546
A31: 27 | B31: 46 | C31: Hein Ras | D31: 0.01932025463 | F31: 12.78882386 | H31: 27 | I31: 47 | J31: CrossFit Urk | K31: 0.2478151736 | L31: 0.06070018519
A32: 28 | B32: 27 | C32: Albert de Vries | D32: 0.01934953704 | F32: 12.76947003 | H32: 28 | I32: 31 | J32: fam.Dekker Draaft Door | K32: 0.2478435417 | L32: 0.06072855324
A33: 29 | B33: 30 | C33: Erwin Kooistra | D33: 0.01942118056 | F33: 12.72236426 | H33: 29 | I33: 29 | J33: Waterman Onions Pink Ladies | K33: 0.2490511227 | L33: 0.06193613426
A34: 30 | B34: 37 | C34: Luuk Valk | D34: 0.01955347222 | F34: 12.63628938 | H34: 30 | I34: 30 | J34: Autofirst Minnaard | K34: 0.2495770718 | L34: 0.06246208333
A35: 31 | B35: 13 | C35: Karina Post | D35: 0.01959618056 | E35: v | F35: 12.60874958 | H35: 31 | I35: 54 | J35: De Dijkies | K35: 0.2512434259 | L35: 0.0641284375
A36: 32 | B36: 10 | C36: Cees Masteling | D36: 0.01970543981 | F36: 12.5388388 | H36: 32 | I36: 52 | J36: Pool-der run4fun | K36: 0.2512848264 | L36: 0.06416983796
A37: 33 | B37: 34 | C37: Mart Hazenberg | D37: 0.01998425926 | F37: 12.36389751 | H37: 33 | I37: 34 | J37: Team 't Voorhuys | K37: 0.252181713 | L37: 0.06506672454
A38: 34 | B38: 7 | C38: Pim Dollekamp | D38: 0.02001539352 | F38: 12.34466527 | H38: 34 | I38: 37 | J38: Van Staveren | K38: 0.2529926852 | L38: 0.06587769676
A39: 35 | B39: 54 | C39: Jesse Dijkstra | D39: 0.02003206019 | F39: 12.33439452 | H39: 35 | I39: 46 | J39: Hoekstra Assurantie B.V. | K39: 0.253847037 | L39: 0.06673204861
A40: 36 | B40: 43 | C40: Ricardo van Essen | D40: 0.02009780093 | F40: 12.2940482 | H40: 36 | I40: 33 | J40: woensdagavondlopers | K40: 0.2539367477 | L40: 0.06682175926
A41: 37 | B41: 49 | C41: Klaas Mosselaar | D41: 0.02015752315 | F41: 12.25762369 | H41: 37 | I41: 50 | J41: Nick & de rest | K41: 0.2566768403 | L41: 0.06956185185
A42: 38 | B42: 52 | C42: Arek | D42: 0.02017673611 | F42: 12.24595157 | H42: 38 | I42: 49 | J42: Flynth | K42: 0.2568896991 | L42: 0.06977471065
A43: 39 | B43: 42 | C43: Bas | D43: 0.02067766204 | F43: 11.94928773 | H43: 39 | I43: 16 | J43: Team Nagele | K43: 0.256955706 | L43: 0.06984071759
A44: 40 | B44: 45 | C44: Gerlinde Bakker | D44: 0.02085775463 | E44: v | F44: 11.84611372 | H44: 40 | I44: 42 | J44: Kinderopvang Pipo | K44: 0.2585596065 | L44: 0.07144461806
A45: 41 | B45: 29 | C45: Hilde Woort | D45: 0.0208625 | E45: v | F45: 11.84341921 | H45: 41 | I45: 44 | J45: Tafelronde Noordoostpolder | K45: 0.2606990741 | L45: 0.07358408565
A46: 42 | B46: 33 | C46: hans vis | D46: 0.02089976852 | F46: 11.8223 | H46: 42 | I46: 56 | J46: De Broodlopers | K46: 0.2607964815 | L46: 0.07368149306
A47: 43 | B47: 12 | C47: Andries Pasterkamp | D47: 0.02096481481 | F47: 11.78561964 | H47: 43 | I47: 39 | J47: Suplacon | K47: 0.2623211458 | L47: 0.07520615741
A48: 44 | B48: 23 | C48: Gerrit Post | D48: 0.02109826389 | F48: 11.71107417 | H48: 44 | I48: 45 | J48: Berechja College | K48: 0.2629211458 | L48: 0.07580615741
A49: 45 | B49: 39 | C49: Antijn Koers | D49: 0.02115358796 | F49: 11.68044559 | H49: 45 | I49: 24 | J49: Ter Haar Family & Friends | K49: 0.2629827199 | L49: 0.07586773148
A50: 46 | B50: 51 | C50: Albert Koffeman | D50: 0.02118252315 | F50: 11.66449018 | H50: 46 | I50: 23 | J50: Seaconcept | K50: 0.2651063657 | L50: 0.07799137731
A51: 47 | B51: 19 | C51: Marieke vd Heuvel | D51: 0.02135509259 | E51: v | F51: 11.57023002 | H51: 47 | I51: 36 | J51: Schol op Urk | K51: 0.2661688079 | L51: 0.07905381944
A52: 48 | B52: 38 | C52: Marco de Jong | D52: 0.02154641204 | F52: 11.46749319 | H52: 48 | I52: 28 | J52: Waterman Onions 1 | K52: 0.2663878009 | L52: 0.0792728125
A53: 49 | B53: 28 | C53: Miriam Waterman | D53: 0.02157395833 | E53: v | F53: 11.45285114 | H53: 49 | I53: 38 | J53: Vegterlopers | K53: 0.2682278125 | L53: 0.08111282407
A54: 50 | B54: 56 | C54: Piet Rienstra | D54: 0.02193090278 | F54: 11.26644607 | H54: 50 | I54: 41 | J54: Advies en Kies en Runners | K54: 0.26857125 | L54: 0.08145626157
A55: 51 | B55: 55 | C55: Harm Schippers | D55: 0.02195729167 | F55: 11.25290574 | H55: 51 | I55: 40 | J55: Mercatus, lopen op z’n best | K55: 0.2696088194 | L55: 0.08249383102
A56: 52 | B56: 36 | C56: Hanneke Vos | D56: 0.02296284722 | E56: v | F56: 10.76013488 | H56: 52 | I56: 55 | J56: Fifty-Five | K56: 0.277172581 | L56: 0.09005759259
A57: 53 | B57: 40 | C57: Johan van Buiten | D57: 0.02357291667 | F57: 10.48166151 | H57: 53 | I57: 43 | J57: Lerøy Seafood NL | K57: 0.279546331 | L57: 0.09243134259
A58: 54 | B58: 35 | C58: Asata Kanten | D58: 0.03263888889 | E58: v | F58: 7.570212766 | H58: 54 | I58: 35 | J58: Waterman Onions 2 | K58: 0.2797410301 | L58: 0.09262604167

Sheet Einduitslag
C1: Einduitslag Voorhuys12-dorpenloop 2022 AV NOP. De tijden zijn netto tijden
A2: nr | B2: team | C2: Teamnaam | D2: 1 | E2: 2 | F2: 3 | G2: 4 | H2: 5 | I2: 6 | J2: 7 | K2: 8 | L2: 9 | M2: 10 | N2: 11 | O2: 12 | P2: Totaal | Q2: ∆
A3: 1 | B3: 2 | C3: hardloopbegeleidingopmaat/klif 18 | D3: 0.02631944444 | E3: 0.0118015625 | F3: 0.01379826389 | G3: 0.0154880787 | H3: 0.01811944444 | I3: 0.01261851852 | J3: 0.01113333333 | K3: 0.01907604167 | L3: 0.01281597222 | M3: 0.01474664352 | N3: 0.01735810185 | O3: 0.01383958333 | P3: 0.1871149884 | Q3: 00:00:00
A4: 2 | B4: 4 | C4: Klif 18 | D4: 0.0287521875 | E4: 0.01263761574 | F4: 0.01464467593 | G4: 0.015759375 | H4: 0.01907106481 | I4: 0.01527476852 | J4: 0.01155520833 | K4: 0.0193171875 | L4: 0.01261597222 | M4: 0.01459398148 | N4: 0.01729604167 | O4: 0.01419618056 | P4: 0.1957142593 | Q4: 00:12:22.977
A5: 3 | B5: 1 | C5: De Corner | D5: 0.03002800926 | E5: 0.01143895833 | F5: 0.01586708333 | G5: 0.016260625 | H5: 0.01900011574 | I5: 0.01503634259 | J5: 0.0110884375 | K5: 0.02053981481 | L5: 0.01254052083 | M5: 0.01610081019 | N5: 0.01912314815 | O5: 0.01399178241 | P5: 0.2010156481 | Q5: 00:20:01.017
A6: 4 | B6: 3 | C6: Quick Jewels | D6: 0.03052824074 | E6: 0.01237430556 | F6: 0.01695115741 | G6: 0.01759895833 | H6: 0.02135868056 | I6: 0.01477164352 | J6: 0.01491018519 | K6: 0.02212476852 | L6: 0.01458171296 | M6: 0.01644155093 | N6: 0.01907534722 | O6: 0.01520451389 | P6: 0.2159210648 | Q6: 00:41:28.845
A7: 5 | B7: 6 | C7: Running Ruijters | D7: 0.03444178241 | E7: 0.01395891204 | F7: 0.01530868056 | G7: 0.01595578704 | H7: 0.01885763889 | I7: 0.01583680556 | J7: 0.01358055556 | K7: 0.02252696759 | L7: 0.0156599537 | M7: 0.01577708333 | N7: 0.02042986111 | O7: 0.01762824074 | P7: 0.2199622685 | Q7: 00:47:18.005
A8: 6 | B8: 5 | C8: Dujob | D8: 0.03049247685 | E8: 0.01460810185 | F8: 0.01772013889 | G8: 0.01792083333 | H8: 0.02315914352 | I8: 0.01578032407 | J8: 0.01294039352 | K8: 0.02262060185 | L8: 0.01321053241 | M8: 0.01657025463 | N8: 0.02093946759 | O8: 0.0178900463 | P8: 0.2238523148 | Q8: 00:52:54.105
A9: 7 | B9: 8 | C9: Hardloopteam Bant | D9: 0.0368625 | E9: 0.01443414352 | F9: 0.01438206019 | G9: 0.01640972222 | H9: 0.02359722222 | I9: 0.016096875 | J9: 0.01548020833 | K9: 0.02257974537 | L9: 0.01448773148 | M9: 0.01639050926 | N9: 0.01815266204 | O9: 0.01600532407 | P9: 0.2248787037 | Q9: 00:54:22.785
A10: 8 | B10: 10 | C10: RUN TEAM MARKNESSE | D10: 0.03467939815 | E10: 0.01629282407 | F10: 0.01555972222 | G10: 0.01941134259 | H10: 0.02209259259 | I10: 0.01739927083 | J10: 0.0134328125 | K10: 0.02364097222 | L10: 0.01442222222 | M10: 0.01634641204 | N10: 0.01902106481 | O10: 0.01970543981 | P10: 0.2320040741 | Q10: 01:04:38.417
A11: 9 | B11: 7 | C11: ASV Rutten | D11: 0.03880729167 | E11: 0.01390856481 | F11: 0.01601724537 | G11: 0.0205037037 | H11: 0.0220190625 | I11: 0.0139162037 | J11: 0.01292696759 | K11: 0.01852523148 | L11: 0.014746875 | M11: 0.02012673611 | N11: 0.0207912037 | O11: 0.02001539352 | P11: 0.2323044792 | Q11: 01:05:04.372
A12: 10 | B12: 9 | C12: VAN BLOOIS SPORTADVIES | D12: 0.03318530093 | E12: 0.01422739583 | F12: 0.01899328704 | G12: 0.01998260417 | H12: 0.02669467593 | I12: 0.0167059375 | J12: 0.01479864583 | K12: 0.02404537037 | L12: 0.01392958333 | M12: 0.01604907407 | N12: 0.01944756944 | O12: 0.01510659722 | P12: 0.2331660417 | Q12: 01:06:18.811
A13: 11 | B13: 25 | C13: Hardloop groep Ens | D13: 0.03467361111 | E13: 0.0163546875 | F13: 0.01808321759 | G13: 0.01612210648 | H13: 0.02217465278 | I13: 0.01789733796 | J13: 0.0143715625 | K13: 0.02447071759 | L13: 0.01475541667 | M13: 0.0161665625 | N13: 0.02218194444 | O13: 0.01657864583 | P13: 0.233830463 | Q13: 01:07:16.217
A14: 12 | B14: 11 | C14: Kraggenburg 4 | D14: 0.03650405093 | E14: 0.01345578704 | F14: 0.01671284722 | G14: 0.0187528125 | H14: 0.02386990741 | I14: 0.01728356481 | J14: 0.01271030093 | K14: 0.02582048611 | L14: 0.01389114583 | M14: 0.01636342593 | N14: 0.02156631944 | O14: 0.01733599537 | P14: 0.2342666435 | Q14: 01:07:53.903
A15: 13 | B15: 26 | C15: van Vilsteren Marknesse.nl | D15: 0.03196083333 | E15: 0.01185173611 | F15: 0.01761631944 | G15: 0.01764953704 | H15: 0.02635358796 | I15: 0.01721550926 | J15: 0.01558356481 | K15: 0.02496400463 | L15: 0.0160825 | M15: 0.01842175926 | N15: 0.02114083333 | O15: 0.01557638889 | P15: 0.2344165741 | Q15: 01:08:06.857
A16: 14 | B16: 32 | C16: Ber-di-do | D16: 0.03539837963 | E16: 0.01343375 | F16: 0.01607020833 | G16: 0.02051203704 | H16: 0.02187916667 | I16: 0.01669039352 | J16: 0.01299756944 | K16: 0.02455462963 | L16: 0.01542627315 | M16: 0.01940520833 | N16: 0.02219780093 | O16: 0.01607476852 | P16: 0.2346401852 | Q16: 01:08:26.177
A17: 15 | B17: 13 | C17: KLIF18 ladies | D17: 0.0338325 | E17: 0.0120965625 | F17: 0.01745395833 | G17: 0.0190509375 | H17: 0.02518895833 | I17: 0.01744 | J17: 0.01464697917 | K17: 0.02402520833 | L17: 0.01546052083 | M17: 0.016791875 | N17: 0.0216603125 | O17: 0.0176365625 | P17: 0.235284375 | Q17: 01:09:21.835
A18: 16 | B18: 21 | C18: 050media | D18: 0.03279710648 | E18: 0.01554050926 | F18: 0.01769409722 | G18: 0.01847479167 | H18: 0.02330243056 | I18: 0.01701006944 | J18: 0.01460127315 | K18: 0.02267638889 | L18: 0.01899010417 | M18: 0.01685601852 | N18: 0.02113668981 | O18: 0.01931365741 | P18: 0.2383931366 | Q18: 01:13:50.432
A19: 17 | B19: 17 | C19: SAMEN ONDER WEG | D19: 0.03589467593 | E19: 0.01520532407 | F19: 0.01885150463 | G19: 0.0176900463 | H19: 0.0251130787 | I19: 0.01726365741 | J19: 0.01542760417 | K19: 0.02256423611 | L19: 0.0153755787 | M19: 0.01904571759 | N19: 0.01982951389 | O19: 0.0175537037 | P19: 0.2398146412 | Q19: 01:15:53.250
A20: 18 | B20: 27 | C20: Running Team Espel | D20: 0.03551886574 | E20: 0.01256678241 | F20: 0.01853819444 | G20: 0.02063969907 | H20: 0.02254770833 | I20: 0.01736052083 | J20: 0.01555358796 | K20: 0.02140856481 | L20: 0.0170203125 | M20: 0.019455625 | N20: 0.02197569444 | O20: 0.01934953704 | P20: 0.2419350926 | Q20: 01:18:56.457
A21: 19 | B21: 18 | C21: Fit Fun/ Anytime | D21: 0.03917731481 | E21: 0.01584548611 | F21: 0.01790127315 | G21: 0.02004178241 | H21: 0.02199351852 | I21: 0.01645706019 | J21: 0.01584872685 | K21: 0.02210740741 | L21: 0.0145068287 | M21: 0.01838738426 | N21: 0.02292303241 | O21: 0.01735697917 | P21: 0.242546794 | Q21: 01:19:49.308
A22: 20 | B22: 20 | C22: Creil | D22: 0.03094125 | E22: 0.01450729167 | F22: 0.0179725 | G22: 0.02259780093 | H22: 0.0209946875 | I22: 0.01522337963 | J22: 0.0159809375 | K22: 0.02816863426 | L22: 0.01704155093 | M22: 0.0195646875 | N22: 0.02219479167 | O22: 0.01842581019 | P22: 0.2436133218 | Q22: 01:21:21.456
A23: 21 | B23: 19 | C23: STC Rutten | D23: 0.03644444444 | E23: 0.01407833333 | F23: 0.02154020833 | G23: 0.02312385417 | H23: 0.02204664352 | I23: 0.01636342593 | J23: 0.01459 | K23: 0.02264849537 | L23: 0.01540447917 | M23: 0.0170271875 | N23: 0.02142488426 | O23: 0.01921958333 | P23: 0.2439115394 | Q23: 01:21:47.222
A24: 22 | B24: 14 | C24: Vivan komt dr’an | D24: 0.03272407407 | E24: 0.01624513889 | F24: 0.01721083333 | G24: 0.0198974537 | H24: 0.02397800926 | I24: 0.01423354167 | J24: 0.01448260417 | K24: 0.02597164352 | L24: 0.01563645833 | M24: 0.02036655093 | N24: 0.02443738426 | O24: 0.01893032407 | P24: 0.2441140162 | Q24: 01:22:04.716
A25: 23 | B25: 12 | C25: Hekwerkwebshop.nl | D25: 0.03700798611 | E25: 0.0132221875 | F25: 0.01857627315 | G25: 0.01889456019 | H25: 0.02626608796 | I25: 0.01904930556 | J25: 0.0151896875 | K25: 0.02274502315 | L25: 0.01611447917 | M25: 0.01948587963 | N25: 0.01914837963 | O25: 0.02096481481 | P25: 0.2466646644 | Q25: 01:25:45.092
A26: 24 | B26: 15 | C26: Aves | D26: 0.03706979167 | E26: 0.01592822917 | F26: 0.017073125 | G26: 0.02354189815 | H26: 0.02775011574 | I26: 0.0163525463 | J26: 0.01611677083 | K26: 0.02440451389 | L26: 0.01614802083 | M26: 0.01639239583 | N26: 0.01986712963 | O26: 0.01626677083 | P26: 0.2469113079 | Q26: 01:26:06.402
A27: 25 | B27: 51 | C27: Van Urk voeding | D27: 0.03778159722 | E27: 0.01235231481 | F27: 0.01858993056 | G27: 0.01947125 | H27: 0.02576736111 | I27: 0.01499364583 | J27: 0.0143546875 | K27: 0.02714606481 | L27: 0.01356967593 | M27: 0.01903344907 | N27: 0.022840625 | O27: 0.02118252315 | P27: 0.247083125 | Q27: 01:26:21.247
A28: 26 | B28: 22 | C28: Tollebeek in beweging | D28: 0.03229363426 | E28: 0.01666322917 | F28: 0.01948773148 | G28: 0.02111886574 | H28: 0.02223726852 | I28: 0.01887893519 | J28: 0.01566885417 | K28: 0.02845358796 | L28: 0.01273055556 | M28: 0.01870428241 | N28: 0.02258518519 | O28: 0.01843113426 | P28: 0.2472532639 | Q28: 01:26:35.947
A29: 27 | B29: 47 | C29: CrossFit Urk | D29: 0.03868981481 | E29: 0.01533333333 | F29: 0.0157224537 | G29: 0.02021111111 | H29: 0.027365625 | I29: 0.0152056713 | J29: 0.01561655093 | K29: 0.02542233796 | L29: 0.01596895833 | M29: 0.01862677083 | N29: 0.02240983796 | O29: 0.01724270833 | P29: 0.2478151736 | Q29: 01:27:24.496
A30: 28 | B30: 31 | C30: fam.Dekker Draaft Door | D30: 0.03686979167 | E30: 0.01734489583 | F30: 0.02238125 | G30: 0.02052071759 | H30: 0.02618541667 | I30: 0.01933865741 | J30: 0.01526260417 | K30: 0.02472743056 | L30: 0.01397770833 | M30: 0.01595185185 | N30: 0.02036875 | O30: 0.01491446759 | P30: 0.2478435417 | Q30: 01:27:26.947
A31: 29 | B31: 29 | C31: Waterman Onions Pink Ladies | D31: 0.03382697917 | E31: 0.014996875 | F31: 0.02209197917 | G31: 0.02039872685 | H31: 0.02214635417 | I31: 0.01750020833 | J31: 0.0159959375 | K31: 0.02684458333 | L31: 0.017215 | M31: 0.017323125 | N31: 0.02193510417 | O31: 0.01877625 | P31: 0.2490511227 | Q31: 01:29:11.282
A32: 30 | B32: 30 | C32: Autofirst Minnaard | D32: 0.03313135417 | E32: 0.01682604167 | F32: 0.01882141204 | G32: 0.02230347222 | H32: 0.02674027778 | I32: 0.01578645833 | J32: 0.01440092593 | K32: 0.02472604167 | L32: 0.01586423611 | M32: 0.01941574074 | N32: 0.02213993056 | O32: 0.01942118056 | P32: 0.2495770718 | Q32: 01:29:56.724
A33: 31 | B33: 54 | C33: De Dijkies | D33: 0.03807025463 | E33: 0.01589864583 | F33: 0.01689572917 | G33: 0.02015752315 | H33: 0.024796875 | I33: 0.01899143519 | J33: 0.013511875 | K33: 0.02708101852 | L33: 0.01561020833 | M33: 0.0184912037 | N33: 0.02170659722 | O33: 0.02003206019 | P33: 0.2512434259 | Q33: 01:32:20.697
A34: 32 | B34: 52 | C34: Pool-der run4fun | D34: 0.03088564815 | E34: 0.01579050926 | F34: 0.02127395833 | G34: 0.02023354167 | H34: 0.02358923611 | I34: 0.01467719907 | J34: 0.01608770833 | K34: 0.03153159722 | L34: 0.01590802083 | M34: 0.01889594907 | N34: 0.02223472222 | O34: 0.02017673611 | P34: 0.2512848264 | Q34: 01:32:24.274
A35: 33 | B35: 34 | C35: Team 't Voorhuys | D35: 0.03095543981 | E35: 0.01586828704 | F35: 0.01817729167 | G35: 0.0217615625 | H35: 0.02298923611 | I35: 0.01764864583 | J35: 0.01611053241 | K35: 0.03140208333 | L35: 0.01607916667 | M35: 0.01938101852 | N35: 0.02182418981 | O35: 0.01998425926 | P35: 0.252181713 | Q35: 01:33:41.765
A36: 34 | B36: 37 | C36: Van Staveren | D36: 0.03470798611 | E36: 0.01775231481 | F36: 0.01534814815 | G36: 0.02029571759 | H36: 0.02478460648 | I36: 0.02019664352 | J36: 0.01598541667 | K36: 0.0249130787 | L36: 0.01634351852 | M36: 0.02003344907 | N36: 0.02307833333 | O36: 0.01955347222 | P36: 0.2529926852 | Q36: 01:34:51.833
A37: 35 | B37: 46 | C37: Hoekstra Assurantie B.V. | D37: 0.03458321759 | E37: 0.01746114583 | F37: 0.0174806713 | G37: 0.02045300926 | H37: 0.02770775463 | I37: 0.01747708333 | J37: 0.01680677083 | K37: 0.02445763889 | L37: 0.01612645833 | M37: 0.01913796296 | N37: 0.02283506944 | O37: 0.01932025463 | P37: 0.253847037 | Q37: 01:36:05.649
A38: 36 | B38: 33 | C38: woensdagavondlopers | D38: 0.03712581019 | E38: 0.01491597222 | F38: 0.01632114583 | G38: 0.01945229167 | H38: 0.02775486111 | I38: 0.01981828704 | J38: 0.01771400463 | K38: 0.02251447917 | L38: 0.01464697917 | M38: 0.01886412037 | N38: 0.02390902778 | O38: 0.02089976852 | P38: 0.2539367477 | Q38: 01:36:13.400
A39: 37 | B39: 50 | C39: Nick & de rest | D39: 0.03970104167 | E39: 0.01434885417 | F39: 0.0192234375 | G39: 0.02095868056 | H39: 0.0268119213 | I39: 0.01771010417 | J39: 0.0166371875 | K39: 0.02412314815 | L39: 0.01636342593 | M39: 0.0194253125 | N39: 0.02338449074 | O39: 0.01798923611 | P39: 0.2566768403 | Q39: 01:40:10.144
A40: 38 | B40: 49 | C40: Flynth | D40: 0.03657789352 | E40: 0.01583101852 | F40: 0.01691388889 | G40: 0.02126539352 | H40: 0.02686400463 | I40: 0.01688356481 | J40: 0.01622777778 | K40: 0.02395347222 | L40: 0.01766400463 | M40: 0.02095868056 | N40: 0.02359247685 | O40: 0.02015752315 | P40: 0.2568896991 | Q40: 01:40:28.535
A41: 39 | B41: 16 | C41: Team Nagele | D41: 0.03983854167 | E41: 0.015754375 | F41: 0.0195259375 | G41: 0.02166215278 | H41: 0.02627364583 | I41: 0.01754826389 | J41: 0.01551447917 | K41: 0.02567152778 | L41: 0.0155619213 | M41: 0.01764988426 | N41: 0.02363043981 | O41: 0.01832453704 | P41: 0.256955706 | Q41: 01:40:34.238
A42: 40 | B42: 42 | C42: Kinderopvang Pipo | D42: 0.03746261574 | E42: 0.0147465625 | F42: 0.01889666667 | G42: 0.02016400463 | H42: 0.02605775463 | I42: 0.01911550926 | J42: 0.01422447917 | K42: 0.02878634259 | L42: 0.01428587963 | M42: 0.01983888889 | N42: 0.02430324074 | O42: 0.02067766204 | P42: 0.2585596065 | Q42: 01:42:52.815
A43: 41 | B43: 44 | C43: Tafelronde Noordoostpolder | D43: 0.03805902778 | E43: 0.01519293981 | F43: 0.01903993056 | G43: 0.02057199074 | H43: 0.02242141204 | I43: 0.01651527778 | J43: 0.01461967593 | K43: 0.04027777778 | L43: 0.01534166667 | M43: 0.02287777778 | N43: 0.01875196759 | O43: 0.01702962963 | P43: 0.2606990741 | Q43: 01:45:57.665
A44: 42 | B44: 56 | C44: De Broodlopers | D44: 0.03521435185 | E44: 0.01773614583 | F44: 0.01947361111 | G44: 0.02091238426 | H44: 0.02876145833 | I44: 0.01999988426 | J44: 0.01911114583 | K44: 0.02233333333 | L44: 0.01238229167 | M44: 0.01947175926 | N44: 0.02346921296 | O44: 0.02193090278 | P44: 0.2607964815 | Q44: 01:46:06.081
A45: 43 | B45: 39 | C45: Suplacon | D45: 0.03382177083 | E45: 0.01399333333 | F45: 0.01834328704 | G45: 0.02011481481 | H45: 0.02815451389 | I45: 0.01949016204 | J45: 0.01461064815 | K45: 0.02792013889 | L45: 0.01904097222 | M45: 0.02358854167 | N45: 0.022089375 | O45: 0.02115358796 | P45: 0.2623211458 | Q45: 01:48:17.812
A46: 44 | B46: 45 | C46: Berechja College | D46: 0.03689074074 | E46: 0.02152777778 | F46: 0.018144375 | G46: 0.0220653125 | H46: 0.02350138889 | I46: 0.01822739583 | J46: 0.01814833333 | K46: 0.0237059375 | L46: 0.01617135417 | M46: 0.01991018519 | N46: 0.02585636574 | O46: 0.01877197917 | P46: 0.2629211458 | Q46: 01:49:09.652
A47: 45 | B47: 24 | C47: Ter Haar Family & Friends | D47: 0.04170231481 | E47: 0.01682384259 | F47: 0.01974208333 | G47: 0.02076840278 | H47: 0.02687233796 | I47: 0.02248460648 | J47: 0.01449104167 | K47: 0.02685532407 | L47: 0.01368697917 | M47: 0.02041111111 | N47: 0.02398206019 | O47: 0.01516261574 | P47: 0.2629827199 | Q47: 01:49:14.972
A48: 46 | B48: 23 | C48: Seaconcept | D48: 0.03770671296 | E48: 0.01611053241 | F48: 0.02075972222 | G48: 0.02229583333 | H48: 0.02994340278 | I48: 0.01692650463 | J48: 0.01369016204 | K48: 0.02536331019 | L48: 0.01788761574 | M48: 0.0212056713 | N48: 0.02211863426 | O48: 0.02109826389 | P48: 0.2651063657 | Q48: 01:52:18.455
A49: 47 | B49: 36 | C49: Schol op Urk | D49: 0.03531631944 | E49: 0.01408802083 | F49: 0.01689259259 | G49: 0.02027135417 | H49: 0.02776099537 | I49: 0.01924282407 | J49: 0.02005775463 | K49: 0.02887928241 | L49: 0.01973657407 | M49: 0.01992041667 | N49: 0.02333611111 | O49: 0.0206665625 | P49: 0.2661688079 | Q49: 01:53:50.250
A50: 48 | B50: 28 | C50: Waterman Onions 1 | D50: 0.04160289352 | E50: 0.01311828704 | F50: 0.01853635417 | G50: 0.02204085648 | H50: 0.02703506944 | I50: 0.021949375 | J50: 0.01664635417 | K50: 0.02655439815 | L50: 0.0173153125 | M50: 0.0191744213 | N50: 0.02299791667 | O50: 0.0194165625 | P50: 0.2663878009 | Q50: 01:54:09.171
A51: 49 | B51: 38 | C51: Vegterlopers | D51: 0.03959293981 | E51: 0.01410138889 | F51: 0.0209818287 | G51: 0.0198771875 | H51: 0.02769664352 | I51: 0.018028125 | J51: 0.01739697917 | K51: 0.02735115741 | L51: 0.01775572917 | M51: 0.02031886574 | N51: 0.02358055556 | O51: 0.02154641204 | P51: 0.2682278125 | Q51: 01:56:48.148
A52: 50 | B52: 41 | C52: Advies en Kies en Runners | D52: 0.04258738426 | E52: 0.01536875 | F52: 0.0218212963 | G52: 0.02238010417 | H52: 0.0269443287 | I52: 0.01972210648 | J52: 0.01436375 | K52: 0.02803263889 | L52: 0.01826331019 | M52: 0.019511875 | N52: 0.02221122685 | O52: 0.01736447917 | P52: 0.26857125 | Q52: 01:57:17.821
A53: 51 | B53: 40 | C53: Mercatus, lopen op z’n best | D53: 0.03943414352 | E53: 0.01583552083 | F53: 0.02149467593 | G53: 0.02042523148 | H53: 0.02378668981 | I53: 0.0212068287 | J53: 0.01894618056 | K53: 0.0236962963 | L53: 0.01625347222 | M53: 0.02119988426 | N53: 0.02375697917 | O53: 0.02357291667 | P53: 0.2696088194 | Q53: 01:58:47.467
A54: 52 | B54: 55 | C54: Fifty-Five | D54: 0.03468553241 | E54: 0.01714697917 | F54: 0.02308252315 | G54: 0.02520333333 | H54: 0.02790706019 | I54: 0.01971145833 | J54: 0.01753041667 | K54: 0.02825798611 | L54: 0.0176515625 | M54: 0.0196603125 | N54: 0.024378125 | O54: 0.02195729167 | P54: 0.277172581 | Q54: 02:09:40.976
A55: 53 | B55: 43 | C55: Lerøy Seafood NL | D55: 0.04210775463 | E55: 0.01600717593 | F55: 0.01833680556 | G55: 0.02367569444 | H55: 0.03140428241 | I55: 0.02350393519 | J55: 0.01719125 | K55: 0.02603239583 | L55: 0.01519699074 | M55: 0.0215724537 | N55: 0.02441979167 | O55: 0.02009780093 | P55: 0.279546331 | Q55: 02:13:06.068
A56: 54 | B56: 35 | C56: Waterman Onions 2 | D56: 0.04048125 | E56: 0.0154415625 | F56: 0.02139050926 | G56: 0.0239400463 | H56: 0.0250190625 | I56: 0.02100532407 | J56: 0.01583715278 | K56: 0.0266515625 | L56: 0.01902395833 | M56: 0.01896539352 | N56: 0.02261020833 | O56: 0.029375 | P56: 0.2797410301 | Q56: 02:13:22.890

Sheet Digilink
A1: 00:00:00 | B1: Deze tijd komt er bij.
A2: 12 | B2: etappe
B3: 2002-04-22
B4: MCH-010
B5: Lap# | C5: Lap Time | D5: Split Time | E5: Speed
B6: 1 | C6: 0:19'55.74 | D6: 0.01383958333
B7: 2 | C7: 0:00'13.15 | D7: 0.01399178241
B8: 3 | C8: 0:00'17.66 | D8: 0.01419618056
B9: 4 | C9: 0:01'02.06 | D9: 0.01491446759
B10: 1900-01-05 | C10: 0:00'16.60 | D10: 0.01510659722
B11: 6 | C11: 0:00'04.84 | D11: 0.01516261574
B12: 7 | C12: 0:00'03.62 | D12: 0.01520451389
B13: 8 | C13: 0:00'32.13 | D13: 0.01557638889
B14: 9 | C14: 0:00'37.06 | D14: 0.01600532407
B15: 10 | C15: 0:00'06.00 | D15: 0.01607476852
B16: 11 | C16: 0:01'22.50 | D16: 0.01702962963
B17: 12 | C17: 0:00'18.41 | D17: 0.01724270833
B18: 13 | C18: 0:00'08.06 | D18: 0.01733599537
B19: 14 | C19: 0:00'18.81 | D19: 0.0175537037
B20: 15 | C20: 0:00'06.44 | D20: 0.01762824074
B21: 16 | C21: 0:00'22.62 | D21: 0.0178900463
B22: 17 | C22: 0:00'08.57 | D22: 0.01798923611
B23: 18 | C23: 0:00'07.34 | D23: 0.01807418981
B24: 19 | C24: 0:00'21.63 | D24: 0.01832453704
B25: 20 | C25: 0:00'08.31 | D25: 0.01842071759
B26: 21 | C26: 0:00'00.44 | D26: 0.01842581019
B27: 22 | C27: 0:00'00.46 | D27: 0.01843113426
B28: 23 | C28: 0:00'43.13 | D28: 0.01893032407
B29: 24 | C29: 0:00'30.69 | D29: 0.01928553241
B30: 25 | C30: 0:00'00.72 | D30: 0.01929386574
B31: 26 | C31: 0:00'01.71 | D31: 0.01931365741
B32: 27 | C32: 0:00'00.57 | D32: 0.01932025463
B33: 28 | C33: 0:00'02.53 | D33: 0.01934953704
B34: 29 | C34: 0:00'06.19 | D34: 0.01942118056
B35: 30 | C35: 0:00'11.43 | D35: 0.01955347222
B36: 31 | C36: 0:00'03.69 | D36: 0.01959618056
B37: 32 | C37: 0:00'09.44 | D37: 0.01970543981
B38: 33 | C38: 0:00'24.09 | D38: 0.01998425926
B39: 34 | C39: 0:00'02.69 | D39: 0.02001539352
B40: 35 | C40: 0:00'01.44 | D40: 0.02003206019
B41: 36 | C41: 0:00'05.68 | D41: 0.02009780093
B42: 37 | C42: 0:00'05.16 | D42: 0.02015752315
B43: 38 | C43: 0:00'01.66 | D43: 0.02017673611
B44: 39 | C44: 0:00'43.28 | D44: 0.02067766204
B45: 40 | C45: 0:00'15.56 | D45: 0.02085775463
B46: 41 | C46: 0:00'00.41 | D46: 0.0208625
B47: 42 | C47: 0:00'03.22 | D47: 0.02089976852
B48: 43 | C48: 0:00'05.62 | D48: 0.02096481481
B49: 44 | C49: 0:00'11.53 | D49: 0.02109826389
B50: 45 | C50: 0:00'04.78 | D50: 0.02115358796
B51: 46 | C51: 0:00'02.50 | D51: 0.02118252315
B52: 47 | C52: 0:00'14.91 | D52: 0.02135509259
B53: 48 | C53: 0:00'16.53 | D53: 0.02154641204
B54: 49 | C54: 0:00'02.38 | D54: 0.02157395833
B55: 50 | C55: 0:00'30.84 | D55: 0.02193090278
B56: 51 | C56: 0:00'02.28 | D56: 0.02195729167
B57: 52 | C57: 0:01'26.88 | D57: 0.02296284722
B58: 53 | C58: 0:00'52.71 | D58: 0.02357291667
B59: Stop time | C59: 0:34'03.99
B60: Average time | C60: 0:00'38.42
B61: Fastest time | C61: 0:00'00.41

Sheet N1L (hidden)
B1: Emmeloord-Luttelgeest | C1: 8.15 - 9.24 (1 h 9 min)
A3: 1 | B3: De Corner | C3: Luc Beuckers
A4: 2 | B4: hardloopbegeleidingopmaat/klif 18 | C4: Bas Hollegien
A5: 3 | B5: Quick Jewels | C5: Meindert Ruiten
A6: 4 | B6: KLIF18 | C6: Jacolien Ruizendaal | D6: v
A7: 5 | B7: Dujob | C7: Tomas Prysmantas
A8: 6 | B8: Running Ruijters | C8: Jos Ruijter
A9: 7 | B9: ASV Rutten | C9: Edwin Wever
A10: 8 | B10: Hardloopteam Bant | C10: Gabry Vlot
A11: 9 | B11: VAN BLOOIS SPORTADVIES | C11: William van Boven
A12: 10 | B12: RUN TEAM MARKNESSE | C12: Klaas Jurjen Zachariasse
A13: 11 | B13: Kraggenburg 4 | C13: Marco van Diepen
A14: 12 | B14: Hekwerkwebshop.nl | C14: Andries de Boer
A15: 13 | B15: KLIF18 ladies | C15: Willeke Post | D15: v
A16: 14 | B16: Vivan komt dr' an | C16: Arjen Spaan
A17: 15 | B17: Aves | C17: Marianne Slimmen | D17: v
A18: 16 | B18: Team Nagele | C18: Wilco van der Sar
A19: 17 | B19: SAMEN ONDER WEG | C19: Olaf van Campen
A20: 18 | B20: Fit Fun/ Anytime | C20: Wim Kuis
A21: 19 | B21: STC Rutten | C21: Anne Oenema
A22: 20 | B22: Creil | C22: Erna van Es-Keen | D22: v
A23: 21 | B23: 050media | C23: Gert Jan van de Berg
A24: 22 | B24: Tollebeek in beweging | C24: Luc Overvoorde
A25: 23 | B25: Seaconcept | C25: Reindert Rorije
A26: 24 | B26: Ter Haar Family & Friends | C26: Harjan ter Haar
A27: 25 | B27: Hardloop groep Ens | C27: Maarten Maaskant
A28: 26 | B28: Van Vilsteren Marknesse.nl | C28: Iris Peters | D28: v
A29: 27 | B29: Running Team Espel | C29: Pieter Maas
A30: 28 | B30: Waterman Onions - Team 1 | C30: Wim Waterman
A31: 29 | B31: Waterman Onions Pink Ladies | C31: Annegina de Vries | D31: v
A32: 30 | B32: Autofirst Minnaard | C32: Daniëlle Willems | D32: v
A33: 31 | B33: fam.Dekker Draaft Door | C33: Arjan Vroegop
A34: 32 | B34: Ber-di-do | C34: Harold Oeverhaus
A35: 33 | B35: woensdagavondlopers | C35: hendrik hornstra
A36: 34 | B36: Team 't Voorhuys | C36: Rick Hellendoorn
A37: 35 | B37: Waterman Onions 2 | C37: Jan Dam
A38: 36 | B38: Schol op Urk | C38: Bert van Slooten
A39: 37 | B39: Van Staveren | C39: Coen Willems
A40: 38 | B40: Vegterlopers | C40: Alexander Kooijman
A41: 39 | B41: Suplacon | C41: Lianne van de Guchte | D41: v
A42: 40 | B42: Mercatus, lopen op z'n best | C42: Matthijs de Vries
A43: 41 | B43: Advies en Kies en Runners | C43: Johann Diermeier
A44: 42 | B44: Kinderopvang Pipo | C44: Rafaël
A45: 43 | B45: Lerøy Seafood NL | C45: Wouter de Vries
A46: 44 | B46: Tafelronde Noordoostpolder | C46: Gert-Jan Baken
A47: 45 | B47: Berechja College | C47: Dirk Wesseling
A48: 46 | B48: Hoekstra Assurantie | C48: Jan Willem Koster
A49: 47 | B49: CrossFit Urk | C49: Cornelis Romkes
A50: 48 | B50: Cultuurbedrijf NOP | C50: #####
A51: 49 | B51: Flynth | C51: Albert Koffeman
A52: 50 | B52: Nick en de rest | C52: Peter-Paul Frijlink
A53: 51 | B53: van Urk voeding | C53: Cees Zwarthoed
A54: 52 | B54: Pool-der run4fun | C54: Krzysiek
A55: 53 | B55: UCT | C55: #####
A56: 54 | B56: De Dijkies | C56: Arnoud Kievit
A57: 55 | B57: Fifty-Five | C57: Gerard Hesselmans
A58: 56 | B58: De broodlopers | C58: Mark Groenewold

Sheet N2M (hidden)
A1: Luttelgeest - Marknesse | C1: 9.24 - 9.53 (29 min)
A3: 1 | B3: De Corner | C3: Jazlin Ruinermans | D3: v
A4: 2 | B4: hardloopbegeleidingopmaat/klif 18 | C4: Priscilla Freke | D4: v
A5: 3 | B5: Quick Jewels | C5: Cornelis Post
A6: 4 | B6: KLIF18 | C6: Jeroen Vels
A7: 5 | B7: Dujob | C7: Willem de Vries
A8: 6 | B8: Running Ruijters | C8: Siem Sweep
A9: 7 | B9: ASV Rutten | C9: Meinder Buynink
A10: 8 | B10: Hardloopteam Bant | C10: Tom Vermunt
A11: 9 | B11: VAN BLOOIS SPORTADVIES | C11: Ylva Snoek | D11: v
A12: 10 | B12: RUN TEAM MARKNESSE | C12: Bennie Janssen
A13: 11 | B13: Kraggenburg 4 | C13: Joost Potters
A14: 12 | B14: Hekwerkwebshop.nl | C14: Sarah Visscher | D14: v
A15: 13 | B15: KLIF18 ladies | C15: Margo Ras | D15: v
A16: 14 | B16: Vivan komt dr' an | C16: Paul Benjamins
A17: 15 | B17: Aves | C17: Greta Procee | D17: v
A18: 16 | B18: Team Nagele | C18: Margo Hanson | D18: v
A19: 17 | B19: SAMEN ONDER WEG | C19: Hans Jurgen Knapmann
A20: 18 | B20: Fit Fun/ Anytime | C20: Adriaan Bootsma
A21: 19 | B21: STC Rutten | C21: Selina de Jong | D21: v
A22: 20 | B22: Creil | C22: Kris van Valburg | D22: v
A23: 21 | B23: 050media | C23: Niek Hessels
A24: 22 | B24: Tollebeek in beweging | C24: Trudy van der Pol | D24: v
A25: 23 | B25: Seaconcept | C25: Auke Pasterkamp
A26: 24 | B26: Ter Haar Family & Friends | C26: Alko Tolner
A27: 25 | B27: Hardloop groep Ens | C27: Ingrid Dohmen | D27: v
A28: 26 | B28: Van Vilsteren Marknesse.nl | C28: Rob Loman
A29: 27 | B29: Running Team Espel | C29: Jeroen van de Berg
A30: 28 | B30: Waterman Onions - Team 1 | C30: Boguslaw Korcz
A31: 29 | B31: Waterman Onions Pink Ladies | C31: Isabel van Kuijk | D31: v
A32: 30 | B32: Autofirst Minnaard | C32: Kyra Ronner | D32: v
A33: 31 | B33: fam.Dekker Draaft Door | C33: Iris Vroegop | D33: v
A34: 32 | B34: Ber-di-do | C34: Marjanne Sloots | D34: v
A35: 33 | B35: woensdagavondlopers | C35: ramon vschendel
A36: 34 | B36: Team 't Voorhuys | C36: Robbin Gerritsen
A37: 35 | B37: Waterman Onions 2 | C37: Sylwia Lidwa | D37: v
A38: 36 | B38: Schol op Urk | C38: Linda de Boer | D38: v
A39: 37 | B39: Van Staveren | C39: Pim Meijer
A40: 38 | B40: Vegterlopers | C40: Roan Tolsma
A41: 39 | B41: Suplacon | C41: Vera te Riele | D41: v
A42: 40 | B42: Mercatus, lopen op z'n best | C42: Judith de Visser | D42: v
A43: 41 | B43: Advies en Kies en Runners | C43: Karel Kooij
A44: 42 | B44: Kinderopvang Pipo | C44: Cynthia | D44: v
A45: 43 | B45: Lerøy Seafood NL | C45: Peter Lens
A46: 44 | B46: Tafelronde Noordoostpolder | C46: Rudi Verwer
A47: 45 | B47: Berechja College | C47: John Dam
A48: 46 | B48: Hoekstra Assurantie | C48: Wilma Harteveld | D48: v
A49: 47 | B49: CrossFit Urk | C49: Jan Pieter Baarssen
A50: 48 | B50: Cultuurbedrijf NOP | C50: #####
A51: 49 | B51: Flynth | C51: Lubbert van Otterloo
A52: 50 | B52: Nick en de rest | C52: Jantine van der Linde | D52: v
A53: 51 | B53: van Urk voeding | C53: Jelle Kramer
A54: 52 | B54: Pool-der run4fun | C54: Marcin
A55: 53 | B55: UCT | C55: #####
A56: 54 | B56: De Dijkies | C56: Anneleen Dijkstra | D56: v
A57: 55 | B57: Fifty-Five | C57: Anneke Aarnink | D57: v
A58: 56 | B58: De broodlopers | C58: Meghan van Lent | D58: v

Sheet N3K (hidden)
A1: Marknesse - Kraggenburg | C1: 9.55 - 10.31 (36 min)
A3: 1 | B3: De Corner | C3: Agnes Olgers | D3: v
A4: 2 | B4: hardloopbegeleidingopmaat/klif 18 | C4: Thomas Straathof
A5: 3 | B5: Quick Jewels | C5: Pieter Buter
A6: 4 | B6: KLIF18 | C6: Lucas Rustenburg
A7: 5 | B7: Dujob | C7: Jan Willem Woord
A8: 6 | B8: Running Ruijters | C8: Menno Ruijter
A9: 7 | B9: ASV Rutten | C9: Ruud Burger
A10: 8 | B10: Hardloopteam Bant | C10: Max Bouma
A11: 9 | B11: VAN BLOOIS SPORTADVIES | C11: Kees Regelink
A12: 10 | B12: RUN TEAM MARKNESSE | C12: Chris Berndsen
A13: 11 | B13: Kraggenburg 4 | C13: Jesper Oosterwijk
A14: 12 | B14: Hekwerkwebshop.nl | C14: Adriaan Tiemen de Boer
A15: 13 | B15: KLIF18 ladies | C15: Barbara Kaptein | D15: v
A16: 14 | B16: Vivan komt dr' an | C16: Anna Heemskerk | D16: v
A17: 15 | B17: Aves | C17: Jaqueline Koets | D17: v
A18: 16 | B18: Team Nagele | C18: Corine de Vries | D18: v
A19: 17 | B19: SAMEN ONDER WEG | C19: Gerben Eenkhoorn
A20: 18 | B20: Fit Fun/ Anytime | C20: Henk Pals
A21: 19 | B21: STC Rutten | C21: Andrina Weerman | D21: v
A22: 20 | B22: Creil | C22: Corine Boonen | D22: v
A23: 21 | B23: 050media | C23: Arjen Hollenga
A24: 22 | B24: Tollebeek in beweging | C24: Jacco van Breugel
A25: 23 | B25: Seaconcept | C25: Hans Hamersma
A26: 24 | B26: Ter Haar Family & Friends | C26: Denise Lassche | D26: v
A27: 25 | B27: Hardloop groep Ens | C27: Frans Koeslag
A28: 26 | B28: Van Vilsteren Marknesse.nl | C28: Mark
A29: 27 | B29: Running Team Espel | C29: Piet Veeke
A30: 28 | B30: Waterman Onions - Team 1 | C30: Naomi Waterman | D30: v
A31: 29 | B31: Waterman Onions Pink Ladies | C31: Vroukje Romkes | D31: v
A32: 30 | B32: Autofirst Minnaard | C32: Maikel Minnaard
A33: 31 | B33: fam.Dekker Draaft Door | C33: Henk Dekker
A34: 32 | B34: Ber-di-do | C34: Afke Kruis | D34: v
A35: 33 | B35: woensdagavondlopers | C35: Linda Schwering | D35: v
A36: 34 | B36: Team 't Voorhuys | C36: Daphne Hellendoorn | D36: v
A37: 35 | B37: Waterman Onions 2 | C37: Taco ten Brinke
A38: 36 | B38: Schol op Urk | C38: Juan Tol
A39: 37 | B39: Van Staveren | C39: Robin Boersma
A40: 38 | B40: Vegterlopers | C40: Cor Vegterlo
A41: 39 | B41: Suplacon | C41: Adrian Gliwka
A42: 40 | B42: Mercatus, lopen op z'n best | C42: Johan van Buiten
A43: 41 | B43: Advies en Kies en Runners | C43: Peter Haikens
A44: 42 | B44: Kinderopvang Pipo | C44: Judith | D44: v
A45: 43 | B45: Lerøy Seafood NL | C45: Jelle Romkes
A46: 44 | B46: Tafelronde Noordoostpolder | C46: Arjan Vaandrager
A47: 45 | B47: Berechja College | C47: Maarten Post | D47: v
A48: 46 | B48: Hoekstra Assurantie | C48: Tim Brouwer
A49: 47 | B49: CrossFit Urk | C49: Kobus Bos
A50: 48 | B50: Cultuurbedrijf NOP | C50: #####
A51: 49 | B51: Flynth | C51: Stephan Wiersma
A52: 50 | B52: Nick en de rest | C52: Floortje Ruijter | D52: v
A53: 51 | B53: van Urk voeding | C53: Albert Ras
A54: 52 | B54: Pool-der run4fun | C54: Magda | D54: v
A55: 53 | B55: UCT | C55: #####
A56: 54 | B56: De Dijkies | C56: Esmee Dijkstra | D56: v
A57: 55 | B57: Fifty-Five | C57: Bauke Hoekstra
A58: 56 | B58: De broodlopers | C58: Erwin Koolhof

Sheet N4E (hidden)
A1: Kraggenburg - Ens | C1: 10.33 - 11.13 (40 min)
A3: 1 | B3: De Corner | C3: Jolijn Zijlstra | D3: v
A4: 2 | B4: hardloopbegeleidingopmaat/klif 18 | C4: Nathan Uitslag
A5: 3 | B5: Quick Jewels | C5: Geert Hemelrijk
A6: 4 | B6: KLIF18 | C6: Kees Kramer
A7: 5 | B7: Dujob | C7: Johan Berkhout
A8: 6 | B8: Running Ruijters | C8: Nick Ruijter
A9: 7 | B9: ASV Rutten | C9: Erik Groen
A10: 8 | B10: Hardloopteam Bant | C10: Dennis Seine
A11: 9 | B11: VAN BLOOIS SPORTADVIES | C11: Annie van der Linde | D11: v
A12: 10 | B12: RUN TEAM MARKNESSE | C12: Joan Scholtens
A13: 11 | B13: Kraggenburg 4 | C13: Jolien Scholtens | D13: v
A14: 12 | B14: Hekwerkwebshop.nl | C14: Simon Bakker
A15: 13 | B15: KLIF18 ladies | C15: Jamie Jongman | D15: v
A16: 14 | B16: Vivan komt dr' an | C16: Richard Heemskerk
A17: 15 | B17: Aves | C17: Molle Stuiver
A18: 16 | B18: Team Nagele | C18: Erwin Bogaard
A19: 17 | B19: SAMEN ONDER WEG | C19: Rene Vernooy
A20: 18 | B20: Fit Fun/ Anytime | C20: Klaas Doornbos
A21: 19 | B21: STC Rutten | C21: Ulrike Weerman | D21: v
A22: 20 | B22: Creil | C22: Arjan Harkema
A23: 21 | B23: 050media | C23: Esther Rijkelijkhuizen | D23: v
A24: 22 | B24: Tollebeek in beweging | C24: Jannes de Vries
A25: 23 | B25: Seaconcept | C25: Hans van Eunen
A26: 24 | B26: Ter Haar Family & Friends | C26: Niek ter Haar
A27: 25 | B27: Hardloop groep Ens | C27: Riekus Nijmijer
A28: 26 | B28: Van Vilsteren Marknesse.nl | C28: Gaston
A29: 27 | B29: Running Team Espel | C29: Pim de Wit
A30: 28 | B30: Waterman Onions - Team 1 | C30: Wilco Besuijen
A31: 29 | B31: Waterman Onions Pink Ladies | C31: Albert Jan van Dokkum
A32: 30 | B32: Autofirst Minnaard | C32: Rocus de Bruijne
A33: 31 | B33: fam.Dekker Draaft Door | C33: Michiel Tensen
A34: 32 | B34: Ber-di-do | C34: Gerrit Knoeff
A35: 33 | B35: woensdagavondlopers | C35: annette hazenberg | D35: v
A36: 34 | B36: Team 't Voorhuys | C36: Vera Ton | D36: v
A37: 35 | B37: Waterman Onions 2 | C37: Henry Dam
A38: 36 | B38: Schol op Urk | C38: Geraldine Molenaar | D38: v
A39: 37 | B39: Van Staveren | C39: Jorn Goos
A40: 38 | B40: Vegterlopers | C40: Anne Vegterlo | D40: v
A41: 39 | B41: Suplacon | C41: Jory Cornelis
A42: 40 | B42: Mercatus, lopen op z'n best | C42: Vincent v/d Weerd
A43: 41 | B43: Advies en Kies en Runners | C43: Anneke Keizer | D43: v
A44: 42 | B44: Kinderopvang Pipo | C44: Jarno
A45: 43 | B45: Lerøy Seafood NL | C45: Ruben Geerts
A46: 44 | B46: Tafelronde Noordoostpolder | C46: Melvin Kok
A47: 45 | B47: Berechja College | C47: Trudie de Vries | D47: v
A48: 46 | B48: Hoekstra Assurantie | C48: Louwe Kapitein
A49: 47 | B49: CrossFit Urk | C49: Hassan Hajji
A50: 48 | B50: Cultuurbedrijf NOP | C50: #####
A51: 49 | B51: Flynth | C51: Rick Steller
A52: 50 | B52: Nick en de rest | C52: Gerard van Etten
A53: 51 | B53: van Urk voeding | C53: Jeannette | D53: v
A54: 52 | B54: Pool-der run4fun | C54: Gabi | D54: v
A55: 53 | B55: UCT | C55: #####
A56: 54 | B56: De Dijkies | C56: Ryon Dijkstra
A57: 55 | B57: Fifty-Five | C57: Yke van der Vegt | D57: v
A58: 56 | B58: De broodlopers | C58: Berend Groen

Sheet N5N (hidden)
A1: Ens - Nagele | C1: 11.15 - 12.03 (48 min)
A3: 1 | B3: De Corner | C3: Jacob Snoek
A4: 2 | B4: hardloopbegeleidingopmaat/klif 18 | C4: Vincent Lankhaar
A5: 3 | B5: Quick Jewels | C5: Leon Brands
A6: 4 | B6: KLIF18 | C6: Jan Sinke
A7: 5 | B7: Dujob | C7: Jan Bakker
A8: 6 | B8: Running Ruijters | C8: Robin Ruijter
A9: 7 | B9: ASV Rutten | C9: Gwendolien Flokstra | D9: v
A10: 8 | B10: Hardloopteam Bant | C10: Han van Wegen
A11: 9 | B11: VAN BLOOIS SPORTADVIES | C11: Egon Boerema
A12: 10 | B12: RUN TEAM MARKNESSE | C12: Peter Schwering
A13: 11 | B13: Kraggenburg 4 | C13: Mike Temmink
A14: 12 | B14: Hekwerkwebshop.nl | C14: Dubbele de Boer
A15: 13 | B15: KLIF18 ladies | C15: Marja Kramer | D15: v
A16: 14 | B16: Vivan komt dr' an | C16: Erwin van Loo
A17: 15 | B17: Aves | C17: Chris de Boer
A18: 16 | B18: Team Nagele | C18: Janine Bernard | D18: v
A19: 17 | B19: SAMEN ONDER WEG | C19: Raimond Lubbers
A20: 18 | B20: Fit Fun/ Anytime | C20: Tim
A21: 19 | B21: STC Rutten | C21: Sietse de Vries
A22: 20 | B22: Creil | C22: Iris Bakker | D22: v
A23: 21 | B23: 050media | C23: Sebastiaan Bakker
A24: 22 | B24: Tollebeek in beweging | C24: Eric Pelleboer
A25: 23 | B25: Seaconcept | C25: Lesley de Visser
A26: 24 | B26: Ter Haar Family & Friends | C26: Marc Bakker
A27: 25 | B27: Hardloop groep Ens | C27: Joost Maaskant
A28: 26 | B28: Van Vilsteren Marknesse.nl | C28: Addy Peters
A29: 27 | B29: Running Team Espel | C29: Petra Kramer | D29: v
A30: 28 | B30: Waterman Onions - Team 1 | C30: Pieter Kuyper
A31: 29 | B31: Waterman Onions Pink Ladies | C31: Bonnette van den Berg | D31: v
A32: 30 | B32: Autofirst Minnaard | C32: Ryan Bennik
A33: 31 | B33: fam.Dekker Draaft Door | C33: Luuk Vroegop
A34: 32 | B34: Ber-di-do | C34: Gerwin Dibbits
A35: 33 | B35: woensdagavondlopers | C35: frens heijn
A36: 34 | B36: Team 't Voorhuys | C36: Twan Hakvoort
A37: 35 | B37: Waterman Onions 2 | C37: Phensri Schouten | D37: v
A38: 36 | B38: Schol op Urk | C38: Jan Pieter Schaak
A39: 37 | B39: Van Staveren | C39: Stefan Wisse
A40: 38 | B40: Vegterlopers | C40: Pim van der Maden
A41: 39 | B41: Suplacon | C41: Otis Robert
A42: 40 | B42: Mercatus, lopen op z'n best | C42: Ben Wentink
A43: 41 | B43: Advies en Kies en Runners | C43: Nico Keizer
A44: 42 | B44: Kinderopvang Pipo | C44: Enrico
A45: 43 | B45: Lerøy Seafood NL | C45: Willem de Vries
A46: 44 | B46: Tafelronde Noordoostpolder | C46: Hans Langedijk
A47: 45 | B47: Berechja College | C47: Sjoert Visser
A48: 46 | B48: Hoekstra Assurantie | C48: Jelle de Boer
A49: 47 | B49: CrossFit Urk | C49: Rinke Oost
A50: 48 | B50: Cultuurbedrijf NOP | C50: #####
A51: 49 | B51: Flynth | C51: Theo van Steeg
A52: 50 | B52: Nick en de rest | C52: Jarno Steenbergen
A53: 51 | B53: van Urk voeding | C53: Rinke
A54: 52 | B54: Pool-der run4fun | C54: Maciek
A55: 53 | B55: UCT | C55: #####
A56: 54 | B56: De Dijkies | C56: Peter Smid
A57: 55 | B57: Fifty-Five | C57: Siewert de Jong
A58: 56 | B58: De broodlopers | C58: Stefan de Goede

Sheet N6T (hidden)
A1: Nagele -Tollebeek | C1: 12.05 - 12.39 (34 min)
A3: 1 | B3: De Corner | C3: Maurice Mulder
A4: 2 | B4: hardloopbegeleidingopmaat/klif 18 | C4: Leon Koch
A5: 3 | B5: Quick Jewels | C5: Pieter Coenen
A6: 4 | B6: KLIF18 | C6: Jan Jongman
A7: 5 | B7: Dujob | C7: Kornelius Medendorp
A8: 6 | B8: Running Ruijters | C8: Anton Ruijter
A9: 7 | B9: ASV Rutten | C9: Tom Loman
A10: 8 | B10: Hardloopteam Bant | C10: Annerieke Doornbos | D10: v
A11: 9 | B11: VAN BLOOIS SPORTADVIES | C11: Heleen van Dijke | D11: v
A12: 10 | B12: RUN TEAM MARKNESSE | C12: Anke van Oorschot | D12: v
A13: 11 | B13: Kraggenburg 4 | C13: Rens Hupkes
A14: 12 | B14: Hekwerkwebshop.nl | C14: Steven Hoefnagel
A15: 13 | B15: KLIF18 ladies | C15: Babette Jongman | D15: v
A16: 14 | B16: Vivan komt dr' an | C16: Rosalie Bakker | D16: v
A17: 15 | B17: Aves | C17: Geert- Jan
A18: 16 | B18: Team Nagele | C18: Niels Poppe
A19: 17 | B19: SAMEN ONDER WEG | C19: Sjaco Wierda
A20: 18 | B20: Fit Fun/ Anytime | C20: Jan Willem de Boer
A21: 19 | B21: STC Rutten | C21: Willem de Vries
A22: 20 | B22: Creil | C22: Andrew Koziarski
A23: 21 | B23: 050media | C23: Cor Dijkshoorn
A24: 22 | B24: Tollebeek in beweging | C24: Corné Boons
A25: 23 | B25: Seaconcept | C25: Jaap Post
A26: 24 | B26: Ter Haar Family & Friends | C26: Jan Jonkman
A27: 25 | B27: Hardloop groep Ens | C27: Corne Doggen
A28: 26 | B28: Van Vilsteren Marknesse.nl | C28: Youri van Vilsteren
A29: 27 | B29: Running Team Espel | C29: Mariska van Strien | D29: v
A30: 28 | B30: Waterman Onions - Team 1 | C30: Gergana Koleva | D30: v
A31: 29 | B31: Waterman Onions Pink Ladies | C31: Agnes Gnodde | D31: v
A32: 30 | B32: Autofirst Minnaard | C32: Rémon Jansen
A33: 31 | B33: fam.Dekker Draaft Door | C33: Eelco Tulp
A34: 32 | B34: Ber-di-do | C34: Martin de Jongh
A35: 33 | B35: woensdagavondlopers | C35: theo willemsen
A36: 34 | B36: Team 't Voorhuys | C36: Renée Hellendoorn | D36: v
A37: 35 | B37: Waterman Onions 2 | C37: Ewout Wassink
A38: 36 | B38: Schol op Urk | C38: Julian van Bruggen
A39: 37 | B39: Van Staveren | C39: Sander Wisse
A40: 38 | B40: Vegterlopers | C40: Ingrid Schilstra | D40: v
A41: 39 | B41: Suplacon | C41: Ronyvan Almeida
A42: 40 | B42: Mercatus, lopen op z'n best | C42: Julian van Buiten
A43: 41 | B43: Advies en Kies en Runners | C43: Marien van Staalduine
A44: 42 | B44: Kinderopvang Pipo | C44: Piet
A45: 43 | B45: Lerøy Seafood NL | C45: Henk Brouwer
A46: 44 | B46: Tafelronde Noordoostpolder | C46: Bart Loman
A47: 45 | B47: Berechja College | C47: Annelies Smaale | D47: v
A48: 46 | B48: Hoekstra Assurantie | C48: Margriet de Boer | D48: v
A49: 47 | B49: CrossFit Urk | C49: Jeroen Sleurink
A50: 48 | B50: Cultuurbedrijf NOP | C50: #####
A51: 49 | B51: Flynth | C51: Chris van Otterloo
A52: 50 | B52: Nick en de rest | C52: Jantien de Boer-Matthijsen | D52: v
A53: 51 | B53: van Urk voeding | C53: Laurie Ras | D53: v
A54: 52 | B54: Pool-der run4fun | C54: Sebastian
A55: 53 | B55: UCT | C55: #####
A56: 54 | B56: De Dijkies | C56: Maarten Faber
A57: 55 | B57: Fifty-Five | C57: Rommy de Witte | D57: v
A58: 56 | B58: De broodlopers | C58: Roland Kuper

Sheet N7U (hidden)
A1: Tollebeek - Urk | C1: 12.41 - 13.13 (32 min)
A3: 1 | B3: De Corner | C3: Alie Snoek | D3: v
A4: 2 | B4: hardloopbegeleidingopmaat/klif 18 | C4: Jeroen Woltinge
A5: 3 | B5: Quick Jewels | C5: Jakke Goosen
A6: 4 | B6: KLIF18 | C6: Tiny de Vries | D6: v
A7: 5 | B7: Dujob | C7: Johannes Berkhout
A8: 6 | B8: Running Ruijters | C8: Richard Ruijter
A9: 7 | B9: ASV Rutten | C9: Richard Schrijver
A10: 8 | B10: Hardloopteam Bant | C10: Tom Habers
A11: 9 | B11: VAN BLOOIS SPORTADVIES | C11: Grietje Romkes | D11: v
A12: 10 | B12: RUN TEAM MARKNESSE | C12: Maartje Masteling | D12: v
A13: 11 | B13: Kraggenburg 4 | C13: Kas van Egmond
A14: 12 | B14: Hekwerkwebshop.nl | C14: Helena Bakker | D14: v
A15: 13 | B15: KLIF18 ladies | C15: Tineke Schenk | D15: v
A16: 14 | B16: Vivan komt dr' an | C16: Josephina de Boer | D16: v
A17: 15 | B17: Aves | C17: Inge Scheper | D17: v
A18: 16 | B18: Team Nagele | C18: Marije Bogaard | D18: v
A19: 17 | B19: SAMEN ONDER WEG | C19: Kirsten Wierda | D19: v
A20: 18 | B20: Fit Fun/ Anytime | C20: Johannes ( van Trientje)
A21: 19 | B21: STC Rutten | C21: Maaike de Kroon | D21: v
A22: 20 | B22: Creil | C22: Tessa Koeman | D22: v
A23: 21 | B23: 050media | C23: Daan Hoving
A24: 22 | B24: Tollebeek in beweging | C24: Hilde Roskam | D24: v
A25: 23 | B25: Seaconcept | C25: Jacob de Vries
A26: 24 | B26: Ter Haar Family & Friends | C26: Eva ter Haar | D26: v
A27: 25 | B27: Hardloop groep Ens | C27: Bianca de Olde | D27: v
A28: 26 | B28: Van Vilsteren Marknesse.nl | C28: Arno Matthijssen
A29: 27 | B29: Running Team Espel | C29: Peter van Strien
A30: 28 | B30: Waterman Onions - Team 1 | C30: Bep Dunnink | D30: v
A31: 29 | B31: Waterman Onions Pink Ladies | C31: Loura Visser | D31: v
A32: 30 | B32: Autofirst Minnaard | C32: Paul van de Kemp
A33: 31 | B33: fam.Dekker Draaft Door | C33: Janneke Dekker | D33: v
A34: 32 | B34: Ber-di-do | C34: Mark de Jong
A35: 33 | B35: woensdagavondlopers | C35: arie v tilburg
A36: 34 | B36: Team 't Voorhuys | C36: Jarno Spijker
A37: 35 | B37: Waterman Onions 2 | C37: Erik Waterman
A38: 36 | B38: Schol op Urk | C38: Hein Slump
A39: 37 | B39: Van Staveren | C39: Hans Harleman
A40: 38 | B40: Vegterlopers | C40: José Schilstra | D40: v
A41: 39 | B41: Suplacon | C41: Kees Meun
A42: 40 | B42: Mercatus, lopen op z'n best | C42: Jan Zuidema
A43: 41 | B43: Advies en Kies en Runners | C43: Ingrid Timmer | D43: v
A44: 42 | B44: Kinderopvang Pipo | C44: Anja | D44: v
A45: 43 | B45: Lerøy Seafood NL | C45: Sanne Rook | D45: v
A46: 44 | B46: Tafelronde Noordoostpolder | C46: René van Meijel
A47: 45 | B47: Berechja College | C47: Willie Kiefte | D47: v
A48: 46 | B48: Hoekstra Assurantie | C48: Emma Snoek | D48: v
A49: 47 | B49: CrossFit Urk | C49: Albert Verhoeff
A50: 48 | B50: Cultuurbedrijf NOP | C50: #####
A51: 49 | B51: Flynth | C51: Ynze Scheffer
A52: 50 | B52: Nick en de rest | C52: Hayley Faber | D52: v
A53: 51 | B53: van Urk voeding | C53: Liza Hoorn | D53: v
A54: 52 | B54: Pool-der run4fun | C54: Karolina | D54: v
A55: 53 | B55: UCT | C55: #####
A56: 54 | B56: De Dijkies | C56: Annet Dijkstra | D56: v
A57: 55 | B57: Fifty-Five | C57: Jopie van Benthem | D57: v
A58: 56 | B58: De broodlopers | C58: Linda Hoek | D58: v

Sheet N8E (hidden)
A1: Urk - Espel | C1: 13.15 - 14.03 (48 min)
A3: 1 | B3: De Corner | C3: Jan Loosman
A4: 2 | B4: hardloopbegeleidingopmaat/klif 18 | C4: Freek Koffeman
A5: 3 | B5: Quick Jewels | C5: Jurian Molenaar
A6: 4 | B6: KLIF18 | C6: Dinie Ras | D6: v
A7: 5 | B7: Dujob | C7: Jacob Baak
A8: 6 | B8: Running Ruijters | C8: Dion Ruijter
A9: 7 | B9: ASV Rutten | C9: Izak Hanse
A10: 8 | B10: Hardloopteam Bant | C10: Richard de Nijs
A11: 9 | B11: VAN BLOOIS SPORTADVIES | C11: Pieter Roskam
A12: 10 | B12: RUN TEAM MARKNESSE | C12: Matijs Beers
A13: 11 | B13: Kraggenburg 4 | C13: Joury Spelde
A14: 12 | B14: Hekwerkwebshop.nl | C14: Remco Visser
A15: 13 | B15: KLIF18 ladies | C15: Carolien de Vries | D15: v
A16: 14 | B16: Vivan komt dr' an | C16: Jan Lourens Posthumus
A17: 15 | B17: Aves | C17: Gert Koets
A18: 16 | B18: Team Nagele | C18: Michiel Eilander
A19: 17 | B19: SAMEN ONDER WEG | C19: Berend Schotanus
A20: 18 | B20: Fit Fun/ Anytime | C20: Teun de Boer
A21: 19 | B21: STC Rutten | C21: Stefan de Wilde
A22: 20 | B22: Creil | C22: Jacob Kroon
A23: 21 | B23: 050media | C23: Rory Bob de Haan
A24: 22 | B24: Tollebeek in beweging | C24: Leonard Naaktgeboren
A25: 23 | B25: Seaconcept | C25: Willem Hoekstra
A26: 24 | B26: Ter Haar Family & Friends | C26: Jeroen Moolenaar
A27: 25 | B27: Hardloop groep Ens | C27: Edwin Spekschate
A28: 26 | B28: Van Vilsteren Marknesse.nl | C28: Tim
A29: 27 | B29: Running Team Espel | C29: Roger Fahner
A30: 28 | B30: Waterman Onions - Team 1 | C30: Quinten
A31: 29 | B31: Waterman Onions Pink Ladies | C31: Geja Stoutjesdijk | D31: v
A32: 30 | B32: Autofirst Minnaard | C32: Moniek Buur | D32: v
A33: 31 | B33: fam.Dekker Draaft Door | C33: Matthijs Dekker
A34: 32 | B34: Ber-di-do | C34: Marko de Vos
A35: 33 | B35: woensdagavondlopers | C35: gerdi wicherson | D35: v
A36: 34 | B36: Team 't Voorhuys | C36: Kevin Stielstra
A37: 35 | B37: Waterman Onions 2 | C37: Marianne Kuyper | D37: v
A38: 36 | B38: Schol op Urk | C38: Albert Schreuder
A39: 37 | B39: Van Staveren | C39: Erwin van der Kamp
A40: 38 | B40: Vegterlopers | C40: Dennis Gommers
A41: 39 | B41: Suplacon | C41: Jelle Hakvoort
A42: 40 | B42: Mercatus, lopen op z'n best | C42: Jasper de Jong
A43: 41 | B43: Advies en Kies en Runners | C43: Ronald Graver
A44: 42 | B44: Kinderopvang Pipo | C44: Teun
A45: 43 | B45: Lerøy Seafood NL | C45: Jannie Romkes | D45: v
A46: 44 | B46: Tafelronde Noordoostpolder | C46: Jelmer Schotanus
A47: 45 | B47: Berechja College | C47: Angelique vd Kleef | D47: v
A48: 46 | B48: Hoekstra Assurantie | C48: Hessel Koster
A49: 47 | B49: CrossFit Urk | C49: Abbe Brouwer
A50: 48 | B50: Cultuurbedrijf NOP | C50: #####
A51: 49 | B51: Flynth | C51: Thom Brands
A52: 50 | B52: Nick en de rest | C52: Rick Sijtsma
A53: 51 | B53: van Urk voeding | C53: Riekelt van Urk
A54: 52 | B54: Pool-der run4fun | C54: Konrad
A55: 53 | B55: UCT | C55: #####
A56: 54 | B56: De Dijkies | C56: Koen van Raalten
A57: 55 | B57: Fifty-Five | C57: Hans Jansen
A58: 56 | B58: De broodlopers | C58: Marita van Overbeeke | D58: v

Sheet N9C (hidden)
A1: Espel - Creil | C1: 14.05 - 14.34 (29 min)
A3: 1 | B3: De Corner | C3: Annemiek Dekkert | D3: v
A4: 2 | B4: hardloopbegeleidingopmaat/klif 18 | C4: Hugo Jongejan
A5: 3 | B5: Quick Jewels | C5: Roelof van der Meulen
A6: 4 | B6: KLIF18 | C6: Peter Gnodde
A7: 5 | B7: Dujob | C7: Klaas Kramer
A8: 6 | B8: Running Ruijters | C8: Finn van Ginkel
A9: 7 | B9: ASV Rutten | C9: Milotte Maas | D9: v
A10: 8 | B10: Hardloopteam Bant | C10: Rudy van Steenbergen
A11: 9 | B11: VAN BLOOIS SPORTADVIES | C11: Femmy Gnodde | D11: v
A12: 10 | B12: RUN TEAM MARKNESSE | C12: Bert de Vries
A13: 11 | B13: Kraggenburg 4 | C13: Manon Snellink | D13: v
A14: 12 | B14: Hekwerkwebshop.nl | C14: Ida de Boer | D14: v
A15: 13 | B15: KLIF18 ladies | C15: Wille-Marie Brouwer | D15: v
A16: 14 | B16: Vivan komt dr' an | C16: Albert Bakker
A17: 15 | B17: Aves | C17: Cathy van den Berg | D17: v
A18: 16 | B18: Team Nagele | C18: Taco van der Sar
A19: 17 | B19: SAMEN ONDER WEG | C19: Edwin Schrotenboer
A20: 18 | B20: Fit Fun/ Anytime | C20: Wieger Vreeke
A21: 19 | B21: STC Rutten | C21: Maureen Roose | D21: v
A22: 20 | B22: Creil | C22: Tycho Krone
A23: 21 | B23: 050media | C23: Adrienne Moret | D23: v
A24: 22 | B24: Tollebeek in beweging | C24: Max Maarsen
A25: 23 | B25: Seaconcept | C25: Willem Schraal
A26: 24 | B26: Ter Haar Family & Friends | C26: Eline van Toledo | D26: v
A27: 25 | B27: Hardloop groep Ens | C27: Tialda van Ginkel | D27: v
A28: 26 | B28: Van Vilsteren Marknesse.nl | C28: Lisanne | D28: v
A29: 27 | B29: Running Team Espel | C29: Carlien Hendrickx | D29: v
A30: 28 | B30: Waterman Onions - Team 1 | C30: Jolien van den Berg | D30: v
A31: 29 | B31: Waterman Onions Pink Ladies | C31: Jannie van den Berg | D31: v
A32: 30 | B32: Autofirst Minnaard | C32: Menno Hiemstra
A33: 31 | B33: fam.Dekker Draaft Door | C33: Sofia Dekker | D33: v
A34: 32 | B34: Ber-di-do | C34: Jetze Kempenaar
A35: 33 | B35: woensdagavondlopers | C35: chris-marije | D35: v
A36: 34 | B36: Team 't Voorhuys | C36: Tim van Gunst
A37: 35 | B37: Waterman Onions 2 | C37: Pieter Jaarsma
A38: 36 | B38: Schol op Urk | C38: Arie van Urk
A39: 37 | B39: Van Staveren | C39: Wijnand Bok
A40: 38 | B40: Vegterlopers | C40: Mirjam Crève | D40: v
A41: 39 | B41: Suplacon | C41: Michel Stoelwinder
A42: 40 | B42: Mercatus, lopen op z'n best | C42: Engelbert Nikkels
A43: 41 | B43: Advies en Kies en Runners | C43: Kees Degenhart
A44: 42 | B44: Kinderopvang Pipo | C44: Oskar
A45: 43 | B45: Lerøy Seafood NL | C45: Jaap van de Berg
A46: 44 | B46: Tafelronde Noordoostpolder | C46: Michel Becker
A47: 45 | B47: Berechja College | C47: Vera Brouwer | D47: v
A48: 46 | B48: Hoekstra Assurantie | C48: Corina Oost | D48: v
A49: 47 | B49: CrossFit Urk | C49: Klasina Heijns | D49: v
A50: 48 | B50: Cultuurbedrijf NOP | C50: #####
A51: 49 | B51: Flynth | C51: René Offenberg
A52: 50 | B52: Nick en de rest | C52: Peter van Hulzen
A53: 51 | B53: van Urk voeding | C53: Klaas Willem
A54: 52 | B54: Pool-der run4fun | C54: Luca | D54: v
A55: 53 | B55: UCT | C55: #####
A56: 54 | B56: De Dijkies | C56: Maren Striker | D56: v
A57: 55 | B57: Fifty-Five | C57: Janette Schultink | D57: v
A58: 56 | B58: De broodlopers | C58: Anjo Geluk

Sheet N10R (hidden)
A1: Creil - Rutten | C1: 14.36 - 15.10 (34 min)
A3: 1 | B3: De Corner | C3: Doede Terluin
A4: 2 | B4: hardloopbegeleidingopmaat/klif 18 | C4: Jorn Hofstra
A5: 3 | B5: Quick Jewels | C5: Riekelt Romkes
A6: 4 | B6: KLIF18 | C6: Bart Maljaars
A7: 5 | B7: Dujob | C7: Jacob Hoekstra
A8: 6 | B8: Running Ruijters | C8: Marcel Ruijter
A9: 7 | B9: ASV Rutten | C9: Dik Nieuwenhuizen
A10: 8 | B10: Hardloopteam Bant | C10: Dirk Jan Doornbos
A11: 9 | B11: VAN BLOOIS SPORTADVIES | C11: Hessel de Vries
A12: 10 | B12: RUN TEAM MARKNESSE | C12: Stef Masteling
A13: 11 | B13: Kraggenburg 4 | C13: Rinke Biesheuvel
A14: 12 | B14: Hekwerkwebshop.nl | C14: Hendrik Pasterkamp
A15: 13 | B15: KLIF18 ladies | C15: Jara de Boer | D15: v
A16: 14 | B16: Vivan komt dr' an | C16: Riekelt Brouwer
A17: 15 | B17: Aves | C17: Simone Schuitemaker | D17: v
A18: 16 | B18: Team Nagele | C18: Paul Bovée
A19: 17 | B19: SAMEN ONDER WEG | C19: Jacco Verpoorte
A20: 18 | B20: Fit Fun/ Anytime | C20: Jos Netten
A21: 19 | B21: STC Rutten | C21: Nyka van der Veen | D21: v
A22: 20 | B22: Creil | C22: Mariska Schutte | D22: v
A23: 21 | B23: 050media | C23: Thierry Kienart
A24: 22 | B24: Tollebeek in beweging | C24: Bram Roskam
A25: 23 | B25: Seaconcept | C25: Frederik Kramer
A26: 24 | B26: Ter Haar Family & Friends | C26: Jur Bos
A27: 25 | B27: Hardloop groep Ens | C27: Manon van Schie | D27: v
A28: 26 | B28: Van Vilsteren Marknesse.nl | C28: Jesse
A29: 27 | B29: Running Team Espel | C29: Suzanne Blok | D29: v
A30: 28 | B30: Waterman Onions - Team 1 | C30: Henri Hendrikse
A31: 29 | B31: Waterman Onions Pink Ladies | C31: Annelies Pasterkamp | D31: v
A32: 30 | B32: Autofirst Minnaard | C32: Christiaan Schaart
A33: 31 | B33: fam.Dekker Draaft Door | C33: Erwin Bosma
A34: 32 | B34: Ber-di-do | C34: Henk Bremer
A35: 33 | B35: woensdagavondlopers | C35: Johan Kommerij
A36: 34 | B36: Team 't Voorhuys | C36: Jeroen Ansink
A37: 35 | B37: Waterman Onions 2 | C37: Jannes Dokter
A38: 36 | B38: Schol op Urk | C38: Marloes Slump | D38: v
A39: 37 | B39: Van Staveren | C39: Vinus Bok
A40: 38 | B40: Vegterlopers | C40: Bas de Jong
A41: 39 | B41: Suplacon | C41: Radboud Sanders
A42: 40 | B42: Mercatus, lopen op z'n best | C42: Dirk Bolle
A43: 41 | B43: Advies en Kies en Runners | C43: Anne Kooij | D43: v
A44: 42 | B44: Kinderopvang Pipo | C44: Rob
A45: 43 | B45: Lerøy Seafood NL | C45: Ben Bakker
A46: 44 | B46: Tafelronde Noordoostpolder | C46: Leo Joosten
A47: 45 | B47: Berechja College | C47: Sybren Zandstra
A48: 46 | B48: Hoekstra Assurantie | C48: Steven Post
A49: 47 | B49: CrossFit Urk | C49: Antje Brouwer | D49: v
A50: 48 | B50: Cultuurbedrijf NOP | C50: #####
A51: 49 | B51: Flynth | C51: Quinten Offenberg
A52: 50 | B52: Nick en de rest | C52: Evelien Steenbergen | D52: v
A53: 51 | B53: van Urk voeding | C53: William Visser
A54: 52 | B54: Pool-der run4fun | C54: Robert
A55: 53 | B55: UCT | C55: #####
A56: 54 | B56: De Dijkies | C56: Jaap-Jan Tichelaar
A57: 55 | B57: Fifty-Five | C57: Ada de Munnik | D57: v
A58: 56 | B58: De broodlopers | C58: Abdi Hamidan Mohamed

Sheet N11B (hidden)
A1: Rutten - Bant | C1: 15.12 - 15.56 (44 min)
A3: 1 | B3: De Corner | C3: Eugene Olgers
A4: 2 | B4: hardloopbegeleidingopmaat/klif 18 | C4: Jasper Meijer
A5: 3 | B5: Quick Jewels | C5: Jan Post
A6: 4 | B6: KLIF18 | C6: Jantina Loosman | D6: v
A7: 5 | B7: Dujob | C7: Kees de Vries
A8: 6 | B8: Running Ruijters | C8: Fabian Ruijter
A9: 7 | B9: ASV Rutten | C9: Rutger Mutsaers
A10: 8 | B10: Hardloopteam Bant | C10: Gerben Franssen
A11: 9 | B11: VAN BLOOIS SPORTADVIES | C11: Johannes Schenk
A12: 10 | B12: RUN TEAM MARKNESSE | C12: Peter Iepsma
A13: 11 | B13: Kraggenburg 4 | C13: Wout van Keulen
A14: 12 | B14: Hekwerkwebshop.nl | C14: Luut de Boer
A15: 13 | B15: KLIF18 ladies | C15: Henny van Lu | D15: v
A16: 14 | B16: Vivan komt dr' an | C16: Wim Vader
A17: 15 | B17: Aves | C17: Sander de Wit
A18: 16 | B18: Team Nagele | C18: Nolke van der Meer
A19: 17 | B19: SAMEN ONDER WEG | C19: Rik de Graaf
A20: 18 | B20: Fit Fun/ Anytime | C20: Kees Boot
A21: 19 | B21: STC Rutten | C21: Bauke van der Valk
A22: 20 | B22: Creil | C22: Martine Schenk | D22: v
A23: 21 | B23: 050media | C23: Jordi den Hollander
A24: 22 | B24: Tollebeek in beweging | C24: Jack Tabak
A25: 23 | B25: Seaconcept | C25: Pieter Sinke
A26: 24 | B26: Ter Haar Family & Friends | C26: Tom ter Haar
A27: 25 | B27: Hardloop groep Ens | C27: Bas Wouters
A28: 26 | B28: Van Vilsteren Marknesse.nl | C28: Tessa Peters | D28: v
A29: 27 | B29: Running Team Espel | C29: Jeroen Snippe
A30: 28 | B30: Waterman Onions - Team 1 | C30: Niels Ensing
A31: 29 | B31: Waterman Onions Pink Ladies | C31: Willy Sinke | D31: v
A32: 30 | B32: Autofirst Minnaard | C32: Robbin Willemsen
A33: 31 | B33: fam.Dekker Draaft Door | C33: Harry Terluin
A34: 32 | B34: Ber-di-do | C34: Sjirk Dottinga
A35: 33 | B35: woensdagavondlopers | C35: ivo de wit
A36: 34 | B36: Team 't Voorhuys | C36: Dik van der Linde
A37: 35 | B37: Waterman Onions 2 | C37: Naomi Tramper | D37: v
A38: 36 | B38: Schol op Urk | C38: Albert Hoekman
A39: 37 | B39: Van Staveren | C39: Janneke van der Kamp | D39: v
A40: 38 | B40: Vegterlopers | C40: Jesper Kooijman
A41: 39 | B41: Suplacon | C41: Evelina Kupryte | D41: v
A42: 40 | B42: Mercatus, lopen op z'n best | C42: Brenda Bouma | D42: v
A43: 41 | B43: Advies en Kies en Runners | C43: Wim Kok
A44: 42 | B44: Kinderopvang Pipo | C44: Johan
A45: 43 | B45: Lerøy Seafood NL | C45: Dirkje van de Berg | D45: v
A46: 44 | B46: Tafelronde Noordoostpolder | C46: Bas Stevens
A47: 45 | B47: Berechja College | C47: Albert Romkes
A48: 46 | B48: Hoekstra Assurantie | C48: Auke Brouwer
A49: 47 | B49: CrossFit Urk | C49: Mark Oost
A50: 48 | B50: Cultuurbedrijf NOP | C50: #####
A51: 49 | B51: Flynth | C51: Auke Johannes van Slooten
A52: 50 | B52: Nick en de rest | C52: Reinier van der Linde
A53: 51 | B53: van Urk voeding | C53: Sanne | D53: v
A54: 52 | B54: Pool-der run4fun | C54: Lukasz
A55: 53 | B55: UCT | C55: #####
A56: 54 | B56: De Dijkies | C56: Martijn Stiekema
A57: 55 | B57: Fifty-Five | C57: Grietje Overmars | D57: v
A58: 56 | B58: De broodlopers | C58: Richard ter Wijlen

Sheet N12E (hidden)
A1: Bant - Emmeloord | C1: 15.58 - 16.35 (37 min)
A3: 1 | B3: De Corner | C3: Fokke Snoek
A4: 2 | B4: hardloopbegeleidingopmaat/klif 18 | C4: Daniël Klappe
A5: 3 | B5: Quick Jewels | C5: Barend Baarsen
A6: 4 | B6: KLIF18 | C6: Geert de Wit
A7: 5 | B7: Dujob | C7: Arie Baak
A8: 6 | B8: Running Ruijters | C8: Jan Ruijter
A9: 7 | B9: ASV Rutten | C9: Pim Dollekamp
A10: 8 | B10: Hardloopteam Bant | C10: Wietze van Wegen
A11: 9 | B11: VAN BLOOIS SPORTADVIES | C11: Mark Versluis
A12: 10 | B12: RUN TEAM MARKNESSE | C12: Cees Masteling
A13: 11 | B13: Kraggenburg 4 | C13: Lars van Diepen
A14: 12 | B14: Hekwerkwebshop.nl | C14: Andries Pasterkamp
A15: 13 | B15: KLIF18 ladies | C15: Karina Post | D15: v
A16: 14 | B16: Vivan komt dr' an | C16: André Bakker
A17: 15 | B17: Aves | C17: Carolien Breimer | D17: v
A18: 16 | B18: Team Nagele | C18: Peter van der Kooi
A19: 17 | B19: SAMEN ONDER WEG | C19: Harry Feenstra
A20: 18 | B20: Fit Fun/ Anytime | C20: Jose Stuivenvolt | D20: v
A21: 19 | B21: STC Rutten | C21: Marieke vd Heuvel | D21: v
A22: 20 | B22: Creil | C22: Leo Tubben
A23: 21 | B23: 050media | C23: Onur Aksoy
A24: 22 | B24: Tollebeek in beweging | C24: Cees Leijten
A25: 23 | B25: Seaconcept | C25: Gerrit Post
A26: 24 | B26: Ter Haar Family & Friends | C26: Quirijn van Toledo
A27: 25 | B27: Hardloop groep Ens | C27: Larissa Wouters | D27: v
A28: 26 | B28: Van Vilsteren Marknesse.nl | C28: Theo Knook
A29: 27 | B29: Running Team Espel | C29: Albert de Vries
A30: 28 | B30: Waterman Onions - Team 1 | C30: Miriam Waterman | D30: v
A31: 29 | B31: Waterman Onions Pink Ladies | C31: Hilde Woort | D31: v
A32: 30 | B32: Autofirst Minnaard | C32: Erwin Kooistra
A33: 31 | B33: fam.Dekker Draaft Door | C33: Jarno Dekker
A34: 32 | B34: Ber-di-do | C34: Robert van Loenen
A35: 33 | B35: woensdagavondlopers | C35: hans vis
A36: 34 | B36: Team 't Voorhuys | C36: Mart Hazenberg
A37: 35 | B37: Waterman Onions 2 | C37: Asata Kanten | D37: v
A38: 36 | B38: Schol op Urk | C38: Hanneke Vos | D38: v
A39: 37 | B39: Van Staveren | C39: Luuk Valk
A40: 38 | B40: Vegterlopers | C40: Marco de Jong
A41: 39 | B41: Suplacon | C41: Antijn Koers
A42: 40 | B42: Mercatus, lopen op z'n best | C42: Johan van Buiten
A43: 41 | B43: Advies en Kies en Runners | C43: Ankie Kooij | D43: v
A44: 42 | B44: Kinderopvang Pipo | C44: Bas
A45: 43 | B45: Lerøy Seafood NL | C45: Ricardo van Essen
A46: 44 | B46: Tafelronde Noordoostpolder | C46: Jasper Stege
A47: 45 | B47: Berechja College | C47: Gerlinde Bakker | D47: v
A48: 46 | B48: Hoekstra Assurantie | C48: Hein Ras
A49: 47 | B49: CrossFit Urk | C49: Gerrit Visser
A50: 48 | B50: Cultuurbedrijf NOP | C50: #####
A51: 49 | B51: Flynth | C51: Klaas Mosselaar
A52: 50 | B52: Nick en de rest | C52: Jack Gros
A53: 51 | B53: van Urk voeding | C53: Albert Koffeman
A54: 52 | B54: Pool-der run4fun | C54: Arek
A55: 53 | B55: UCT | C55: #####
A56: 54 | B56: De Dijkies | C56: Jesse Dijkstra
A57: 55 | B57: Fifty-Five | C57: Harm Schippers
A58: 56 | B58: De broodlopers | C58: Piet Rienstra

Sheet Sheet1
B2: 1 | C2: 1 | E2: 2 | F2: 2 | H2: 3 | I2: 3
A4: 1-Luttelgeest
B5: 1 | C5: 0.02637731481 | E5: 1 | F5: 0.02637731481 | H5: 1 | I5: 00:17:04
B6: 2 | C6: 0.03008101852 | E6: 2 | F6: 0.03008101852 | H6: 2 | I6: 00:17:47
B7: 3 | C7: 0.03054398148 | E7: 3 | F7: 0.03054398148 | H7: 3 | I7: 00:17:49
B8: 4 | C8: 0.0305787037 | E8: 4 | F8: 0.0305787037 | H8: 4 | I8: 00:18:06
B9: 5 | C9: 0.0309375 | E9: 5 | F9: 0.0309375 | H9: 5 | I9: 00:18:12
B10: 6 | C10: 0.03100694444 | E10: 6 | F10: 0.03100694444 | H10: 6 | I10: 00:18:18
B11: 7 | C11: 0.03200231481 | E11: 7 | F11: 0.03200231481 | H11: 7 | I11: 00:18:53
B12: 8 | C12: 0.03233796296 | E12: 8 | F12: 0.03233796296 | H12: 8 | I12: 00:18:53
B13: 9 | C13: 0.03277777778 | E13: 9 | F13: 0.03277777778 | H13: 9 | I13: 00:19:21
B14: 10 | C14: 0.03284722222 | E14: 10 | F14: 0.03284722222 | H14: 10 | I14: 00:19:23
B15: 11 | C15: 0.03324074074 | E15: 11 | F15: 0.03324074074 | H15: 11 | I15: 00:19:58
B16: 12 | C16: 0.03443287037 | E16: 12 | F16: 0.03443287037 | H16: 12 | I16: 00:20:02
B17: 13 | C17: 0.03449074074 | E17: 13 | F17: 0.03449074074 | H17: 13 | I17: 00:20:06
B18: 14 | C18: 0.03462962963 | E18: 14 | F18: 0.03462962963 | H18: 14 | I18: 00:20:18
B19: 15 | C19: 0.03472222222 | E19: 15 | F19: 0.03472222222 | H19: 15 | I19: 00:20:47
B20: 16 | C20: 0.0347337963 | E20: 16 | F20: 0.0347337963 | H20: 16 | I20: 00:21:02
B21: 17 | C21: 0.0347337963 | E21: 17 | F21: 0.0347337963 | H21: 17 | I21: 00:21:09
B22: 18 | C22: 0.03475694444 | E22: 18 | F22: 0.03475694444 | H22: 18 | I22: 00:21:29
B23: 19 | C23: 0.0352662037 | E23: 19 | F23: 0.0352662037 | H23: 19 | I23: 00:21:30
B24: 20 | C24: 0.03537037037 | E24: 20 | F24: 0.03537037037 | H24: 20 | I24: 00:21:53
B25: 21 | C25: 0.03545138889 | E25: 21 | F25: 0.03545138889 | H25: 21 | I25: 00:21:54
B26: 22 | C26: 0.03556712963 | E26: 22 | F26: 0.03556712963 | H26: 22 | I26: 00:22:05
B27: 23 | C27: 0.03556712963 | E27: 23 | F27: 0.03556712963 | H27: 23 | I27: 00:22:08
B28: 24 | C28: 0.03594907407 | E28: 24 | F28: 0.03594907407 | H28: 24 | I28: 00:22:23
B29: 25 | C29: 0.03649305556 | E29: 25 | F29: 0.03649305556 | H29: 25 | I29: 00:22:23
B30: 26 | C30: 0.0365625 | E30: 26 | F30: 0.0365625 | H30: 26 | I30: 00:22:32
B31: 27 | C31: 0.03663194444 | E31: 27 | F31: 0.03663194444 | H31: 27 | I31: 00:22:32
B32: 28 | C32: 0.03685185185 | E32: 28 | F32: 0.03685185185 | H32: 28 | I32: 00:22:44
B33: 29 | C33: 0.03690972222 | E33: 29 | F33: 0.03690972222 | H33: 29 | I33: 00:22:46
B34: 30 | C34: 0.0369212963 | E34: 30 | F34: 0.0369212963 | H34: 30 | I34: 00:22:48
B35: 31 | C35: 0.03694444444 | E35: 31 | F35: 0.03694444444 | H35: 31 | I35: 00:22:49
B36: 32 | C36: 0.03706018519 | E36: 32 | F36: 0.03706018519 | H36: 32 | I36: 00:22:51
B37: 33 | C37: 0.03717592593 | E37: 33 | F37: 0.03717592593 | H37: 33 | I37: 00:22:57
B38: 34 | C38: 0.0375 | E38: 34 | F38: 0.0375 | H38: 34 | I38: 00:23:03
B39: 35 | C39: 0.03762731481 | E39: 35 | F39: 0.03762731481 | H39: 35 | I39: 00:23:12
B40: 36 | C40: 0.03763888889 | E40: 36 | F40: 0.03763888889 | H40: 36 | I40: 00:23:13
B41: 37 | C41: 0.03763888889 | E41: 37 | F41: 0.03763888889 | H41: 37 | I41: 00:23:24
B42: 38 | C42: 0.03775462963 | E42: 38 | F42: 0.03775462963 | H42: 38 | I42: 00:23:28
B43: 39 | C43: 0.03782407407 | E43: 39 | F43: 0.03782407407 | H43: 39 | I43: 00:23:36
B44: 40 | C44: 0.03810185185 | E44: 40 | F44: 0.03810185185 | H44: 40 | I44: 00:24:00
B45: 41 | C45: 0.038125 | E45: 41 | F45: 0.038125 | H45: 41 | I45: 00:24:14
B46: 42 | C46: 0.03873842593 | E46: 42 | F46: 0.03873842593 | H46: 42 | I46: 00:24:42
B47: 43 | C47: 0.03885416667 | E47: 43 | F47: 0.03885416667 | H47: 43 | I47: 00:25:12
B48: 44 | C48: 0.03922453704 | E48: 44 | F48: 0.03922453704 | H48: 44 | I48: 00:25:20
B49: 45 | C49: 0.03947916667 | E49: 45 | F49: 0.03947916667 | H49: 45 | I49: 00:25:26
B50: 46 | C50: 0.0396412037 | E50: 46 | F50: 0.0396412037 | H50: 46 | I50: 00:25:29
B51: 47 | C51: 0.03974537037 | E51: 47 | F51: 0.03974537037 | H51: 47 | I51: 00:25:34
B52: 48 | C52: 0.03987268519 | E52: 48 | F52: 0.03987268519 | H52: 48 | I52: 00:26:10
B53: 49 | C53: 0.04053240741 | E53: 49 | F53: 0.04053240741 | H53: 49 | I53: 00:26:40
B54: 50 | C54: 0.04123842593 | E54: 50 | F54: 0.04123842593 | H54: 50 | I54: 00:26:55
B55: 51 | C55: 0.04164351852 | E55: 51 | F55: 0.04164351852 | H55: 51 | I55: 00:27:26
B56: 52 | C56: 0.04174768519 | E56: 52 | F56: 0.04174768519 | H56: 52 | I56: 00:27:45
B57: 53 | C57: 0.04215277778 | E57: 53 | F57: 0.04215277778 | H57: 53 | I57: 00:27:56
B58: 54 | C58: 0.04262731481 | E58: 54 | F58: 0.04262731481 | H58: 54 | I58: 00:28:23
E59: Stop time | H59: Stop time
A60: 2-Marknesse | E60: Average time | H60: Average time
E61: Fastest time | H61: Fastest time
E63: 37368 | H63: 37368
B64: 1 | C64: 0.01185185185 | E64: MCH-002 | H64: MCH-002
B65: 2 | C65: 0.01234953704 | E65: Lap# | F65: Split Time | H65: Lap# | I65: Split Time
B66: 3 | C66: 0.01238425926 | E66: 1 | F66: 0.01185185185 | H66: 1 | I66: 00:02:18
B67: 4 | C67: 0.01258101852 | E67: 2 | F67: 0.01234953704 | H67: 2 | I67: 00:02:42
B68: 5 | C68: 0.01265046296 | E68: 3 | F68: 0.01238425926 | H68: 3 | I68: 00:02:59
B69: 6 | C69: 0.01271990741 | E69: 4 | F69: 0.01258101852 | H69: 4 | I69: 00:03:13
B70: 7 | C70: 0.01311342593 | E70: 5 | F70: 0.01265046296 | H70: 5 | I70: 00:03:38
B71: 8 | C71: 0.013125 | E71: 6 | F71: 0.01271990741 | H71: 6 | I71: 00:05:21
B72: 9 | C72: 0.0134375 | E72: 7 | F72: 0.01311342593 | H72: 7 | I72: 00:05:25
B73: 10 | C73: 0.01347222222 | E73: 8 | F73: 0.013125 | H73: 8 | I73: 00:05:28
B74: 11 | C74: 0.01387731481 | E74: 9 | F74: 0.0134375 | H74: 9 | I74: 00:05:48
B75: 12 | C75: 0.01391203704 | E75: 10 | F75: 0.01347222222 | H75: 10 | I75: 00:06:01
B76: 13 | C76: 00:20:07 | E76: 11 | F76: 00:19:59 | H76: 11 | I76: 00:07:12
B77: 14 | C77: 00:20:19 | E77: 12 | F77: 00:20:02 | H77: 12 | I77: 00:07:57
B78: 15 | C78: 00:20:47 | E78: 13 | F78: 0.01396990741 | H78: 13 | I78: 0.006006944444
B79: 16 | C79: 00:21:03 | E79: 14 | F79: 0.0141087963 | H79: 14 | I79: 0.006157407407
B80: 17 | C80: 00:21:11 | E80: 15 | F80: 0.01443287037 | H80: 15 | I80: 0.006226851852
B81: 18 | C81: 00:21:29 | E81: 16 | F81: 0.01461805556 | H81: 16 | I81: 0.006273148148
B82: 19 | C82: 00:21:30 | E82: 17 | F82: 0.01471064815 | H82: 17 | I82: 0.006273148148
B83: 20 | C83: 00:21:53 | E83: 18 | F83: 0.01491898148 | H83: 18 | I83: 0.006319444444
B84: 21 | C84: 00:21:54 | E84: 19 | F84: 0.01493055556 | H84: 19 | I84: 0.006412037037
B85: 22 | C85: 00:22:05 | E85: 20 | F85: 0.01519675926 | H85: 20 | I85: 0.00650462963
B86: 23 | C86: 00:22:08 | E86: 21 | F86: 0.01520833333 | H86: 21 | I86: 0.006539351852
B87: 24 | C87: 00:22:23 | E87: 22 | F87: 0.01533564815 | H87: 22 | I87: 0.0065625
B88: 25 | C88: 00:22:23 | E88: 23 | F88: 0.01537037037 | H88: 23 | I88: 0.00662037037
B89: 26 | C89: 00:22:32 | E89: 24 | F89: 0.01554398148 | H89: 24 | I89: 0.00662037037
B90: 27 | C90: 00:22:33 | E90: 25 | F90: 0.01554398148 | H90: 25 | I90: 0.006631944444
B91: 28 | C91: 00:22:45 | E91: 26 | F91: 0.01564814815 | H91: 26 | I91: 0.006643518519
B92: 29 | C92: 00:22:46 | E92: 27 | F92: 0.01565972222 | H92: 27 | I92: 0.006678240741
B93: 30 | C93: 00:22:48 | E93: 28 | F93: 0.01579861111 | H93: 28 | I93: 0.006747685185
B94: 31 | C94: 00:22:49 | E94: 29 | F94: 0.01581018519 | H94: 29 | I94: 0.006875
B95: 32 | C95: 00:22:51 | E95: 30 | F95: 0.01583333333 | H95: 30 | I95: 0.006944444444
B96: 33 | C96: 00:22:58 | E96: 31 | F96: 0.01584490741 | H96: 31 | I96: 0.007025462963
B97: 34 | C97: 00:23:03 | E97: 32 | F97: 0.01586805556 | H97: 32 | I97: 0.007071759259
B98: 35 | C98: 00:23:12 | E98: 33 | F98: 0.01594907407 | H98: 33 | I98: 0.007233796296
B99: 36 | C99: 00:23:13 | E99: 34 | F99: 0.01600694444 | H99: 34 | I99: 0.007280092593
B100: 37 | C100: 00:23:24 | E100: 35 | F100: 0.01611111111 | H100: 35 | I100: 0.007372685185
B101: 38 | C101: 00:23:28 | E101: 36 | F101: 0.01612268519 | H101: 36 | I101: 0.007719907407
B102: 39 | C102: 00:23:36 | E102: 37 | F102: 0.01625 | H102: 37 | I102: 0.007743055556
B103: 40 | C103: 00:24:00 | E103: 38 | F103: 0.0162962963 | H103: 38 | I103: 0.007777777778
B104: 41 | C104: 00:24:14 | E104: 39 | F104: 0.01638888889 | H104: 39 | I104: 0.008148148148
B105: 42 | C105: 00:24:43 | E105: 40 | F105: 0.01666666667 | H105: 40 | I105: 0.008194444444
B106: 43 | C106: 00:25:13 | E106: 41 | F106: 0.0168287037 | H106: 41 | I106: 0.008310185185
B107: 44 | C107: 00:25:21 | E107: 42 | F107: 0.01716435185 | H107: 42 | I107: 0.008402777778
B108: 45 | C108: 00:25:27 | E108: 43 | F108: 0.01751157407 | H108: 43 | I108: 0.008414351852
B109: 46 | C109: 00:25:30 | E109: 44 | F109: 0.01760416667 | H109: 44 | I109: 0.008587962963
B110: 47 | C110: 00:25:34 | E110: 45 | F110: 0.01767361111 | H110: 45 | I110: 0.008634259259
B111: 48 | C111: 00:26:10 | E111: 46 | F111: 0.01770833333 | H111: 46 | I111: 0.008703703704
B112: 49 | C112: 00:26:40 | E112: 47 | F112: 0.01775462963 | H112: 47 | I112: 0.009652777778
B113: 50 | C113: 00:26:56 | E113: 48 | F113: 0.0181712963 | H113: 48 | I113: 0.009791666667
B114: 51 | C114: 00:27:26 | E114: 49 | F114: 0.01851851852 | H114: 49 | I114: 0.0100462963
B115: 52 | C115: 00:27:44 | E115: 50 | F115: 0.018705671 | H115: 50 | I115: 0.01028935185
A116: 3-Kraggenburg | B116: 53 | C116: 00:27:57 | E116: 51 | F116: 0.019056597 | H116: 51 | I116: 0.010625
B117: 54 | C117: 00:28:23 | E117: 52 | F117: 0.01925925926 | H117: 52 | I117: 0.01097222222
E118: 53 | F118: 0.01940972222 | H118: 53 | I118: 0.01180555556
E119: 54 | F119: 0.01971064815 | H119: 54 | I119: 0.01412037037
E120: Stop time | H120: Stop time
E121: Stop time | H121: Average time
E122: Average time | H122: Fastest time
E123: Fastest time
H124: 37368
E125: 37368 | H125: MCH-003
B126: 1 | C126: 00:19:52 | E126: MCH-003 | H126: Lap# | I126: Split Time
B127: 2 | C127: 00:20:43 | E127: Lap# | F127: Split Time | H127: 1 | I127: 0.01261574074
B128: 3 | C128: 00:21:05 | E128: 1 | F128: 0.0137962963 | H128: 2 | I128: 0.01391203704
B129: 4 | C129: 00:22:03 | E129: 2 | F129: 0.01438657407 | H129: 3 | I129: 0.01467592593
B130: 5 | C130: 00:22:06 | E130: 3 | F130: 0.0146412037 | H130: 4 | I130: 0.01476851852
B131: 6 | C131: 00:22:24 | E131: 4 | F131: 0.0153125 | H131: 5 | I131: 0.01503472222
B132: 7 | C132: 00:22:38 | E132: 5 | F132: 0.01534722222 | H132: 6 | I132: 0.01520833333
B133: 8 | C133: 00:23:04 | E133: 6 | F133: 0.01555555556 | H133: 7 | I133: 0.01521990741
B134: 9 | C134: 00:24:04 | E134: 7 | F134: 0.01571759259 | H134: 8 | I134: 0.01527777778
B135: 10 | C135: 00:24:20 | E135: 8 | F135: 0.01601851852 | H135: 9 | I135: 0.01577546296
B136: 11 | C136: 00:24:21 | E136: 9 | F136: 0.01671296296 | H136: 10 | I136: 0.01578703704
B137: 12 | C137: 00:24:25 | E137: 10 | F137: 0.01689814815 | H137: 11 | I137: 0.01581018519
B138: 13 | C138: 00:25:10 | E138: 11 | F138: 0.01690972222 | H138: 12 | I138: 0.01583333333
B139: 14 | C139: 00:25:22 | E139: 12 | F139: 0.01695601852 | H139: 13 | I139: 0.01635416667
B140: 15 | C140: 00:25:23 | E140: 13 | F140: 0.01747685185 | H140: 14 | I140: 0.01636574074
B141: 16 | C141: 00:25:29 | E141: 14 | F141: 0.01761574074 | H141: 15 | I141: 0.01645833333
B142: 17 | C142: 00:25:31 | E142: 15 | F142: 0.01762731481 | H142: 16 | I142: 0.0165162037
B143: 18 | C143: 00:25:43 | E143: 16 | F143: 0.01769675926 | H143: 17 | I143: 0.01665509259
B144: 19 | C144: 00:25:47 | E144: 17 | F144: 0.01771990741 | H144: 18 | I144: 0.01668981481
B145: 20 | C145: 00:26:02 | E145: 18 | F145: 0.0178587963 | H145: 19 | I145: 0.01688657407
B146: 21 | C146: 00:26:07 | E146: 19 | F146: 0.01790509259 | H146: 20 | I146: 0.0169212963
B147: 22 | C147: 00:26:24 | E147: 20 | F147: 0.0180787037 | H147: 21 | I147: 0.01701388889
B148: 23 | C148: 00:26:25 | E148: 21 | F148: 0.01813657407 | H148: 22 | I148: 0.01721064815
B149: 24 | C149: 00:26:42 | E149: 22 | F149: 00:26:24 | H149: 23 | I149: 00:24:52
B150: 25 | C150: 00:26:45 | E150: 23 | F150: 00:26:25 | H150: 24 | I150: 00:24:53
B151: 26 | C151: 00:26:46 | E151: 24 | F151: 0.01854166667 | H151: 25 | I151: 0.0175462963
B152: 27 | C152: 00:27:02 | E152: 25 | F152: 0.01857638889 | H152: 26 | I152: 0.01788194444
B153: 28 | C153: 00:27:06 | E153: 26 | F153: 0.01858796296 | H153: 27 | I153: 0.01789351852
B154: 29 | C154: 00:27:09 | E154: 27 | F154: 0.01877314815 | H154: 28 | I154: 0.01856481481
B155: 30 | C155: 00:27:19 | E155: 28 | F155: 0.01881944444 | H155: 29 | I155: 0.01887731481
B156: 31 | C156: 00:27:21 | E156: 29 | F156: 0.01885416667 | H156: 30 | I156: 0.01899305556
B157: 32 | C157: 00:27:25 | E157: 30 | F157: 0.01896990741 | H157: 31 | I157: 0.01905092593
B158: 33 | C158: 00:27:32 | E158: 31 | F158: 0.01899305556 | H158: 32 | I158: 0.01912037037
B159: 34 | C159: 00:27:56 | E159: 32 | F159: 0.01903935185 | H159: 33 | I159: 0.01924768519
B160: 35 | C160: 00:28:03 | E160: 33 | F160: 0.01912037037 | H160: 34 | I160: 0.01929398148
B161: 36 | C161: 00:28:04 | E161: 34 | F161: 0.01939814815 | H161: 35 | I161: 0.0193287037
B162: 37 | C162: 00:28:45 | E162: 35 | F162: 0.01947916667 | H162: 36 | I162: 0.01934027778
B163: 38 | C163: 00:29:02 | E163: 36 | F163: 0.01949074074 | H163: 37 | I163: 0.019375
B164: 39 | C164: 00:29:05 | E164: 37 | F164: 0.01996527778 | H164: 38 | I164: 0.0194212963
B165: 40 | C165: 00:29:39 | E165: 38 | F165: 0.02016203704 | H165: 39 | I165: 0.01944444444
B166: 41 | C166: 00:29:54 | E166: 39 | F166: 0.02019675926 | H166: 40 | I166: 0.01949074074
B167: 42 | C167: 00:30:13 | E167: 40 | F167: 0.02059027778 | H167: 41 | I167: 0.01960648148
B168: 43 | C168: 00:30:14 | E168: 41 | F168: 0.02076388889 | H168: 42 | I168: 0.01967592593
B169: 44 | C169: 00:30:45 | E169: 42 | F169: 0.0209837963 | H169: 43 | I169: 0.01972222222
B170: 45 | C170: 00:30:48 | E170: 43 | F170: 0.02099537037 | H170: 44 | I170: 0.01981481481
A171: 4-Ens | B171: 46 | C171: 00:30:57 | E171: 44 | F171: 0.021359375 | H171: 45 | I171: 0.02
B172: 47 | C172: 00:31:14 | E172: 45 | F172: 0.02138888889 | H172: 46 | I172: 0.02003472222
B173: 48 | C173: 00:31:25 | E173: 46 | F173: 0.02149305556 | H173: 47 | I173: 0.02019675926
B174: 49 | C174: 00:31:35 | E174: 47 | F174: 0.02168981481 | H174: 48 | I174: 0.02025462963
B175: 50 | C175: 00:32:14 | E175: 48 | F175: 0.02181712963 | H175: 49 | I175: 0.02100694444
B176: 51 | C176: 00:33:14 | E176: 49 | F176: 0.02193287037 | H176: 50 | I176: 0.0212037037
B177: 52 | C177: 00:34:02 | E177: 50 | F177: 0.02238425926 | H177: 51 | I177: 0.02189814815
B178: 53 | C178: 00:34:28 | E178: 51 | F178: 0.0230787037 | H178: 52 | I178: 0.02248842593
B179: 54 | C179: 00:35:21 | E179: 52 | F179: 0.02363425926 | H179: 53 | I179: 0.02350694444
E180: 53 | F180: 0.02393518519 | H180: 54 | I180: 0.02438657407
E181: 54 | F181: 0.02454861111 | H181: Stop time
E182: Stop time | H182: Average time
E183: Average time | H183: Fastest time
E184: Fastest time
H185: 37368
E186: 37368 | H186: MCH-004
E187: MCH-004 | H187: Lap# | I187: Split Time
E188: Lap# | F188: Split Time | H188: 1 | I188: 0.01853009259
E189: Stop time | H189: 2 | I189: 0.01907407407
H190: 3 | I190: 0.02054398148
E191: 37368 | H191: 4 | I191: 0.02141203704
B192: 1 | C192: 00:26:06 | E192: MCH-005 | H192: 5 | I192: 0.02145833333
B193: 2 | C193: 00:27:09 | E193: Lap# | F193: Split Time | H193: 6 | I193: 0.02210648148
B194: 3 | C194: 00:27:21 | E194: 1 | F194: 0.018125 | H194: 7 | I194: 0.02212962963
B195: 4 | C195: 00:27:28 | E195: 2 | F195: 0.01885416667 | H195: 8 | I195: 0.02252314815
B196: 5 | C196: 00:30:46 | E196: 3 | F196: 0.01899305556 | H196: 9 | I196: 0.02256944444
B197: 6 | C197: 00:31:31 | E197: 4 | F197: 0.01907407407 | H197: 10 | I197: 0.02258101852
B198: 7 | C198: 00:31:40 | E198: 5 | F198: 0.02136574074 | H198: 11 | I198: 0.02261574074
B199: 8 | C199: 00:31:45 | E199: 6 | F199: 0.02188657407 | H199: 12 | I199: 0.02265046296
B200: 9 | C200: 00:31:49 | E200: 7 | F200: 0.02199074074 | H200: 13 | I200: 0.02267361111
B201: 10 | C201: 00:31:56 | E201: 8 | F201: 0.02204861111 | H201: 14 | I201: 0.02274305556
B202: 11 | C202: 00:32:02 | E202: 9 | F202: 0.02209490741 | H202: 15 | I202: 0.02364583333
B203: 12 | C203: 00:32:18 | E203: 10 | F203: 0.02217592593 | H203: 16 | I203: 0.02369212963
... 579 more rows
